Workbook

Sheet Introduction
C4: Joint Monitoring Programme for Water Supply, Sanitation and Hygiene
C6: Estimates on household water, sanitation and hygiene by wealth quintile and sub-national region in
C7: =+Water!B5 -> Uruguay
C9: Updated May 2021
C11: Follow the links below to find the following information:
C13: JMP Estimates
C14: WASH status and trends by wealth quintile (customized quintiles made without water and sanitation assets)
C15: Water
C16: Sanitation
C17: Hygiene
C19: Data inputs
C20: customized wealth quintiles and subnational data:
C21: =IF(INDIRECT(CONCATENATE("Water","!B105"))=0,"",INDIRECT(CONCATENATE("Water","!B105"))) -> WHS03
C22: =IF(INDIRECT(CONCATENATE("Water","!B106"))=0,"",INDIRECT(CONCATENATE("Water","!B106"))) -> MICS13
C23: =IF(INDIRECT(CONCATENATE("Water","!B107"))=0,"",INDIRECT(CONCATENATE("Water","!B107"))) -> 
C24: =IF(INDIRECT(CONCATENATE("Water","!B108"))=0,"",INDIRECT(CONCATENATE("Water","!B108"))) -> 
C25: =IF(INDIRECT(CONCATENATE("Water","!B109"))=0,"",INDIRECT(CONCATENATE("Water","!B109"))) -> 
C26: =IF(INDIRECT(CONCATENATE("Water","!B110"))=0,"",INDIRECT(CONCATENATE("Water","!B110"))) -> 
C27: =IF(INDIRECT(CONCATENATE("Water","!B111"))=0,"",INDIRECT(CONCATENATE("Water","!B111"))) -> 
C28: =IF(INDIRECT(CONCATENATE("Water","!B112"))=0,"",INDIRECT(CONCATENATE("Water","!B112"))) -> 
C29: =IF(INDIRECT(CONCATENATE("Water","!B113"))=0,"",INDIRECT(CONCATENATE("Water","!B113"))) -> 
C30: =IF(INDIRECT(CONCATENATE("Water","!B114"))=0,"",INDIRECT(CONCATENATE("Water","!B114"))) -> 
C31: =IF(INDIRECT(CONCATENATE("Water","!B115"))=0,"",INDIRECT(CONCATENATE("Water","!B115"))) -> 
C32: =IF(INDIRECT(CONCATENATE("Water","!B116"))=0,"",INDIRECT(CONCATENATE("Water","!B116"))) -> 
L55: =+IF(ISNUMBER(M48), "", "Insufficient data to estimate safely managed sanitation services at national level") -> Insufficient data to estimate safely managed sanitation services at national level

Sheet Water
A1: BGD
B4: Summary of trends in use of drinking water by wealth quintile (%)
B5: =IF(ISERROR(INDIRECT(CONCATENATE($B105,"!A2"))),"",INDIRECT(CONCATENATE($B105,"!A2"))) -> Uruguay
B7: =B118 -> National use of drinking water sources, 2000–2019 | J7: =B218 -> Urban use of drinking water sources, 2000–2019 | R7: =B318 -> Rural use of drinking water sources, 2000–2019
B31: =IF(ISERROR(INDIRECT(CONCATENATE($B105,"!A2"))),"",INDIRECT(CONCATENATE($B105,"!A2"))) -> Uruguay | F31: Poorest | J31: Poor | N31: Middle | R31: Rich | V31: Richest
F32: Basic | G32: Limited | H32: Unimproved | I32: Surface water | J32: Basic | K32: Limited | L32: Unimproved | M32: Surface water | N32: Basic | O32: Limited | P32: Unimproved | Q32: Surface water | R32: Basic | S32: Limited | T32: Unimproved | U32: Surface water | V32: Basic | W32: Limited | X32: Unimproved | Y32: Surface water
B33: NATIONAL | D33: Estimate | E33: =C99 -> 2000 | F33: =E99 -> 98.06250577 | G33: =F99 -> 1.226060165 | H33: 0.7114340631 | I33: 0 | J33: =J99 -> 99.57718058 | K33: =K99 -> 0 | L33: 0.4228194167 | M33: 0 | N33: =O99 -> 99.41311785 | O33: =P99 -> 0.1082914242 | P33: 0.4785907265 | Q33: 0 | R33: =T99 -> 99.81716103 | S33: =U99 -> 0 | T33: 0.1828389669 | U33: 0 | V33: =Y99 -> 99.3032813 | W33: =Z99 -> 0 | X33: 0.6967186977 | Y33: 0
E34: =C100 -> 2019 | F34: =E100 -> 97.6439869 | G34: 1.220827489 | H34: 1.135185612 | I34: 0 | J34: =J100 -> 99.49697704 | K34: 0 | L34: 0.5030229619 | M34: 0 | N34: =O100 -> 99.89118781 | O34: 0.1088121892 | P34: 0 | Q34: 0 | R34: =T100 -> 99.97627873 | S34: 0 | T34: 0.02372126533 | U34: 0 | V34: =Y100 -> 99.56885898 | W34: 0 | X34: 0 | Y34: 0.4311410198
B36: URBAN | D36: Estimate | E36: =C199 -> 2000 | F36: =E199 -> 98.78361228 | G36: =F199 -> 0 | H36: 1.216387722 | I36: 0 | J36: =J199 -> 99.2497014 | K36: =K199 -> 0 | L36: 0.7502986021 | M36: 0 | N36: =O199 -> 99.63243407 | O36: =P199 -> 0.1189164293 | P36: 0.2486495044 | Q36: 0 | R36: =T199 -> 99.50263672 | S36: =U199 -> 0 | T36: 0.4973632776 | U36: 0 | V36: =Y199 -> 99.33207072 | W36: =Z199 -> 0 | X36: 0.667929285 | Y36: 0
E37: =C200 -> 2019 | F37: =E200 -> 100 | G37: 0 | H37: 0 | I37: 0 | J37: =J200 -> 100 | K37: 0 | L37: 0 | M37: 0 | N37: =O200 -> 99.88078715 | O37: 0.1192128515 | P37: 0 | Q37: 0 | R37: =T200 -> 100 | S37: 0 | T37: 0 | U37: 0 | V37: =Y200 -> 99.52570459 | W37: 0 | X37: 0 | Y37: 0.4742954098
B39: RURAL | D39: Estimate | E39: =C299 -> 2000 | F39: =E299 -> 97.61268153 | G39: =F299 -> 2.387318469 | H39: 0 | I39: 0 | J39: =J299 -> 100 | K39: =K299 -> 0 | L39: 0 | M39: 0 | N39: =O299 -> 100 | O39: =P299 -> 0 | P39: 0 | Q39: 0 | R39: =T299 -> 100 | S39: =U299 -> 0 | T39: 0 | U39: 0 | V39: =Y299 -> 100 | W39: =Z299 -> 0 | X39: 0 | Y39: 0
E40: =C300 -> 2019 | F40: =E300 -> 88.57425121 | G40: 2.166265105 | H40: 9.259483683 | I40: 0 | J40: =J300 -> 90.26253656 | K40: 0 | L40: 9.737463445 | M40: 0 | N40: =O300 -> 99.78595272 | O40: 0 | P40: 0.2140472846 | Q40: 0 | R40: =T300 -> 99.72732487 | S40: 0 | T40: 0.2726751276 | U40: 0 | V40: =Y300 -> 99.39230397 | W40: 0 | X40: 0.6076960257 | Y40: 0
A97: NATIONAL | D97: Poorest | I97: Poor | N97: Middle | S97: Rich | X97: Richest
D98: Improved | E98: Basic | F98: Limited | G98: Unimproved | H98: Surface water | I98: Improved | J98: Basic | K98: Limited | L98: Unimproved | M98: Surface water | N98: Improved | O98: Basic | P98: Limited | Q98: Unimproved | R98: Surface water | S98: Improved | T98: Basic | U98: Limited | V98: Unimproved | W98: Surface water | X98: Improved | Y98: Basic | Z98: Limited | AA98: Unimproved | AB98: Surface water
A99: Forecast period: | C99: =MinBase(C105:C116) -> 2000 | D99: =IF((D101+H101)>100,D101*100/(D101+H101),D101) -> 99.28856594 | E99: =D99*AVERAGEIF(E105:E116,">0")/100 -> 98.06250577 | F99: =D99*(100-AVERAGEIF(E105:E116,">0"))/100 -> 1.226060165 | G99: =100-(E99+F99+H99) -> 0.7114340631 | H99: =IF((D101+H101)>100,H101*100/(D101+H101),H101) -> 0 | I99: =IF((I101+M101)>100,I101*100/(I101+M101),I101) -> 99.57718058 | J99: =I99*AVERAGEIF(J105:J116,">0")/100 -> 99.57718058 | K99: =I99*(100-AVERAGEIF(J105:J116,">0"))/100 -> 0 | L99: =100-(J99+K99+M99) -> 0.4228194167 | M99: =IF((I101+M101)>100,M101*100/(I101+M101),M101) -> 0 | N99: =IF((N101+R101)>100,N101*100/(N101+R101),N101) -> 99.52140927 | O99: =N99*AVERAGEIF(O105:O116,">0")/100 -> 99.41311785 | P99: =N99*(100-AVERAGEIF(O105:O116,">0"))/100 -> 0.1082914242 | Q99: =100-(O99+P99+R99) -> 0.4785907265 | R99: =IF((N101+R101)>100,R101*100/(N101+R101),R101) -> 0 | S99: =IF((S101+W101)>100,S101*100/(S101+W101),S101) -> 99.81716103 | T99: =S99*AVERAGEIF(T105:T116,">0")/100 -> 99.81716103 | U99: =S99*(100-AVERAGEIF(T105:T116,">0"))/100 -> 0 | V99: =100-(T99+U99+W99) -> 0.1828389669 | W99: =IF((S101+W101)>100,W101*100/(S101+W101),W101) -> 0 | X99: =IF((X101+AB101)>100,X101*100/(X101+AB101),X101) -> 99.3032813 | Y99: =X99*AVERAGEIF(Y105:Y116,">0")/100 -> 99.3032813 | Z99: =X99*(100-AVERAGEIF(Y105:Y116,">0"))/100 -> 0 | AA99: =100-(Y99+Z99+AB99) -> 0.6967186977 | AB99: =IF((X101+AB101)>100,AB101*100/(X101+AB101),AB101) -> 0
C100: =MaxTarget(C105:C116) -> 2019 | D100: =IF((D102+H102)>100,D102*100/(D102+H102),D102) -> 98.86481439 | E100: =D100*AVERAGEIF(E105:E116,">0")/100 -> 97.6439869 | F100: =D100*(100-AVERAGEIF(E105:E116,">0"))/100 -> 1.220827489 | G100: =100-(E100+F100+H100) -> 1.135185612 | H100: =IF((D102+H102)>100,H102*100/(D102+H102),H102) -> 0 | I100: =IF((I102+M102)>100,I102*100/(I102+M102),I102) -> 99.49697704 | J100: =I100*AVERAGEIF(J105:J116,">0")/100 -> 99.49697704 | K100: =I100*(100-AVERAGEIF(J105:J116,">0"))/100 -> 0 | L100: =100-(J100+K100+M100) -> 0.5030229619 | M100: =IF((I102+M102)>100,M102*100/(I102+M102),M102) -> 0 | N100: =IF((N102+R102)>100,N102*100/(N102+R102),N102) -> 100 | O100: =N100*AVERAGEIF(O105:O116,">0")/100 -> 99.89118781 | P100: =N100*(100-AVERAGEIF(O105:O116,">0"))/100 -> 0.1088121892 | Q100: =100-(O100+P100+R100) -> 0 | R100: =IF((N102+R102)>100,R102*100/(N102+R102),R102) -> 0 | S100: =IF((S102+W102)>100,S102*100/(S102+W102),S102) -> 99.97627873 | T100: =S100*AVERAGEIF(T105:T116,">0")/100 -> 99.97627873 | U100: =S100*(100-AVERAGEIF(T105:T116,">0"))/100 -> 0 | V100: =100-(T100+U100+W100) -> 0.02372126533 | W100: =IF((S102+W102)>100,W102*100/(S102+W102),W102) -> 0 | X100: =IF((X102+AB102)>100,X102*100/(X102+AB102),X102) -> 99.56885898 | Y100: =X100*AVERAGEIF(Y105:Y116,">0")/100 -> 99.56885898 | Z100: =X100*(100-AVERAGEIF(Y105:Y116,">0"))/100 -> 0 | AA100: =100-(Y100+Z100+AB100) -> 0 | AB100: =IF((X102+AB102)>100,AB102*100/(X102+AB102),AB102) -> 0.4311410198
A101: Regression period: | C101: =MinRegYear(C99,C105:C116) -> 2001 | D101: =IF(MAX(C105:C116)-MIN(C105:C116)<5,AVERAGEIF(C105:C116,">0",D105:D116), IF(FORECAST($C101,D$105:D$116,$C$105:$C$116)<0,0, IF(FORECAST($C101,D$105:D$116,$C$105:$C$116)>100,100, FORECAST($C101,D$105:D$116,$C$105:$C$116)))) -> 99.28856594 | H101: =IF(MAX(C105:C116)-MIN(C105:C116)<5,AVERAGEIF(C105:C116,">0",H105:H116), IF(FORECAST($C101,H$105:H$116,$C$105:$C$116)<0,0, IF(FORECAST($C101,H$105:H$116,$C$105:$C$116)>100,100, FORECAST($C101,H$105:H$116,$C$105:$C$116)))) -> 0 | I101: =IF(MAX(C105:C116)-MIN(C105:C116)<5,AVERAGEIF(C105:C116,">0",I105:I116), IF(FORECAST($C101,I$105:I$116,$C$105:$C$116)<0,0, IF(FORECAST($C101,I$105:I$116,$C$105:$C$116)>100,100, FORECAST($C101,I$105:I$116,$C$105:$C$116)))) -> 99.57718058 | M101: =IF(MAX(C105:C116)-MIN(C105:C116)<5,AVERAGEIF(C105:C116,">0",M105:M116), IF(FORECAST($C101,M$105:M$116,$C$105:$C$116)<0,0, IF(FORECAST($C101,M$105:M$116,$C$105:$C$116)>100,100, FORECAST($C101,M$105:M$116,$C$105:$C$116)))) -> 0 | N101: =IF(MAX(C105:C116)-MIN(C105:C116)<5,AVERAGEIF(C105:C116,">0",N105:N116), IF(FORECAST($C101,N$105:N$116,$C$105:$C$116)<0,0, IF(FORECAST($C101,N$105:N$116,$C$105:$C$116)>100,100, FORECAST($C101,N$105:N$116,$C$105:$C$116)))) -> 99.52140927 | R101: =IF(MAX(C105:C116)-MIN(C105:C116)<5,AVERAGEIF(C105:C116,">0",R105:R116), IF(FORECAST($C101,R$105:R$116,$C$105:$C$116)<0,0, IF(FORECAST($C101,R$105:R$116,$C$105:$C$116)>100,100, FORECAST($C101,R$105:R$116,$C$105:$C$116)))) -> 0 | S101: =IF(MAX(C105:C116)-MIN(C105:C116)<5,AVERAGEIF(C105:C116,">0",S105:S116), IF(FORECAST($C101,S$105:S$116,$C$105:$C$116)<0,0, IF(FORECAST($C101,S$105:S$116,$C$105:$C$116)>100,100, FORECAST($C101,S$105:S$116,$C$105:$C$116)))) -> 99.81716103 | W101: =IF(MAX(C105:C116)-MIN(C105:C116)<5,AVERAGEIF(C105:C116,">0",W105:W116), IF(FORECAST($C101,W$105:W$116,$C$105:$C$116)<0,0, IF(FORECAST($C101,W$105:W$116,$C$105:$C$116)>100,100, FORECAST($C101,W$105:W$116,$C$105:$C$116)))) -> 0 | X101: =IF(MAX(C105:C116)-MIN(C105:C116)<5,AVERAGEIF(C105:C116,">0",X105:X116), IF(FORECAST($C101,X$105:X$116,$C$105:$C$116)<0,0, IF(FORECAST($C101,X$105:X$116,$C$105:$C$116)>100,100, FORECAST($C101,X$105:X$116,$C$105:$C$116)))) -> 99.3032813 | AB101: =IF(MAX(C105:C116)-MIN(C105:C116)<5,AVERAGEIF(C105:C116,">0",AB105:AB116), IF(FORECAST($C101,AB$105:AB$116,$C$105:$C$116)<0,0, IF(FORECAST($C101,AB$105:AB$116,$C$105:$C$116)>100,100, FORECAST($C101,AB$105:AB$116,$C$105:$C$116)))) -> 0
C102: =MaxRegYear(C100,C105:C116) -> 2015 | D102: =IF(MAX(C105:C116)-MIN(C105:C116)<5,AVERAGEIF(C105:C116,">0",D105:D116), IF(FORECAST($C102,D$105:D$116,$C$105:$C$116)<0,0, IF(FORECAST($C102,D$105:D$116,$C$105:$C$116)>100,100, FORECAST($C102,D$105:D$116,$C$105:$C$116)))) -> 98.86481439 | H102: =IF(MAX(C105:C116)-MIN(C105:C116)<5,AVERAGEIF(C105:C116,">0",H105:H116), IF(FORECAST($C102,H$105:H$116,$C$105:$C$116)<0,0, IF(FORECAST($C102,H$105:H$116,$C$105:$C$116)>100,100, FORECAST($C102,H$105:H$116,$C$105:$C$116)))) -> 0 | I102: =IF(MAX(C105:C116)-MIN(C105:C116)<5,AVERAGEIF(C105:C116,">0",I105:I116), IF(FORECAST($C102,I$105:I$116,$C$105:$C$116)<0,0, IF(FORECAST($C102,I$105:I$116,$C$105:$C$116)>100,100, FORECAST($C102,I$105:I$116,$C$105:$C$116)))) -> 99.49697704 | M102: =IF(MAX(C105:C116)-MIN(C105:C116)<5,AVERAGEIF(C105:C116,">0",M105:M116), IF(FORECAST($C102,M$105:M$116,$C$105:$C$116)<0,0, IF(FORECAST($C102,M$105:M$116,$C$105:$C$116)>100,100, FORECAST($C102,M$105:M$116,$C$105:$C$116)))) -> 0 | N102: =IF(MAX(C105:C116)-MIN(C105:C116)<5,AVERAGEIF(C105:C116,">0",N105:N116), IF(FORECAST($C102,N$105:N$116,$C$105:$C$116)<0,0, IF(FORECAST($C102,N$105:N$116,$C$105:$C$116)>100,100, FORECAST($C102,N$105:N$116,$C$105:$C$116)))) -> 100 | R102: =IF(MAX(C105:C116)-MIN(C105:C116)<5,AVERAGEIF(C105:C116,">0",R105:R116), IF(FORECAST($C102,R$105:R$116,$C$105:$C$116)<0,0, IF(FORECAST($C102,R$105:R$116,$C$105:$C$116)>100,100, FORECAST($C102,R$105:R$116,$C$105:$C$116)))) -> 0 | S102: =IF(MAX(C105:C116)-MIN(C105:C116)<5,AVERAGEIF(C105:C116,">0",S105:S116), IF(FORECAST($C102,S$105:S$116,$C$105:$C$116)<0,0, IF(FORECAST($C102,S$105:S$116,$C$105:$C$116)>100,100, FORECAST($C102,S$105:S$116,$C$105:$C$116)))) -> 99.97627873 | W102: =IF(MAX(C105:C116)-MIN(C105:C116)<5,AVERAGEIF(C105:C116,">0",W105:W116), IF(FORECAST($C102,W$105:W$116,$C$105:$C$116)<0,0, IF(FORECAST($C102,W$105:W$116,$C$105:$C$116)>100,100, FORECAST($C102,W$105:W$116,$C$105:$C$116)))) -> 0 | X102: =IF(MAX(C105:C116)-MIN(C105:C116)<5,AVERAGEIF(C105:C116,">0",X105:X116), IF(FORECAST($C102,X$105:X$116,$C$105:$C$116)<0,0, IF(FORECAST($C102,X$105:X$116,$C$105:$C$116)>100,100, FORECAST($C102,X$105:X$116,$C$105:$C$116)))) -> 99.69641791 | AB102: =IF(MAX(C105:C116)-MIN(C105:C116)<5,AVERAGEIF(C105:C116,">0",AB105:AB116), IF(FORECAST($C102,AB$105:AB$116,$C$105:$C$116)<0,0, IF(FORECAST($C102,AB$105:AB$116,$C$105:$C$116)>100,100, FORECAST($C102,AB$105:AB$116,$C$105:$C$116)))) -> 0.43169336
B104: Survey | C104: Year | D104: Improved | E104: % Improved < = 30min | H104: Surface water | I104: Improved | J104: % Improved < = 30min | M104: Surface water | N104: Improved | O104: % Improved < = 30min | R104: Surface water | S104: Improved | T104: % Improved < = 30min | W104: Surface water | X104: Improved | Y104: % Improved < = 30min | AB104: Surface water
B105: WHS03 | C105: 2003 | D105: =IF(ISERROR(INDIRECT(CONCATENATE($B105,"!C16"))),"",INDIRECT(CONCATENATE($B105,"!C16"))) -> 99.22803 | E105: =IF(ISERROR(INDIRECT(CONCATENATE($B105,"!C23"))),"",INDIRECT(CONCATENATE($B105,"!C23"))) -> 97.53030945 | H105: =IF(ISERROR(INDIRECT(CONCATENATE($B105,"!C21"))),"",INDIRECT(CONCATENATE($B105,"!C21"))) -> 0 | I105: =IF(ISERROR(INDIRECT(CONCATENATE($B105,"!D16"))),"",INDIRECT(CONCATENATE($B105,"!D16"))) -> 99.56572293 | J105: =IF(ISERROR(INDIRECT(CONCATENATE($B105,"!D23"))),"",INDIRECT(CONCATENATE($B105,"!D23"))) -> 100 | M105: =IF(ISERROR(INDIRECT(CONCATENATE($B105,"!D21"))),"",INDIRECT(CONCATENATE($B105,"!D21"))) -> 0 | N105: =IF(ISERROR(INDIRECT(CONCATENATE($B105,"!E16"))),"",INDIRECT(CONCATENATE($B105,"!E16"))) -> 99.59771327 | O105: =IF(ISERROR(INDIRECT(CONCATENATE($B105,"!E23"))),"",INDIRECT(CONCATENATE($B105,"!E23"))) -> 100 | R105: =IF(ISERROR(INDIRECT(CONCATENATE($B105,"!E21"))),"",INDIRECT(CONCATENATE($B105,"!E21"))) -> 0 | S105: =IF(ISERROR(INDIRECT(CONCATENATE($B105,"!F16"))),"",INDIRECT(CONCATENATE($B105,"!F16"))) -> 99.83989213 | T105: =IF(ISERROR(INDIRECT(CONCATENATE($B105,"!F23"))),"",INDIRECT(CONCATENATE($B105,"!F23"))) -> 100 | W105: =IF(ISERROR(INDIRECT(CONCATENATE($B105,"!F21"))),"",INDIRECT(CONCATENATE($B105,"!F21"))) -> 0 | X105: =IF(ISERROR(INDIRECT(CONCATENATE($B105,"!G16"))),"",INDIRECT(CONCATENATE($B105,"!G16"))) -> 99.35944367 | Y105: =IF(ISERROR(INDIRECT(CONCATENATE($B105,"!G23"))),"",INDIRECT(CONCATENATE($B105,"!G23"))) -> 100 | AB105: =IF(ISERROR(INDIRECT(CONCATENATE($B105,"!G221"))),"",INDIRECT(CONCATENATE($B105,"!G21"))) -> 0
B106: MICS13 | C106: 2013 | D106: 98.92535032 | E106: 100 | H106: 0 | I106: 99.50843469 | J106: 100 | M106: 0 | N106: 99.97923326 | O106: 99.78237562 | R106: 0 | S106: 99.95354763 | T106: 100 | W106: 0 | X106: 99.64025553 | Y106: 100 | AB106: 0.3597444667
D111: =IF(ISERROR(INDIRECT(CONCATENATE($B111,"!C16"))),"",INDIRECT(CONCATENATE($B111,"!C16"))) ->  | E111: =IF(ISERROR(INDIRECT(CONCATENATE($B111,"!C23"))),"",INDIRECT(CONCATENATE($B111,"!C23"))) ->  | H111: =IF(ISERROR(INDIRECT(CONCATENATE($B111,"!C21"))),"",INDIRECT(CONCATENATE($B111,"!C21"))) ->  | I111: =IF(ISERROR(INDIRECT(CONCATENATE($B111,"!D16"))),"",INDIRECT(CONCATENATE($B111,"!D16"))) ->  | J111: =IF(ISERROR(INDIRECT(CONCATENATE($B111,"!D23"))),"",INDIRECT(CONCATENATE($B111,"!D23"))) ->  | M111: =IF(ISERROR(INDIRECT(CONCATENATE($B111,"!D21"))),"",INDIRECT(CONCATENATE($B111,"!D21"))) ->  | N111: =IF(ISERROR(INDIRECT(CONCATENATE($B111,"!E16"))),"",INDIRECT(CONCATENATE($B111,"!E16"))) ->  | O111: =IF(ISERROR(INDIRECT(CONCATENATE($B111,"!E23"))),"",INDIRECT(CONCATENATE($B111,"!E23"))) ->  | R111: =IF(ISERROR(INDIRECT(CONCATENATE($B111,"!E21"))),"",INDIRECT(CONCATENATE($B111,"!E21"))) ->  | S111: =IF(ISERROR(INDIRECT(CONCATENATE($B111,"!F16"))),"",INDIRECT(CONCATENATE($B111,"!F16"))) ->  | T111: =IF(ISERROR(INDIRECT(CONCATENATE($B111,"!F23"))),"",INDIRECT(CONCATENATE($B111,"!F23"))) ->  | W111: =IF(ISERROR(INDIRECT(CONCATENATE($B111,"!F21"))),"",INDIRECT(CONCATENATE($B111,"!F21"))) ->  | X111: =IF(ISERROR(INDIRECT(CONCATENATE($B111,"!G16"))),"",INDIRECT(CONCATENATE($B111,"!G16"))) ->  | Y111: =IF(ISERROR(INDIRECT(CONCATENATE($B111,"!G23"))),"",INDIRECT(CONCATENATE($B111,"!G23"))) ->  | AB111: =IF(ISERROR(INDIRECT(CONCATENATE($B111,"!G221"))),"",INDIRECT(CONCATENATE($B111,"!G21"))) -> 
D112: =IF(ISERROR(INDIRECT(CONCATENATE($B112,"!C16"))),"",INDIRECT(CONCATENATE($B112,"!C16"))) ->  | E112: =IF(ISERROR(INDIRECT(CONCATENATE($B112,"!C23"))),"",INDIRECT(CONCATENATE($B112,"!C23"))) ->  | H112: =IF(ISERROR(INDIRECT(CONCATENATE($B112,"!C21"))),"",INDIRECT(CONCATENATE($B112,"!C21"))) ->  | I112: =IF(ISERROR(INDIRECT(CONCATENATE($B112,"!D16"))),"",INDIRECT(CONCATENATE($B112,"!D16"))) ->  | J112: =IF(ISERROR(INDIRECT(CONCATENATE($B112,"!D23"))),"",INDIRECT(CONCATENATE($B112,"!D23"))) ->  | M112: =IF(ISERROR(INDIRECT(CONCATENATE($B112,"!D21"))),"",INDIRECT(CONCATENATE($B112,"!D21"))) ->  | N112: =IF(ISERROR(INDIRECT(CONCATENATE($B112,"!E16"))),"",INDIRECT(CONCATENATE($B112,"!E16"))) ->  | O112: =IF(ISERROR(INDIRECT(CONCATENATE($B112,"!E23"))),"",INDIRECT(CONCATENATE($B112,"!E23"))) ->  | R112: =IF(ISERROR(INDIRECT(CONCATENATE($B112,"!E21"))),"",INDIRECT(CONCATENATE($B112,"!E21"))) ->  | S112: =IF(ISERROR(INDIRECT(CONCATENATE($B112,"!F16"))),"",INDIRECT(CONCATENATE($B112,"!F16"))) ->  | T112: =IF(ISERROR(INDIRECT(CONCATENATE($B112,"!F23"))),"",INDIRECT(CONCATENATE($B112,"!F23"))) ->  | W112: =IF(ISERROR(INDIRECT(CONCATENATE($B112,"!F21"))),"",INDIRECT(CONCATENATE($B112,"!F21"))) ->  | X112: =IF(ISERROR(INDIRECT(CONCATENATE($B112,"!G16"))),"",INDIRECT(CONCATENATE($B112,"!G16"))) ->  | Y112: =IF(ISERROR(INDIRECT(CONCATENATE($B112,"!G23"))),"",INDIRECT(CONCATENATE($B112,"!G23"))) ->  | AB112: =IF(ISERROR(INDIRECT(CONCATENATE($B112,"!G221"))),"",INDIRECT(CONCATENATE($B112,"!G21"))) -> 
B118: =CONCATENATE("National use of drinking water sources, ",C99,"–",C100) -> National use of drinking water sources, 2000–2019 | S118: Data points used for regression
E153: =IF(ISERROR(INDIRECT(CONCATENATE($B153,"!M18"))),"",INDIRECT(CONCATENATE($B153,"!M18"))) ->  | F153: =IF(ISERROR(INDIRECT(CONCATENATE($B153,"!M19"))),"",INDIRECT(CONCATENATE($B153,"!M19"))) ->  | G153: =IF(ISERROR(INDIRECT(CONCATENATE($B153,"!M20"))),"",INDIRECT(CONCATENATE($B153,"!M20"))) ->  | H153: =IF(ISERROR(INDIRECT(CONCATENATE($B153,"!M21"))),"",INDIRECT(CONCATENATE($B153,"!M21"))) ->  | J153: =IF(ISERROR(INDIRECT(CONCATENATE($B153,"!N18"))),"",INDIRECT(CONCATENATE($B153,"!N18"))) ->  | K153: =IF(ISERROR(INDIRECT(CONCATENATE($B153,"!N19"))),"",INDIRECT(CONCATENATE($B153,"!N19"))) ->  | L153: =IF(ISERROR(INDIRECT(CONCATENATE($B153,"!N20"))),"",INDIRECT(CONCATENATE($B153,"!N20"))) ->  | M153: =IF(ISERROR(INDIRECT(CONCATENATE($B153,"!N21"))),"",INDIRECT(CONCATENATE($B153,"!N21"))) ->  | O153: =IF(ISERROR(INDIRECT(CONCATENATE($B153,"!O18"))),"",INDIRECT(CONCATENATE($B153,"!O18"))) ->  | P153: =IF(ISERROR(INDIRECT(CONCATENATE($B153,"!O19"))),"",INDIRECT(CONCATENATE($B153,"!O19"))) ->  | Q153: =IF(ISERROR(INDIRECT(CONCATENATE($B153,"!O20"))),"",INDIRECT(CONCATENATE($B153,"!O20"))) ->  | R153: =IF(ISERROR(INDIRECT(CONCATENATE($B153,"!O21"))),"",INDIRECT(CONCATENATE($B153,"!O21"))) ->  | T153: =IF(ISERROR(INDIRECT(CONCATENATE($B153,"!P18"))),"",INDIRECT(CONCATENATE($B153,"!P18"))) ->  | U153: =IF(ISERROR(INDIRECT(CONCATENATE($B153,"!P19"))),"",INDIRECT(CONCATENATE($B153,"!P19"))) ->  | V153: =IF(ISERROR(INDIRECT(CONCATENATE($B153,"!P20"))),"",INDIRECT(CONCATENATE($B153,"!P20"))) ->  | W153: =IF(ISERROR(INDIRECT(CONCATENATE($B153,"!P21"))),"",INDIRECT(CONCATENATE($B153,"!P21"))) ->  | Y153: =IF(ISERROR(INDIRECT(CONCATENATE($B153,"!Q18"))),"",INDIRECT(CONCATENATE($B153,"!Q18"))) ->  | Z153: =IF(ISERROR(INDIRECT(CONCATENATE($B153,"!Q19"))),"",INDIRECT(CONCATENATE($B153,"!Q19"))) ->  | AA153: =IF(ISERROR(INDIRECT(CONCATENATE($B153,"!Q20"))),"",INDIRECT(CONCATENATE($B153,"!Q20"))) ->  | AB153: =IF(ISERROR(INDIRECT(CONCATENATE($B153,"!Q21"))),"",INDIRECT(CONCATENATE($B153,"!Q1"))) -> 
A197: URBAN | D197: Poorest | I197: Poor | N197: Middle | S197: Rich | X197: Richest
D198: Improved | E198: Basic | F198: Limited | G198: Unimproved | H198: Surface water | I198: Improved | J198: Basic | K198: Limited | L198: Unimproved | M198: Surface water | N198: Improved | O198: Basic | P198: Limited | Q198: Unimproved | R198: Surface water | S198: Improved | T198: Basic | U198: Limited | V198: Unimproved | W198: Surface water | X198: Improved | Y198: Basic | Z198: Limited | AA198: Unimproved | AB198: Surface water
A199: Forecast period: | C199: =MinBase(C205:C216) -> 2000 | D199: =IF((D201+H201)>100,D201*100/(D201+H201),D201) -> 98.78361228 | E199: =D199*AVERAGEIF(E205:E216,">0")/100 -> 98.78361228 | F199: =D199*(100-AVERAGEIF(E205:E216,">0"))/100 -> 0 | G199: =100-(E199+F199+H199) -> 1.216387722 | H199: =IF((D201+H201)>100,H201*100/(D201+H201),H201) -> 0 | I199: =IF((I201+M201)>100,I201*100/(I201+M201),I201) -> 99.2497014 | J199: =I199*AVERAGEIF(J205:J216,">0")/100 -> 99.2497014 | K199: =I199*(100-AVERAGEIF(J205:J216,">0"))/100 -> 0 | L199: =100-(J199+K199+M199) -> 0.7502986021 | M199: =IF((I201+M201)>100,M201*100/(I201+M201),M201) -> 0 | N199: =IF((N201+R201)>100,N201*100/(N201+R201),N201) -> 99.7513505 | O199: =N199*AVERAGEIF(O205:O216,">0")/100 -> 99.63243407 | P199: =N199*(100-AVERAGEIF(O205:O216,">0"))/100 -> 0.1189164293 | Q199: =100-(O199+P199+R199) -> 0.2486495044 | R199: =IF((N201+R201)>100,R201*100/(N201+R201),R201) -> 0 | S199: =IF((S201+W201)>100,S201*100/(S201+W201),S201) -> 99.50263672 | T199: =S199*AVERAGEIF(T205:T216,">0")/100 -> 99.50263672 | U199: =S199*(100-AVERAGEIF(T205:T216,">0"))/100 -> 0 | V199: =100-(T199+U199+W199) -> 0.4973632776 | W199: =IF((S201+W201)>100,W201*100/(S201+W201),W201) -> 0 | X199: =IF((X201+AB201)>100,X201*100/(X201+AB201),X201) -> 99.33207072 | Y199: =X199*AVERAGEIF(Y205:Y216,">0")/100 -> 99.33207072 | Z199: =X199*(100-AVERAGEIF(Y205:Y216,">0"))/100 -> 0 | AA199: =100-(Y199+Z199+AB199) -> 0.667929285 | AB199: =IF((X201+AB201)>100,AB201*100/(X201+AB201),AB201) -> 0
C200: =MaxTarget(C205:C216) -> 2019 | D200: =IF((D202+H202)>100,D202*100/(D202+H202),D202) -> 100 | E200: =D200*AVERAGEIF(E205:E216,">0")/100 -> 100 | F200: =D200*(100-AVERAGEIF(E205:E216,">0"))/100 -> 0 | G200: =100-(E200+F200+H200) -> 0 | H200: =IF((D202+H202)>100,H202*100/(D202+H202),H202) -> 0 | I200: =IF((I202+M202)>100,I202*100/(I202+M202),I202) -> 100 | J200: =I200*AVERAGEIF(J205:J216,">0")/100 -> 100 | K200: =I200*(100-AVERAGEIF(J205:J216,">0"))/100 -> 0 | L200: =100-(J200+K200+M200) -> 0 | M200: =IF((I202+M202)>100,M202*100/(I202+M202),M202) -> 0 | N200: =IF((N202+R202)>100,N202*100/(N202+R202),N202) -> 100 | O200: =N200*AVERAGEIF(O205:O216,">0")/100 -> 99.88078715 | P200: =N200*(100-AVERAGEIF(O205:O216,">0"))/100 -> 0.1192128515 | Q200: =100-(O200+P200+R200) -> 0 | R200: =IF((N202+R202)>100,R202*100/(N202+R202),R202) -> 0 | S200: =IF((S202+W202)>100,S202*100/(S202+W202),S202) -> 100 | T200: =S200*AVERAGEIF(T205:T216,">0")/100 -> 100 | U200: =S200*(100-AVERAGEIF(T205:T216,">0"))/100 -> 0 | V200: =100-(T200+U200+W200) -> 0 | W200: =IF((S202+W202)>100,W202*100/(S202+W202),W202) -> 0 | X200: =IF((X202+AB202)>100,X202*100/(X202+AB202),X202) -> 99.52570459 | Y200: =X200*AVERAGEIF(Y205:Y216,">0")/100 -> 99.52570459 | Z200: =X200*(100-AVERAGEIF(Y205:Y216,">0"))/100 -> 0 | AA200: =100-(Y200+Z200+AB200) -> 0 | AB200: =IF((X202+AB202)>100,AB202*100/(X202+AB202),AB202) -> 0.4742954098
A201: Regression period: | C201: =MinRegYear(C199,C205:C216) -> 2001 | D201: =IF(MAX(C205:C216)-MIN(C205:C216)<5,AVERAGEIF(C205:C216,">0",D205:D216), IF(FORECAST($C201,D$205:D$216,$C$205:$C$216)<0,0, IF(FORECAST($C201,D$205:D$216,$C$205:$C$216)>100,100, FORECAST($C201,D$205:D$216,$C$205:$C$216)))) -> 98.78361228 | H201: =IF(MAX(C205:C216)-MIN(C205:C216)<5,AVERAGEIF(C205:C216,">0",H205:H216), IF(FORECAST($C201,H$205:H$216,$C$205:$C$216)<0,0, IF(FORECAST($C201,H$205:H$216,$C$205:$C$216)>100,100, FORECAST($C201,H$205:H$216,$C$205:$C$216)))) -> 0 | I201: =IF(MAX(C205:C216)-MIN(C205:C216)<5,AVERAGEIF(C205:C216,">0",I205:I216), IF(FORECAST($C201,I$205:I$216,$C$205:$C$216)<0,0, IF(FORECAST($C201,I$205:I$216,$C$205:$C$216)>100,100, FORECAST($C201,I$205:I$216,$C$205:$C$216)))) -> 99.2497014 | M201: =IF(MAX(C205:C216)-MIN(C205:C216)<5,AVERAGEIF(C205:C216,">0",M205:M216), IF(FORECAST($C201,M$205:M$216,$C$205:$C$216)<0,0, IF(FORECAST($C201,M$205:M$216,$C$205:$C$216)>100,100, FORECAST($C201,M$205:M$216,$C$205:$C$216)))) -> 0 | N201: =IF(MAX(C205:C216)-MIN(C205:C216)<5,AVERAGEIF(C205:C216,">0",N205:N216), IF(FORECAST($C201,N$205:N$216,$C$205:$C$216)<0,0, IF(FORECAST($C201,N$205:N$216,$C$205:$C$216)>100,100, FORECAST($C201,N$205:N$216,$C$205:$C$216)))) -> 99.7513505 | R201: =IF(MAX(C205:C216)-MIN(C205:C216)<5,AVERAGEIF(C205:C216,">0",R205:R216), IF(FORECAST($C201,R$205:R$216,$C$205:$C$216)<0,0, IF(FORECAST($C201,R$205:R$216,$C$205:$C$216)>100,100, FORECAST($C201,R$205:R$216,$C$205:$C$216)))) -> 0 | S201: =IF(MAX(C205:C216)-MIN(C205:C216)<5,AVERAGEIF(C205:C216,">0",S205:S216), IF(FORECAST($C201,S$205:S$216,$C$205:$C$216)<0,0, IF(FORECAST($C201,S$205:S$216,$C$205:$C$216)>100,100, FORECAST($C201,S$205:S$216,$C$205:$C$216)))) -> 99.50263672 | W201: =IF(MAX(C205:C216)-MIN(C205:C216)<5,AVERAGEIF(C205:C216,">0",W205:W216), IF(FORECAST($C201,W$205:W$216,$C$205:$C$216)<0,0, IF(FORECAST($C201,W$205:W$216,$C$205:$C$216)>100,100, FORECAST($C201,W$205:W$216,$C$205:$C$216)))) -> 0 | X201: =IF(MAX(C205:C216)-MIN(C205:C216)<5,AVERAGEIF(C205:C216,">0",X205:X216), IF(FORECAST($C201,X$205:X$216,$C$205:$C$216)<0,0, IF(FORECAST($C201,X$205:X$216,$C$205:$C$216)>100,100, FORECAST($C201,X$205:X$216,$C$205:$C$216)))) -> 99.33207072 | AB201: =IF(MAX(C205:C216)-MIN(C205:C216)<5,AVERAGEIF(C205:C216,">0",AB205:AB216), IF(FORECAST($C201,AB$205:AB$216,$C$205:$C$216)<0,0, IF(FORECAST($C201,AB$205:AB$216,$C$205:$C$216)>100,100, FORECAST($C201,AB$205:AB$216,$C$205:$C$216)))) -> 0
C202: =MaxRegYear(C200,C205:C216) -> 2015 | D202: =IF(MAX(C205:C216)-MIN(C205:C216)<5,AVERAGEIF(C205:C216,">0",D205:D216), IF(FORECAST($C202,D$205:D$216,$C$205:$C$216)<0,0, IF(FORECAST($C202,D$205:D$216,$C$205:$C$216)>100,100, FORECAST($C202,D$205:D$216,$C$205:$C$216)))) -> 100 | H202: =IF(MAX(C205:C216)-MIN(C205:C216)<5,AVERAGEIF(C205:C216,">0",H205:H216), IF(FORECAST($C202,H$205:H$216,$C$205:$C$216)<0,0, IF(FORECAST($C202,H$205:H$216,$C$205:$C$216)>100,100, FORECAST($C202,H$205:H$216,$C$205:$C$216)))) -> 0 | I202: =IF(MAX(C205:C216)-MIN(C205:C216)<5,AVERAGEIF(C205:C216,">0",I205:I216), IF(FORECAST($C202,I$205:I$216,$C$205:$C$216)<0,0, IF(FORECAST($C202,I$205:I$216,$C$205:$C$216)>100,100, FORECAST($C202,I$205:I$216,$C$205:$C$216)))) -> 100 | M202: =IF(MAX(C205:C216)-MIN(C205:C216)<5,AVERAGEIF(C205:C216,">0",M205:M216), IF(FORECAST($C202,M$205:M$216,$C$205:$C$216)<0,0, IF(FORECAST($C202,M$205:M$216,$C$205:$C$216)>100,100, FORECAST($C202,M$205:M$216,$C$205:$C$216)))) -> 0 | N202: =IF(MAX(C205:C216)-MIN(C205:C216)<5,AVERAGEIF(C205:C216,">0",N205:N216), IF(FORECAST($C202,N$205:N$216,$C$205:$C$216)<0,0, IF(FORECAST($C202,N$205:N$216,$C$205:$C$216)>100,100, FORECAST($C202,N$205:N$216,$C$205:$C$216)))) -> 100 | R202: =IF(MAX(C205:C216)-MIN(C205:C216)<5,AVERAGEIF(C205:C216,">0",R205:R216), IF(FORECAST($C202,R$205:R$216,$C$205:$C$216)<0,0, IF(FORECAST($C202,R$205:R$216,$C$205:$C$216)>100,100, FORECAST($C202,R$205:R$216,$C$205:$C$216)))) -> 0 | S202: =IF(MAX(C205:C216)-MIN(C205:C216)<5,AVERAGEIF(C205:C216,">0",S205:S216), IF(FORECAST($C202,S$205:S$216,$C$205:$C$216)<0,0, IF(FORECAST($C202,S$205:S$216,$C$205:$C$216)>100,100, FORECAST($C202,S$205:S$216,$C$205:$C$216)))) -> 100 | W202: =IF(MAX(C205:C216)-MIN(C205:C216)<5,AVERAGEIF(C205:C216,">0",W205:W216), IF(FORECAST($C202,W$205:W$216,$C$205:$C$216)<0,0, IF(FORECAST($C202,W$205:W$216,$C$205:$C$216)>100,100, FORECAST($C202,W$205:W$216,$C$205:$C$216)))) -> 0 | X202: =IF(MAX(C205:C216)-MIN(C205:C216)<5,AVERAGEIF(C205:C216,">0",X205:X216), IF(FORECAST($C202,X$205:X$216,$C$205:$C$216)<0,0, IF(FORECAST($C202,X$205:X$216,$C$205:$C$216)>100,100, FORECAST($C202,X$205:X$216,$C$205:$C$216)))) -> 99.64962686 | AB202: =IF(MAX(C205:C216)-MIN(C205:C216)<5,AVERAGEIF(C205:C216,">0",AB205:AB216), IF(FORECAST($C202,AB$205:AB$216,$C$205:$C$216)<0,0, IF(FORECAST($C202,AB$205:AB$216,$C$205:$C$216)>100,100, FORECAST($C202,AB$205:AB$216,$C$205:$C$216)))) -> 0.4748859684
B204: Survey | C204: Year | D204: Improved | E204: % Improved < = 30min | H204: Surface water | I204: Improved | J204: % Improved < = 30min | M204: Surface water | N204: Improved | O204: % Improved < = 30min | R204: Surface water | S204: Improved | T204: % Improved < = 30min | W204: Surface water | X204: Improved | Y204: % Improved < = 30min | AB204: Surface water
B205: WHS03 | C205: 2003 | D205: =IF(ISERROR(INDIRECT(CONCATENATE($B205,"!H16"))),"",INDIRECT(CONCATENATE($B205,"!H16"))) -> 98.97124437 | E205: =IF(ISERROR(INDIRECT(CONCATENATE($B205,"!H23"))),"",INDIRECT(CONCATENATE($B205,"!H23"))) -> 100 | H205: =IF(ISERROR(INDIRECT(CONCATENATE($B205,"!H21"))),"",INDIRECT(CONCATENATE($B205,"!H21"))) -> 0 | I205: =IF(ISERROR(INDIRECT(CONCATENATE($B205,"!I16"))),"",INDIRECT(CONCATENATE($B205,"!I16"))) -> 99.37475116 | J205: =IF(ISERROR(INDIRECT(CONCATENATE($B205,"!I23"))),"",INDIRECT(CONCATENATE($B205,"!I23"))) -> 100 | M205: =IF(ISERROR(INDIRECT(CONCATENATE($B205,"!I21"))),"",INDIRECT(CONCATENATE($B205,"!I21"))) -> 0 | N205: =IF(ISERROR(INDIRECT(CONCATENATE($B205,"!J16"))),"",INDIRECT(CONCATENATE($B205,"!J16"))) -> 99.79279208 | O205: =IF(ISERROR(INDIRECT(CONCATENATE($B205,"!J23"))),"",INDIRECT(CONCATENATE($B205,"!J23"))) -> 100 | R205: =IF(ISERROR(INDIRECT(CONCATENATE($B205,"!J21"))),"",INDIRECT(CONCATENATE($B205,"!J21"))) -> 0 | S205: =IF(ISERROR(INDIRECT(CONCATENATE($B205,"!K16"))),"",INDIRECT(CONCATENATE($B205,"!K16"))) -> 99.5855306 | T205: =IF(ISERROR(INDIRECT(CONCATENATE($B205,"!K23"))),"",INDIRECT(CONCATENATE($B205,"!K23"))) -> 100 | W205: =IF(ISERROR(INDIRECT(CONCATENATE($B205,"!K21"))),"",INDIRECT(CONCATENATE($B205,"!K21"))) -> 0 | X205: =IF(ISERROR(INDIRECT(CONCATENATE($B205,"!L16"))),"",INDIRECT(CONCATENATE($B205,"!L16"))) -> 99.37743588 | Y205: =IF(ISERROR(INDIRECT(CONCATENATE($B205,"!L23"))),"",INDIRECT(CONCATENATE($B205,"!L23"))) -> 100 | AB205: =IF(ISERROR(INDIRECT(CONCATENATE($B205,"!L221"))),"",INDIRECT(CONCATENATE($B205,"!L21"))) -> 0
B206: MICS13 | C206: 2013 | D206: 99.90940485 | E206: 100 | H206: 0 | I206: 100 | J206: 100 | M206: 0 | N206: 100 | O206: 99.7615743 | R206: 0 | S206: 100 | T206: 100 | W206: 0 | X206: 99.60426169 | Y206: 100 | AB206: 0.395738307
B218: =CONCATENATE("Urban use of drinking water sources, ",C199,"–",C200) -> Urban use of drinking water sources, 2000–2019 | S218: Data points used for regression
E253: =IF(ISERROR(INDIRECT(CONCATENATE($B253,"!M18"))),"",INDIRECT(CONCATENATE($B253,"!M18"))) ->  | F253: =IF(ISERROR(INDIRECT(CONCATENATE($B253,"!M19"))),"",INDIRECT(CONCATENATE($B253,"!M19"))) ->  | G253: =IF(ISERROR(INDIRECT(CONCATENATE($B253,"!M20"))),"",INDIRECT(CONCATENATE($B253,"!M20"))) ->  | H253: =IF(ISERROR(INDIRECT(CONCATENATE($B253,"!M21"))),"",INDIRECT(CONCATENATE($B253,"!M21"))) ->  | J253: =IF(ISERROR(INDIRECT(CONCATENATE($B253,"!N18"))),"",INDIRECT(CONCATENATE($B253,"!N18"))) ->  | K253: =IF(ISERROR(INDIRECT(CONCATENATE($B253,"!N19"))),"",INDIRECT(CONCATENATE($B253,"!N19"))) ->  | L253: =IF(ISERROR(INDIRECT(CONCATENATE($B253,"!N20"))),"",INDIRECT(CONCATENATE($B253,"!N20"))) ->  | M253: =IF(ISERROR(INDIRECT(CONCATENATE($B253,"!N21"))),"",INDIRECT(CONCATENATE($B253,"!N21"))) ->  | O253: =IF(ISERROR(INDIRECT(CONCATENATE($B253,"!O18"))),"",INDIRECT(CONCATENATE($B253,"!O18"))) ->  | P253: =IF(ISERROR(INDIRECT(CONCATENATE($B253,"!O19"))),"",INDIRECT(CONCATENATE($B253,"!O19"))) ->  | Q253: =IF(ISERROR(INDIRECT(CONCATENATE($B253,"!O20"))),"",INDIRECT(CONCATENATE($B253,"!O20"))) ->  | R253: =IF(ISERROR(INDIRECT(CONCATENATE($B253,"!O21"))),"",INDIRECT(CONCATENATE($B253,"!O21"))) ->  | T253: =IF(ISERROR(INDIRECT(CONCATENATE($B253,"!P18"))),"",INDIRECT(CONCATENATE($B253,"!P18"))) ->  | U253: =IF(ISERROR(INDIRECT(CONCATENATE($B253,"!P19"))),"",INDIRECT(CONCATENATE($B253,"!P19"))) ->  | V253: =IF(ISERROR(INDIRECT(CONCATENATE($B253,"!P20"))),"",INDIRECT(CONCATENATE($B253,"!P20"))) ->  | W253: =IF(ISERROR(INDIRECT(CONCATENATE($B253,"!P21"))),"",INDIRECT(CONCATENATE($B253,"!P21"))) ->  | Y253: =IF(ISERROR(INDIRECT(CONCATENATE($B253,"!Q18"))),"",INDIRECT(CONCATENATE($B253,"!Q18"))) ->  | Z253: =IF(ISERROR(INDIRECT(CONCATENATE($B253,"!Q19"))),"",INDIRECT(CONCATENATE($B253,"!Q19"))) ->  | AA253: =IF(ISERROR(INDIRECT(CONCATENATE($B253,"!Q20"))),"",INDIRECT(CONCATENATE($B253,"!Q20"))) ->  | AB253: =IF(ISERROR(INDIRECT(CONCATENATE($B253,"!Q21"))),"",INDIRECT(CONCATENATE($B253,"!Q1"))) -> 
E254: =IF(ISERROR(INDIRECT(CONCATENATE($B254,"!M18"))),"",INDIRECT(CONCATENATE($B254,"!M18"))) ->  | F254: =IF(ISERROR(INDIRECT(CONCATENATE($B254,"!M19"))),"",INDIRECT(CONCATENATE($B254,"!M19"))) ->  | G254: =IF(ISERROR(INDIRECT(CONCATENATE($B254,"!M20"))),"",INDIRECT(CONCATENATE($B254,"!M20"))) ->  | H254: =IF(ISERROR(INDIRECT(CONCATENATE($B254,"!M21"))),"",INDIRECT(CONCATENATE($B254,"!M21"))) ->  | J254: =IF(ISERROR(INDIRECT(CONCATENATE($B254,"!N18"))),"",INDIRECT(CONCATENATE($B254,"!N18"))) ->  | K254: =IF(ISERROR(INDIRECT(CONCATENATE($B254,"!N19"))),"",INDIRECT(CONCATENATE($B254,"!N19"))) ->  | L254: =IF(ISERROR(INDIRECT(CONCATENATE($B254,"!N20"))),"",INDIRECT(CONCATENATE($B254,"!N20"))) ->  | M254: =IF(ISERROR(INDIRECT(CONCATENATE($B254,"!N21"))),"",INDIRECT(CONCATENATE($B254,"!N21"))) ->  | O254: =IF(ISERROR(INDIRECT(CONCATENATE($B254,"!O18"))),"",INDIRECT(CONCATENATE($B254,"!O18"))) ->  | P254: =IF(ISERROR(INDIRECT(CONCATENATE($B254,"!O19"))),"",INDIRECT(CONCATENATE($B254,"!O19"))) ->  | Q254: =IF(ISERROR(INDIRECT(CONCATENATE($B254,"!O20"))),"",INDIRECT(CONCATENATE($B254,"!O20"))) ->  | R254: =IF(ISERROR(INDIRECT(CONCATENATE($B254,"!O21"))),"",INDIRECT(CONCATENATE($B254,"!O21"))) ->  | T254: =IF(ISERROR(INDIRECT(CONCATENATE($B254,"!P18"))),"",INDIRECT(CONCATENATE($B254,"!P18"))) ->  | U254: =IF(ISERROR(INDIRECT(CONCATENATE($B254,"!P19"))),"",INDIRECT(CONCATENATE($B254,"!P19"))) ->  | V254: =IF(ISERROR(INDIRECT(CONCATENATE($B254,"!P20"))),"",INDIRECT(CONCATENATE($B254,"!P20"))) ->  | W254: =IF(ISERROR(INDIRECT(CONCATENATE($B254,"!P21"))),"",INDIRECT(CONCATENATE($B254,"!P21"))) ->  | Y254: =IF(ISERROR(INDIRECT(CONCATENATE($B254,"!Q18"))),"",INDIRECT(CONCATENATE($B254,"!Q18"))) ->  | Z254: =IF(ISERROR(INDIRECT(CONCATENATE($B254,"!Q19"))),"",INDIRECT(CONCATENATE($B254,"!Q19"))) ->  | AA254: =IF(ISERROR(INDIRECT(CONCATENATE($B254,"!Q20"))),"",INDIRECT(CONCATENATE($B254,"!Q20"))) ->  | AB254: =IF(ISERROR(INDIRECT(CONCATENATE($B254,"!Q21"))),"",INDIRECT(CONCATENATE($B254,"!Q1"))) -> 
E255: =IF(ISERROR(INDIRECT(CONCATENATE($B255,"!M18"))),"",INDIRECT(CONCATENATE($B255,"!M18"))) ->  | F255: =IF(ISERROR(INDIRECT(CONCATENATE($B255,"!M19"))),"",INDIRECT(CONCATENATE($B255,"!M19"))) ->  | G255: =IF(ISERROR(INDIRECT(CONCATENATE($B255,"!M20"))),"",INDIRECT(CONCATENATE($B255,"!M20"))) ->  | H255: =IF(ISERROR(INDIRECT(CONCATENATE($B255,"!M21"))),"",INDIRECT(CONCATENATE($B255,"!M21"))) ->  | J255: =IF(ISERROR(INDIRECT(CONCATENATE($B255,"!N18"))),"",INDIRECT(CONCATENATE($B255,"!N18"))) ->  | K255: =IF(ISERROR(INDIRECT(CONCATENATE($B255,"!N19"))),"",INDIRECT(CONCATENATE($B255,"!N19"))) ->  | L255: =IF(ISERROR(INDIRECT(CONCATENATE($B255,"!N20"))),"",INDIRECT(CONCATENATE($B255,"!N20"))) ->  | M255: =IF(ISERROR(INDIRECT(CONCATENATE($B255,"!N21"))),"",INDIRECT(CONCATENATE($B255,"!N21"))) ->  | O255: =IF(ISERROR(INDIRECT(CONCATENATE($B255,"!O18"))),"",INDIRECT(CONCATENATE($B255,"!O18"))) ->  | P255: =IF(ISERROR(INDIRECT(CONCATENATE($B255,"!O19"))),"",INDIRECT(CONCATENATE($B255,"!O19"))) ->  | Q255: =IF(ISERROR(INDIRECT(CONCATENATE($B255,"!O20"))),"",INDIRECT(CONCATENATE($B255,"!O20"))) ->  | R255: =IF(ISERROR(INDIRECT(CONCATENATE($B255,"!O21"))),"",INDIRECT(CONCATENATE($B255,"!O21"))) ->  | T255: =IF(ISERROR(INDIRECT(CONCATENATE($B255,"!P18"))),"",INDIRECT(CONCATENATE($B255,"!P18"))) ->  | U255: =IF(ISERROR(INDIRECT(CONCATENATE($B255,"!P19"))),"",INDIRECT(CONCATENATE($B255,"!P19"))) ->  | V255: =IF(ISERROR(INDIRECT(CONCATENATE($B255,"!P20"))),"",INDIRECT(CONCATENATE($B255,"!P20"))) ->  | W255: =IF(ISERROR(INDIRECT(CONCATENATE($B255,"!P21"))),"",INDIRECT(CONCATENATE($B255,"!P21"))) ->  | Y255: =IF(ISERROR(INDIRECT(CONCATENATE($B255,"!Q18"))),"",INDIRECT(CONCATENATE($B255,"!Q18"))) ->  | Z255: =IF(ISERROR(INDIRECT(CONCATENATE($B255,"!Q19"))),"",INDIRECT(CONCATENATE($B255,"!Q19"))) ->  | AA255: =IF(ISERROR(INDIRECT(CONCATENATE($B255,"!Q20"))),"",INDIRECT(CONCATENATE($B255,"!Q20"))) ->  | AB255: =IF(ISERROR(INDIRECT(CONCATENATE($B255,"!Q21"))),"",INDIRECT(CONCATENATE($B255,"!Q1"))) -> 
E256: =IF(ISERROR(INDIRECT(CONCATENATE($B256,"!M18"))),"",INDIRECT(CONCATENATE($B256,"!M18"))) ->  | F256: =IF(ISERROR(INDIRECT(CONCATENATE($B256,"!M19"))),"",INDIRECT(CONCATENATE($B256,"!M19"))) ->  | G256: =IF(ISERROR(INDIRECT(CONCATENATE($B256,"!M20"))),"",INDIRECT(CONCATENATE($B256,"!M20"))) ->  | H256: =IF(ISERROR(INDIRECT(CONCATENATE($B256,"!M21"))),"",INDIRECT(CONCATENATE($B256,"!M21"))) ->  | J256: =IF(ISERROR(INDIRECT(CONCATENATE($B256,"!N18"))),"",INDIRECT(CONCATENATE($B256,"!N18"))) ->  | K256: =IF(ISERROR(INDIRECT(CONCATENATE($B256,"!N19"))),"",INDIRECT(CONCATENATE($B256,"!N19"))) ->  | L256: =IF(ISERROR(INDIRECT(CONCATENATE($B256,"!N20"))),"",INDIRECT(CONCATENATE($B256,"!N20"))) ->  | M256: =IF(ISERROR(INDIRECT(CONCATENATE($B256,"!N21"))),"",INDIRECT(CONCATENATE($B256,"!N21"))) ->  | O256: =IF(ISERROR(INDIRECT(CONCATENATE($B256,"!O18"))),"",INDIRECT(CONCATENATE($B256,"!O18"))) ->  | P256: =IF(ISERROR(INDIRECT(CONCATENATE($B256,"!O19"))),"",INDIRECT(CONCATENATE($B256,"!O19"))) ->  | Q256: =IF(ISERROR(INDIRECT(CONCATENATE($B256,"!O20"))),"",INDIRECT(CONCATENATE($B256,"!O20"))) ->  | R256: =IF(ISERROR(INDIRECT(CONCATENATE($B256,"!O21"))),"",INDIRECT(CONCATENATE($B256,"!O21"))) ->  | T256: =IF(ISERROR(INDIRECT(CONCATENATE($B256,"!P18"))),"",INDIRECT(CONCATENATE($B256,"!P18"))) ->  | U256: =IF(ISERROR(INDIRECT(CONCATENATE($B256,"!P19"))),"",INDIRECT(CONCATENATE($B256,"!P19"))) ->  | V256: =IF(ISERROR(INDIRECT(CONCATENATE($B256,"!P20"))),"",INDIRECT(CONCATENATE($B256,"!P20"))) ->  | W256: =IF(ISERROR(INDIRECT(CONCATENATE($B256,"!P21"))),"",INDIRECT(CONCATENATE($B256,"!P21"))) ->  | Y256: =IF(ISERROR(INDIRECT(CONCATENATE($B256,"!Q18"))),"",INDIRECT(CONCATENATE($B256,"!Q18"))) ->  | Z256: =IF(ISERROR(INDIRECT(CONCATENATE($B256,"!Q19"))),"",INDIRECT(CONCATENATE($B256,"!Q19"))) ->  | AA256: =IF(ISERROR(INDIRECT(CONCATENATE($B256,"!Q20"))),"",INDIRECT(CONCATENATE($B256,"!Q20"))) ->  | AB256: =IF(ISERROR(INDIRECT(CONCATENATE($B256,"!Q21"))),"",INDIRECT(CONCATENATE($B256,"!Q1"))) -> 
E257: =IF(ISERROR(INDIRECT(CONCATENATE($B257,"!M18"))),"",INDIRECT(CONCATENATE($B257,"!M18"))) ->  | F257: =IF(ISERROR(INDIRECT(CONCATENATE($B257,"!M19"))),"",INDIRECT(CONCATENATE($B257,"!M19"))) ->  | G257: =IF(ISERROR(INDIRECT(CONCATENATE($B257,"!M20"))),"",INDIRECT(CONCATENATE($B257,"!M20"))) ->  | H257: =IF(ISERROR(INDIRECT(CONCATENATE($B257,"!M21"))),"",INDIRECT(CONCATENATE($B257,"!M21"))) ->  | J257: =IF(ISERROR(INDIRECT(CONCATENATE($B257,"!N18"))),"",INDIRECT(CONCATENATE($B257,"!N18"))) ->  | K257: =IF(ISERROR(INDIRECT(CONCATENATE($B257,"!N19"))),"",INDIRECT(CONCATENATE($B257,"!N19"))) ->  | L257: =IF(ISERROR(INDIRECT(CONCATENATE($B257,"!N20"))),"",INDIRECT(CONCATENATE($B257,"!N20"))) ->  | M257: =IF(ISERROR(INDIRECT(CONCATENATE($B257,"!N21"))),"",INDIRECT(CONCATENATE($B257,"!N21"))) ->  | O257: =IF(ISERROR(INDIRECT(CONCATENATE($B257,"!O18"))),"",INDIRECT(CONCATENATE($B257,"!O18"))) ->  | P257: =IF(ISERROR(INDIRECT(CONCATENATE($B257,"!O19"))),"",INDIRECT(CONCATENATE($B257,"!O19"))) ->  | Q257: =IF(ISERROR(INDIRECT(CONCATENATE($B257,"!O20"))),"",INDIRECT(CONCATENATE($B257,"!O20"))) ->  | R257: =IF(ISERROR(INDIRECT(CONCATENATE($B257,"!O21"))),"",INDIRECT(CONCATENATE($B257,"!O21"))) ->  | T257: =IF(ISERROR(INDIRECT(CONCATENATE($B257,"!P18"))),"",INDIRECT(CONCATENATE($B257,"!P18"))) ->  | U257: =IF(ISERROR(INDIRECT(CONCATENATE($B257,"!P19"))),"",INDIRECT(CONCATENATE($B257,"!P19"))) ->  | V257: =IF(ISERROR(INDIRECT(CONCATENATE($B257,"!P20"))),"",INDIRECT(CONCATENATE($B257,"!P20"))) ->  | W257: =IF(ISERROR(INDIRECT(CONCATENATE($B257,"!P21"))),"",INDIRECT(CONCATENATE($B257,"!P21"))) ->  | Y257: =IF(ISERROR(INDIRECT(CONCATENATE($B257,"!Q18"))),"",INDIRECT(CONCATENATE($B257,"!Q18"))) ->  | Z257: =IF(ISERROR(INDIRECT(CONCATENATE($B257,"!Q19"))),"",INDIRECT(CONCATENATE($B257,"!Q19"))) ->  | AA257: =IF(ISERROR(INDIRECT(CONCATENATE($B257,"!Q20"))),"",INDIRECT(CONCATENATE($B257,"!Q20"))) ->  | AB257: =IF(ISERROR(INDIRECT(CONCATENATE($B257,"!Q21"))),"",INDIRECT(CONCATENATE($B257,"!Q1"))) -> 
A297: RURAL | D297: Poorest | I297: Poor | N297: Middle | S297: Rich | X297: Richest
D298: Improved | E298: Basic | F298: Limited | G298: Unimproved | H298: Surface water | I298: Improved | J298: Basic | K298: Limited | L298: Unimproved | M298: Surface water | N298: Improved | O298: Basic | P298: Limited | Q298: Unimproved | R298: Surface water | S298: Improved | T298: Basic | U298: Limited | V298: Unimproved | W298: Surface water | X298: Improved | Y298: Basic | Z298: Limited | AA298: Unimproved | AB298: Surface water
A299: Forecast period: | C299: 2000 | D299: =IF((D301+H301)>100,D301*100/(D301+H301),D301) -> 100 | E299: =D299*AVERAGEIF(E305:E316,">0")/100 -> 97.61268153 | F299: =D299*(100-AVERAGEIF(E305:E316,">0"))/100 -> 2.387318469 | G299: =100-(E299+F299+H299) -> 0 | H299: =IF((D301+H301)>100,H301*100/(D301+H301),H301) -> 0 | I299: =IF((I301+M301)>100,I301*100/(I301+M301),I301) -> 100 | J299: =I299*AVERAGEIF(J305:J316,">0")/100 -> 100 | K299: =I299*(100-AVERAGEIF(J305:J316,">0"))/100 -> 0 | L299: =100-(J299+K299+M299) -> 0 | M299: =IF((I301+M301)>100,M301*100/(I301+M301),M301) -> 0 | N299: =IF((N301+R301)>100,N301*100/(N301+R301),N301) -> 100 | O299: =N299*AVERAGEIF(O305:O316,">0")/100 -> 100 | P299: =N299*(100-AVERAGEIF(O305:O316,">0"))/100 -> 0 | Q299: =100-(O299+P299+R299) -> 0 | R299: =IF((N301+R301)>100,R301*100/(N301+R301),R301) -> 0 | S299: =IF((S301+W301)>100,S301*100/(S301+W301),S301) -> 100 | T299: =S299*AVERAGEIF(T305:T316,">0")/100 -> 100 | U299: =S299*(100-AVERAGEIF(T305:T316,">0"))/100 -> 0 | V299: =100-(T299+U299+W299) -> 0 | W299: =IF((S301+W301)>100,W301*100/(S301+W301),W301) -> 0 | X299: =IF((X301+AB301)>100,X301*100/(X301+AB301),X301) -> 100 | Y299: =X299*AVERAGEIF(Y305:Y316,">0")/100 -> 100 | Z299: =X299*(100-AVERAGEIF(Y305:Y316,">0"))/100 -> 0 | AA299: =100-(Y299+Z299+AB299) -> 0 | AB299: =IF((X301+AB301)>100,AB301*100/(X301+AB301),AB301) -> 0
C300: 2019 | D300: =IF((D302+H302)>100,D302*100/(D302+H302),D302) -> 90.74051632 | E300: =D300*AVERAGEIF(E305:E316,">0")/100 -> 88.57425121 | F300: =D300*(100-AVERAGEIF(E305:E316,">0"))/100 -> 2.166265105 | G300: =100-(E300+F300+H300) -> 9.259483683 | H300: =IF((D302+H302)>100,H302*100/(D302+H302),H302) -> 0 | I300: =IF((I302+M302)>100,I302*100/(I302+M302),I302) -> 90.26253656 | J300: =I300*AVERAGEIF(J305:J316,">0")/100 -> 90.26253656 | K300: =I300*(100-AVERAGEIF(J305:J316,">0"))/100 -> 0 | L300: =100-(J300+K300+M300) -> 9.737463445 | M300: =IF((I302+M302)>100,M302*100/(I302+M302),M302) -> 0 | N300: =IF((N302+R302)>100,N302*100/(N302+R302),N302) -> 99.78595272 | O300: =N300*AVERAGEIF(O305:O316,">0")/100 -> 99.78595272 | P300: =N300*(100-AVERAGEIF(O305:O316,">0"))/100 -> 0 | Q300: =100-(O300+P300+R300) -> 0.2140472846 | R300: =IF((N302+R302)>100,R302*100/(N302+R302),R302) -> 0 | S300: =IF((S302+W302)>100,S302*100/(S302+W302),S302) -> 99.72732487 | T300: =S300*AVERAGEIF(T305:T316,">0")/100 -> 99.72732487 | U300: =S300*(100-AVERAGEIF(T305:T316,">0"))/100 -> 0 | V300: =100-(T300+U300+W300) -> 0.2726751276 | W300: =IF((S302+W302)>100,W302*100/(S302+W302),W302) -> 0 | X300: =IF((X302+AB302)>100,X302*100/(X302+AB302),X302) -> 99.39230397 | Y300: =X300*AVERAGEIF(Y305:Y316,">0")/100 -> 99.39230397 | Z300: =X300*(100-AVERAGEIF(Y305:Y316,">0"))/100 -> 0 | AA300: =100-(Y300+Z300+AB300) -> 0.6076960257 | AB300: =IF((X302+AB302)>100,AB302*100/(X302+AB302),AB302) -> 0
A301: Regression period: | C301: =MinRegYear(C299,C305:C316) -> 2001 | D301: =IF(MAX(C305:C316)-MIN(C305:C316)<5,AVERAGEIF(C305:C316,">0",D305:D316), IF(FORECAST($C301,D$305:D$316,$C$305:$C$316)<0,0, IF(FORECAST($C301,D$305:D$316,$C$305:$C$316)>100,100, FORECAST($C301,D$305:D$316,$C$305:$C$316)))) -> 100 | H301: =IF(MAX(C305:C316)-MIN(C305:C316)<5,AVERAGEIF(C305:C316,">0",H305:H316), IF(FORECAST($C301,H$305:H$316,$C$305:$C$316)<0,0, IF(FORECAST($C301,H$305:H$316,$C$305:$C$316)>100,100, FORECAST($C301,H$305:H$316,$C$305:$C$316)))) -> 0 | I301: =IF(MAX(C305:C316)-MIN(C305:C316)<5,AVERAGEIF(C305:C316,">0",I305:I316), IF(FORECAST($C301,I$305:I$316,$C$305:$C$316)<0,0, IF(FORECAST($C301,I$305:I$316,$C$305:$C$316)>100,100, FORECAST($C301,I$305:I$316,$C$305:$C$316)))) -> 100 | M301: =IF(MAX(C305:C316)-MIN(C305:C316)<5,AVERAGEIF(C305:C316,">0",M305:M316), IF(FORECAST($C301,M$305:M$316,$C$305:$C$316)<0,0, IF(FORECAST($C301,M$305:M$316,$C$305:$C$316)>100,100, FORECAST($C301,M$305:M$316,$C$305:$C$316)))) -> 0 | N301: =IF(MAX(C305:C316)-MIN(C305:C316)<5,AVERAGEIF(C305:C316,">0",N305:N316), IF(FORECAST($C301,N$305:N$316,$C$305:$C$316)<0,0, IF(FORECAST($C301,N$305:N$316,$C$305:$C$316)>100,100, FORECAST($C301,N$305:N$316,$C$305:$C$316)))) -> 100 | R301: =IF(MAX(C305:C316)-MIN(C305:C316)<5,AVERAGEIF(C305:C316,">0",R305:R316), IF(FORECAST($C301,R$305:R$316,$C$305:$C$316)<0,0, IF(FORECAST($C301,R$305:R$316,$C$305:$C$316)>100,100, FORECAST($C301,R$305:R$316,$C$305:$C$316)))) -> 0 | S301: =IF(MAX(C305:C316)-MIN(C305:C316)<5,AVERAGEIF(C305:C316,">0",S305:S316), IF(FORECAST($C301,S$305:S$316,$C$305:$C$316)<0,0, IF(FORECAST($C301,S$305:S$316,$C$305:$C$316)>100,100, FORECAST($C301,S$305:S$316,$C$305:$C$316)))) -> 100 | W301: =IF(MAX(C305:C316)-MIN(C305:C316)<5,AVERAGEIF(C305:C316,">0",W305:W316), IF(FORECAST($C301,W$305:W$316,$C$305:$C$316)<0,0, IF(FORECAST($C301,W$305:W$316,$C$305:$C$316)>100,100, FORECAST($C301,W$305:W$316,$C$305:$C$316)))) -> 0 | X301: =IF(MAX(C305:C316)-MIN(C305:C316)<5,AVERAGEIF(C305:C316,">0",X305:X316), IF(FORECAST($C301,X$305:X$316,$C$305:$C$316)<0,0, IF(FORECAST($C301,X$305:X$316,$C$305:$C$316)>100,100, FORECAST($C301,X$305:X$316,$C$305:$C$316)))) -> 100 | AB301: =IF(MAX(C305:C316)-MIN(C305:C316)<5,AVERAGEIF(C305:C316,">0",AB305:AB316), IF(FORECAST($C301,AB$305:AB$316,$C$305:$C$316)<0,0, IF(FORECAST($C301,AB$305:AB$316,$C$305:$C$316)>100,100, FORECAST($C301,AB$305:AB$316,$C$305:$C$316)))) -> 0
C302: =MaxRegYear(C300,C305:C316) -> 2015 | D302: =IF(MAX(C305:C316)-MIN(C305:C316)<5,AVERAGEIF(C305:C316,">0",D305:D316), IF(FORECAST($C302,D$305:D$316,$C$305:$C$316)<0,0, IF(FORECAST($C302,D$305:D$316,$C$305:$C$316)>100,100, FORECAST($C302,D$305:D$316,$C$305:$C$316)))) -> 90.74051632 | H302: =IF(MAX(C305:C316)-MIN(C305:C316)<5,AVERAGEIF(C305:C316,">0",H305:H316), IF(FORECAST($C302,H$305:H$316,$C$305:$C$316)<0,0, IF(FORECAST($C302,H$305:H$316,$C$305:$C$316)>100,100, FORECAST($C302,H$305:H$316,$C$305:$C$316)))) -> 0 | I302: =IF(MAX(C305:C316)-MIN(C305:C316)<5,AVERAGEIF(C305:C316,">0",I305:I316), IF(FORECAST($C302,I$305:I$316,$C$305:$C$316)<0,0, IF(FORECAST($C302,I$305:I$316,$C$305:$C$316)>100,100, FORECAST($C302,I$305:I$316,$C$305:$C$316)))) -> 90.26253656 | M302: =IF(MAX(C305:C316)-MIN(C305:C316)<5,AVERAGEIF(C305:C316,">0",M305:M316), IF(FORECAST($C302,M$305:M$316,$C$305:$C$316)<0,0, IF(FORECAST($C302,M$305:M$316,$C$305:$C$316)>100,100, FORECAST($C302,M$305:M$316,$C$305:$C$316)))) -> 0 | N302: =IF(MAX(C305:C316)-MIN(C305:C316)<5,AVERAGEIF(C305:C316,">0",N305:N316), IF(FORECAST($C302,N$305:N$316,$C$305:$C$316)<0,0, IF(FORECAST($C302,N$305:N$316,$C$305:$C$316)>100,100, FORECAST($C302,N$305:N$316,$C$305:$C$316)))) -> 99.78595272 | R302: =IF(MAX(C305:C316)-MIN(C305:C316)<5,AVERAGEIF(C305:C316,">0",R305:R316), IF(FORECAST($C302,R$305:R$316,$C$305:$C$316)<0,0, IF(FORECAST($C302,R$305:R$316,$C$305:$C$316)>100,100, FORECAST($C302,R$305:R$316,$C$305:$C$316)))) -> 0 | S302: =IF(MAX(C305:C316)-MIN(C305:C316)<5,AVERAGEIF(C305:C316,">0",S305:S316), IF(FORECAST($C302,S$305:S$316,$C$305:$C$316)<0,0, IF(FORECAST($C302,S$305:S$316,$C$305:$C$316)>100,100, FORECAST($C302,S$305:S$316,$C$305:$C$316)))) -> 99.72732487 | W302: =IF(MAX(C305:C316)-MIN(C305:C316)<5,AVERAGEIF(C305:C316,">0",W305:W316), IF(FORECAST($C302,W$305:W$316,$C$305:$C$316)<0,0, IF(FORECAST($C302,W$305:W$316,$C$305:$C$316)>100,100, FORECAST($C302,W$305:W$316,$C$305:$C$316)))) -> 0 | X302: =IF(MAX(C305:C316)-MIN(C305:C316)<5,AVERAGEIF(C305:C316,">0",X305:X316), IF(FORECAST($C302,X$305:X$316,$C$305:$C$316)<0,0, IF(FORECAST($C302,X$305:X$316,$C$305:$C$316)>100,100, FORECAST($C302,X$305:X$316,$C$305:$C$316)))) -> 99.39230397 | AB302: =IF(MAX(C305:C316)-MIN(C305:C316)<5,AVERAGEIF(C305:C316,">0",AB305:AB316), IF(FORECAST($C302,AB$305:AB$316,$C$305:$C$316)<0,0, IF(FORECAST($C302,AB$305:AB$316,$C$305:$C$316)>100,100, FORECAST($C302,AB$305:AB$316,$C$305:$C$316)))) -> 0
B304: Survey | C304: Year | D304: Improved | E304: % Improved < = 30min | H304: Surface water | I304: Improved | J304: % Improved < = 30min | M304: Surface water | N304: Improved | O304: % Improved < = 30min | R304: Surface water | S304: Improved | T304: % Improved < = 30min | W304: Surface water | X304: Improved | Y304: % Improved < = 30min | AB304: Surface water
B305: WHS03 | C305: 2003 | D305: =IF(ISERROR(INDIRECT(CONCATENATE($B305,"!M16"))),"",INDIRECT(CONCATENATE($B305,"!M16"))) -> 99.24617049 | E305: =IF(ISERROR(INDIRECT(CONCATENATE($B305,"!M23"))),"",INDIRECT(CONCATENATE($B305,"!M23"))) -> 95.22536306 | H305: =IF(ISERROR(INDIRECT(CONCATENATE($B305,"!M21"))),"",INDIRECT(CONCATENATE($B305,"!M21"))) -> 0 | I305: =IF(ISERROR(INDIRECT(CONCATENATE($B305,"!N16"))),"",INDIRECT(CONCATENATE($B305,"!N16"))) -> 100 | J305: =IF(ISERROR(INDIRECT(CONCATENATE($B305,"!N23"))),"",INDIRECT(CONCATENATE($B305,"!N23"))) -> 100 | M305: =IF(ISERROR(INDIRECT(CONCATENATE($B305,"!N21"))),"",INDIRECT(CONCATENATE($B305,"!N21"))) -> 0 | N305: =IF(ISERROR(INDIRECT(CONCATENATE($B305,"!O16"))),"",INDIRECT(CONCATENATE($B305,"!O16"))) -> 100 | O305: =IF(ISERROR(INDIRECT(CONCATENATE($B305,"!O23"))),"",INDIRECT(CONCATENATE($B305,"!O23"))) -> 100 | R305: =IF(ISERROR(INDIRECT(CONCATENATE($B305,"!O21"))),"",INDIRECT(CONCATENATE($B305,"!O21"))) -> 0 | S305: =IF(ISERROR(INDIRECT(CONCATENATE($B305,"!P16"))),"",INDIRECT(CONCATENATE($B305,"!P16"))) -> 100 | T305: =IF(ISERROR(INDIRECT(CONCATENATE($B305,"!P23"))),"",INDIRECT(CONCATENATE($B305,"!P23"))) -> 100 | W305: =IF(ISERROR(INDIRECT(CONCATENATE($B305,"!P21"))),"",INDIRECT(CONCATENATE($B305,"!P21"))) -> 0 | X305: =IF(ISERROR(INDIRECT(CONCATENATE($B305,"!Q16"))),"",INDIRECT(CONCATENATE($B305,"!Q16"))) -> 100 | Y305: =IF(ISERROR(INDIRECT(CONCATENATE($B305,"!Q23"))),"",INDIRECT(CONCATENATE($B305,"!Q23"))) -> 100 | AB305: =IF(ISERROR(INDIRECT(CONCATENATE($B305,"!Q221"))),"",INDIRECT(CONCATENATE($B305,"!Q21"))) -> 0
B306: MICS13 | C306: 2013 | D306: 92.15812535 | E306: 100 | H306: 0 | I306: 91.88544713 | J306: 100 | M306: 0 | N306: 99.82162726 | O306: 100 | R306: 0 | S306: 99.77277073 | T306: 100 | W306: 0 | X306: 99.49358665 | Y306: 100 | AB306: 0
B318: =CONCATENATE("Rural use of drinking water sources, ",C299,"–",C300) -> Rural use of drinking water sources, 2000–2019 | S318: Data points used for regression

Sheet Sanitation
B4: Summary of trends in use of sanitation facilities by wealth quintile (%)
B5: =IF(ISERROR(INDIRECT(CONCATENATE($B105,"!A2"))),"",INDIRECT(CONCATENATE($B105,"!A2"))) -> Uruguay
B7: =B118 -> National use of sanitation facilities, 2000–2019 | J7: =B218 -> Urban use of sanitation facilities, 2000–2019 | R7: =B318 -> Rural use of sanitation facilities, 2000–2019
B31: =IF(ISERROR(INDIRECT(CONCATENATE($B105,"!A2"))),"",INDIRECT(CONCATENATE($B105,"!A2"))) -> Uruguay | F31: Poorest | J31: Poor | N31: Middle | R31: Rich | V31: Richest
F32: Basic | G32: Limited | H32: Unimproved | I32: Open defecation | J32: Basic | K32: Limited | L32: Unimproved | M32: Open defecation | N32: Basic | O32: Limited | P32: Unimproved | Q32: Open defecation | R32: Basic | S32: Limited | T32: Unimproved | U32: Open defecation | V32: Basic | W32: Limited | X32: Unimproved | Y32: Open defecation
B33: NATIONAL | D33: Estimate | E33: =C99 -> 2000 | F33: =E99 -> 95.51728977 | G33: =F99 -> 4.482710229 | H33: 0 | I33: 0 | J33: =J99 -> 97.03149299 | K33: =K99 -> 2.845281388 | L33: 0.1232256204 | M33: 0 | N33: =O99 -> 97.69004092 | O33: =P99 -> 2.309959079 | P33: 0 | Q33: 0 | R33: =T99 -> 98.06870903 | S33: =U99 -> 1.931290971 | T33: 0 | U33: 0 | V33: =Y99 -> 98.41054797 | W33: =Z99 -> 1.505631694 | X33: 0.08382033444 | Y33: 0
E34: =C100 -> 2019 | F34: =E100 -> 88.47377423 | G34: 4.152151864 | H34: 4.575301072 | I34: 2.798772834 | J34: =J100 -> 97.08885895 | K34: 2.846963546 | L34: 0.017674189 | M34: 0.04650331604 | N34: =O100 -> 97.64978501 | O34: 2.309007195 | P34: 0 | Q34: 0.04120779443 | R34: =T100 -> 96.69497331 | S34: 1.904237659 | T34: 1.400789031 | U34: 0 | V34: =Y100 -> 97.88436704 | W34: 1.497581391 | X34: 0.6180515637 | Y34: 0
B36: URBAN | D36: Estimate | E36: =C199 -> 2000 | F36: =E199 -> 95.29013038 | G36: =F199 -> 4.709869621 | H36: 0 | I36: 0 | J36: =J199 -> 98.05982261 | K36: =K199 -> 1.94017739 | L36: 0 | M36: 0 | N36: =O199 -> 97.27770977 | O36: =P199 -> 2.722290234 | P36: 0 | Q36: 0 | R36: =T199 -> 98.19716939 | S36: =U199 -> 1.80283061 | T36: 0 | U36: 0 | V36: =Y199 -> 98.31252441 | W36: =Z199 -> 1.557637004 | X36: 0.1298385882 | Y36: 0
E37: =C200 -> 2019 | F37: =E200 -> 88.3148222 | G37: 4.365103674 | H37: 4.289810284 | I37: 3.030263842 | J37: =J200 -> 97.96581617 | K37: 1.938317411 | L37: 0.04463180263 | M37: 0.05123461922 | N37: =O200 -> 97.23334908 | O37: 2.721048812 | P37: 0 | Q37: 0.04560210976 | R37: =T200 -> 96.6977367 | S37: 1.775302086 | T37: 1.526961219 | U37: 0 | V37: =Y200 -> 97.77722603 | W37: 1.549155881 | X37: 0.6736180885 | Y37: 0
B39: RURAL | D39: Estimate | E39: =C299 -> 2000 | F39: =E299 -> 93.20494858 | G39: =F299 -> 6.795051424 | H39: 0 | I39: 0 | J39: =J299 -> 96.66803301 | K39: =K299 -> 3.331966992 | L39: 0 | M39: 0 | N39: =O299 -> 98.58360224 | O39: =P299 -> 0.8103666367 | P39: 0.6060311185 | Q39: 0 | R39: =T299 -> 98.82755421 | S39: =U299 -> 1.172445788 | T39: 0 | U39: 0 | V39: =Y299 -> 99.16136959 | W39: =Z299 -> 0.8386304064 | X39: 0 | Y39: 0
E40: =C300 -> 2019 | F40: =E300 -> 86.01927327 | G40: 6.271184034 | H40: 7.253563627 | I40: 0.4559790654 | J40: =J300 -> 96.32371902 | K40: 3.32009913 | L40: 0.3561818485 | M40: 0 | N40: =O300 -> 99.18469235 | O40: 0.8153076548 | P40: 0 | Q40: 0 | R40: =T300 -> 98.82755421 | S40: 1.172445788 | T40: 0 | U40: 0 | V40: =Y300 -> 99.16136959 | W40: 0.8386304064 | X40: 0 | Y40: 0
A97: NATIONAL | D97: Poorest | I97: Poor | N97: Middle | S97: Rich | X97: Richest
D98: Improved | E98: Basic | F98: Limited | G98: Unimproved | H98: Open defecation | I98: Improved | J98: Basic | K98: Limited | L98: Unimproved | M98: Open defecation | N98: Improved | O98: Basic | P98: Limited | Q98: Unimproved | R98: Open defecation | S98: Improved | T98: Basic | U98: Limited | V98: Unimproved | W98: Open defecation | X98: Improved | Y98: Basic | Z98: Limited | AA98: Unimproved | AB98: Open defecation
A99: Forecast period: | C99: 2000 | D99: =IF((D101+H101)>100,D101*100/(D101+H101),D101) -> 100 | E99: =D99*AVERAGEIF(E105:E116,">0")/100 -> 95.51728977 | F99: =D99*(100-AVERAGEIF(E105:E116,">0"))/100 -> 4.482710229 | G99: =100-(E99+F99+H99) -> 0 | H99: =IF((D101+H101)>100,H101*100/(D101+H101),H101) -> 0 | I99: =IF((I101+M101)>100,I101*100/(I101+M101),I101) -> 99.87677438 | J99: =I99*AVERAGEIF(J105:J116,">0")/100 -> 97.03149299 | K99: =I99*(100-AVERAGEIF(J105:J116,">0"))/100 -> 2.845281388 | L99: =100-(J99+K99+M99) -> 0.1232256204 | M99: =IF((I101+M101)>100,M101*100/(I101+M101),M101) -> 0 | N99: =IF((N101+R101)>100,N101*100/(N101+R101),N101) -> 100 | O99: =N99*AVERAGEIF(O105:O116,">0")/100 -> 97.69004092 | P99: =N99*(100-AVERAGEIF(O105:O116,">0"))/100 -> 2.309959079 | Q99: =100-(O99+P99+R99) -> 0 | R99: =IF((N101+R101)>100,R101*100/(N101+R101),R101) -> 0 | S99: =IF((S101+W101)>100,S101*100/(S101+W101),S101) -> 100 | T99: =S99*AVERAGEIF(T105:T116,">0")/100 -> 98.06870903 | U99: =S99*(100-AVERAGEIF(T105:T116,">0"))/100 -> 1.931290971 | V99: =100-(T99+U99+W99) -> 0 | W99: =IF((S101+W101)>100,W101*100/(S101+W101),W101) -> 0 | X99: =IF((X101+AB101)>100,X101*100/(X101+AB101),X101) -> 99.91617967 | Y99: =X99*AVERAGEIF(Y105:Y116,">0")/100 -> 98.41054797 | Z99: =X99*(100-AVERAGEIF(Y105:Y116,">0"))/100 -> 1.505631694 | AA99: =100-(Y99+Z99+AB99) -> 0.08382033444 | AB99: =IF((X101+AB101)>100,AB101*100/(X101+AB101),AB101) -> 0
C100: 2019 | D100: =IF((D102+H102)>100,D102*100/(D102+H102),D102) -> 92.62592609 | E100: =D100*AVERAGEIF(E105:E116,">0")/100 -> 88.47377423 | F100: =D100*(100-AVERAGEIF(E105:E116,">0"))/100 -> 4.152151864 | G100: =100-(E100+F100+H100) -> 4.575301072 | H100: =IF((D102+H102)>100,H102*100/(D102+H102),H102) -> 2.798772834 | I100: =IF((I102+M102)>100,I102*100/(I102+M102),I102) -> 99.93582249 | J100: =I100*AVERAGEIF(J105:J116,">0")/100 -> 97.08885895 | K100: =I100*(100-AVERAGEIF(J105:J116,">0"))/100 -> 2.846963546 | L100: =100-(J100+K100+M100) -> 0.017674189 | M100: =IF((I102+M102)>100,M102*100/(I102+M102),M102) -> 0.04650331604 | N100: =IF((N102+R102)>100,N102*100/(N102+R102),N102) -> 99.95879221 | O100: =N100*AVERAGEIF(O105:O116,">0")/100 -> 97.64978501 | P100: =N100*(100-AVERAGEIF(O105:O116,">0"))/100 -> 2.309007195 | Q100: =100-(O100+P100+R100) -> 0 | R100: =IF((N102+R102)>100,R102*100/(N102+R102),R102) -> 0.04120779443 | S100: =IF((S102+W102)>100,S102*100/(S102+W102),S102) -> 98.59921097 | T100: =S100*AVERAGEIF(T105:T116,">0")/100 -> 96.69497331 | U100: =S100*(100-AVERAGEIF(T105:T116,">0"))/100 -> 1.904237659 | V100: =100-(T100+U100+W100) -> 1.400789031 | W100: =IF((S102+W102)>100,W102*100/(S102+W102),W102) -> 0 | X100: =IF((X102+AB102)>100,X102*100/(X102+AB102),X102) -> 99.38194844 | Y100: =X100*AVERAGEIF(Y105:Y116,">0")/100 -> 97.88436704 | Z100: =X100*(100-AVERAGEIF(Y105:Y116,">0"))/100 -> 1.497581391 | AA100: =100-(Y100+Z100+AB100) -> 0.6180515637 | AB100: =IF((X102+AB102)>100,AB102*100/(X102+AB102),AB102) -> 0
A101: Regression period: | C101: =MinRegYear(C99,C105:C116) -> 2001 | D101: =IF(MAX(C105:C116)-MIN(C105:C116)<5,AVERAGEIF(C105:C116,">0",D105:D116), IF(FORECAST($C101,D$105:D$116,$C$105:$C$116)<0,0, IF(FORECAST($C101,D$105:D$116,$C$105:$C$116)>100,100, FORECAST($C101,D$105:D$116,$C$105:$C$116)))) -> 100 | H101: =IF(MAX(C105:C116)-MIN(C105:C116)<5,AVERAGEIF(C105:C116,">0",H105:H116), IF(FORECAST($C101,H$105:H$116,$C$105:$C$116)<0,0, IF(FORECAST($C101,H$105:H$116,$C$105:$C$116)>100,100, FORECAST($C101,H$105:H$116,$C$105:$C$116)))) -> 0 | I101: =IF(MAX(C105:C116)-MIN(C105:C116)<5,AVERAGEIF(C105:C116,">0",I105:I116), IF(FORECAST($C101,I$105:I$116,$C$105:$C$116)<0,0, IF(FORECAST($C101,I$105:I$116,$C$105:$C$116)>100,100, FORECAST($C101,I$105:I$116,$C$105:$C$116)))) -> 99.87677438 | M101: =IF(MAX(C105:C116)-MIN(C105:C116)<5,AVERAGEIF(C105:C116,">0",M105:M116), IF(FORECAST($C101,M$105:M$116,$C$105:$C$116)<0,0, IF(FORECAST($C101,M$105:M$116,$C$105:$C$116)>100,100, FORECAST($C101,M$105:M$116,$C$105:$C$116)))) -> 0 | N101: =IF(MAX(C105:C116)-MIN(C105:C116)<5,AVERAGEIF(C105:C116,">0",N105:N116), IF(FORECAST($C101,N$105:N$116,$C$105:$C$116)<0,0, IF(FORECAST($C101,N$105:N$116,$C$105:$C$116)>100,100, FORECAST($C101,N$105:N$116,$C$105:$C$116)))) -> 100 | R101: =IF(MAX(C105:C116)-MIN(C105:C116)<5,AVERAGEIF(C105:C116,">0",R105:R116), IF(FORECAST($C101,R$105:R$116,$C$105:$C$116)<0,0, IF(FORECAST($C101,R$105:R$116,$C$105:$C$116)>100,100, FORECAST($C101,R$105:R$116,$C$105:$C$116)))) -> 0 | S101: =IF(MAX(C105:C116)-MIN(C105:C116)<5,AVERAGEIF(C105:C116,">0",S105:S116), IF(FORECAST($C101,S$105:S$116,$C$105:$C$116)<0,0, IF(FORECAST($C101,S$105:S$116,$C$105:$C$116)>100,100, FORECAST($C101,S$105:S$116,$C$105:$C$116)))) -> 100 | W101: =IF(MAX(C105:C116)-MIN(C105:C116)<5,AVERAGEIF(C105:C116,">0",W105:W116), IF(FORECAST($C101,W$105:W$116,$C$105:$C$116)<0,0, IF(FORECAST($C101,W$105:W$116,$C$105:$C$116)>100,100, FORECAST($C101,W$105:W$116,$C$105:$C$116)))) -> 0 | X101: =IF(MAX(C105:C116)-MIN(C105:C116)<5,AVERAGEIF(C105:C116,">0",X105:X116), IF(FORECAST($C101,X$105:X$116,$C$105:$C$116)<0,0, IF(FORECAST($C101,X$105:X$116,$C$105:$C$116)>100,100, FORECAST($C101,X$105:X$116,$C$105:$C$116)))) -> 99.91617967 | AB101: =IF(MAX(C105:C116)-MIN(C105:C116)<5,AVERAGEIF(C105:C116,">0",AB105:AB116), IF(FORECAST($C101,AB$105:AB$116,$C$105:$C$116)<0,0, IF(FORECAST($C101,AB$105:AB$116,$C$105:$C$116)>100,100, FORECAST($C101,AB$105:AB$116,$C$105:$C$116)))) -> 0
C102: =MaxRegYear(C100,C105:C116) -> 2015 | D102: =IF(MAX(C105:C116)-MIN(C105:C116)<5,AVERAGEIF(C105:C116,">0",D105:D116), IF(FORECAST($C102,D$105:D$116,$C$105:$C$116)<0,0, IF(FORECAST($C102,D$105:D$116,$C$105:$C$116)>100,100, FORECAST($C102,D$105:D$116,$C$105:$C$116)))) -> 92.62592609 | H102: =IF(MAX(C105:C116)-MIN(C105:C116)<5,AVERAGEIF(C105:C116,">0",H105:H116), IF(FORECAST($C102,H$105:H$116,$C$105:$C$116)<0,0, IF(FORECAST($C102,H$105:H$116,$C$105:$C$116)>100,100, FORECAST($C102,H$105:H$116,$C$105:$C$116)))) -> 2.798772834 | I102: =IF(MAX(C105:C116)-MIN(C105:C116)<5,AVERAGEIF(C105:C116,">0",I105:I116), IF(FORECAST($C102,I$105:I$116,$C$105:$C$116)<0,0, IF(FORECAST($C102,I$105:I$116,$C$105:$C$116)>100,100, FORECAST($C102,I$105:I$116,$C$105:$C$116)))) -> 99.93582249 | M102: =IF(MAX(C105:C116)-MIN(C105:C116)<5,AVERAGEIF(C105:C116,">0",M105:M116), IF(FORECAST($C102,M$105:M$116,$C$105:$C$116)<0,0, IF(FORECAST($C102,M$105:M$116,$C$105:$C$116)>100,100, FORECAST($C102,M$105:M$116,$C$105:$C$116)))) -> 0.04650331604 | N102: =IF(MAX(C105:C116)-MIN(C105:C116)<5,AVERAGEIF(C105:C116,">0",N105:N116), IF(FORECAST($C102,N$105:N$116,$C$105:$C$116)<0,0, IF(FORECAST($C102,N$105:N$116,$C$105:$C$116)>100,100, FORECAST($C102,N$105:N$116,$C$105:$C$116)))) -> 99.95879221 | R102: =IF(MAX(C105:C116)-MIN(C105:C116)<5,AVERAGEIF(C105:C116,">0",R105:R116), IF(FORECAST($C102,R$105:R$116,$C$105:$C$116)<0,0, IF(FORECAST($C102,R$105:R$116,$C$105:$C$116)>100,100, FORECAST($C102,R$105:R$116,$C$105:$C$116)))) -> 0.04120779443 | S102: =IF(MAX(C105:C116)-MIN(C105:C116)<5,AVERAGEIF(C105:C116,">0",S105:S116), IF(FORECAST($C102,S$105:S$116,$C$105:$C$116)<0,0, IF(FORECAST($C102,S$105:S$116,$C$105:$C$116)>100,100, FORECAST($C102,S$105:S$116,$C$105:$C$116)))) -> 98.59921097 | W102: =IF(MAX(C105:C116)-MIN(C105:C116)<5,AVERAGEIF(C105:C116,">0",W105:W116), IF(FORECAST($C102,W$105:W$116,$C$105:$C$116)<0,0, IF(FORECAST($C102,W$105:W$116,$C$105:$C$116)>100,100, FORECAST($C102,W$105:W$116,$C$105:$C$116)))) -> 0 | X102: =IF(MAX(C105:C116)-MIN(C105:C116)<5,AVERAGEIF(C105:C116,">0",X105:X116), IF(FORECAST($C102,X$105:X$116,$C$105:$C$116)<0,0, IF(FORECAST($C102,X$105:X$116,$C$105:$C$116)>100,100, FORECAST($C102,X$105:X$116,$C$105:$C$116)))) -> 99.38194844 | AB102: =IF(MAX(C105:C116)-MIN(C105:C116)<5,AVERAGEIF(C105:C116,">0",AB105:AB116), IF(FORECAST($C102,AB$105:AB$116,$C$105:$C$116)<0,0, IF(FORECAST($C102,AB$105:AB$116,$C$105:$C$116)>100,100, FORECAST($C102,AB$105:AB$116,$C$105:$C$116)))) -> 0
B104: Survey | C104: Year | D104: Improved | E104: Not shared | H104: Open defecation | I104: Improved | J104: Not shared | M104: Open defecation | N104: Improved | O104: Not shared | R104: Open defecation | S104: Improved | T104: Not shared | W104: Open defecation | X104: Improved | Y104: Not shared | AB104: Open defecation
B105: WHS03 | C105: 2003 | D105: =IF(ISERROR(INDIRECT(CONCATENATE($B105,"!C122"))),"",INDIRECT(CONCATENATE($B105,"!C122"))) -> 99.84499631 | E105: =IF(ISERROR(INDIRECT(CONCATENATE($B105,"!C129"))),"",INDIRECT(CONCATENATE($B105,"!C129"))) -> 97.95174986 | H105: =IF(ISERROR(INDIRECT(CONCATENATE($B105,"!C127"))),"",INDIRECT(CONCATENATE($B105,"!C127"))) -> 0 | I105: =IF(ISERROR(INDIRECT(CONCATENATE($B105,"!D122"))),"",INDIRECT(CONCATENATE($B105,"!D122"))) -> 99.88520982 | J105: =IF(ISERROR(INDIRECT(CONCATENATE($B105,"!D129"))),"",INDIRECT(CONCATENATE($B105,"!D129"))) -> 99.19059598 | M105: =IF(ISERROR(INDIRECT(CONCATENATE($B105,"!D127"))),"",INDIRECT(CONCATENATE($B105,"!D127"))) -> 0 | N105: =IF(ISERROR(INDIRECT(CONCATENATE($B105,"!E122"))),"",INDIRECT(CONCATENATE($B105,"!E122"))) -> 100 | O105: =IF(ISERROR(INDIRECT(CONCATENATE($B105,"!E129"))),"",INDIRECT(CONCATENATE($B105,"!E129"))) -> 99.85400167 | R105: =IF(ISERROR(INDIRECT(CONCATENATE($B105,"!E127"))),"",INDIRECT(CONCATENATE($B105,"!E127"))) -> 0 | S105: =IF(ISERROR(INDIRECT(CONCATENATE($B105,"!F122"))),"",INDIRECT(CONCATENATE($B105,"!F122"))) -> 99.83989213 | T105: =IF(ISERROR(INDIRECT(CONCATENATE($B105,"!F129"))),"",INDIRECT(CONCATENATE($B105,"!F129"))) -> 99.67875559 | W105: =IF(ISERROR(INDIRECT(CONCATENATE($B105,"!F127"))),"",INDIRECT(CONCATENATE($B105,"!F127"))) -> 0 | X105: =IF(ISERROR(INDIRECT(CONCATENATE($B105,"!G122"))),"",INDIRECT(CONCATENATE($B105,"!G122"))) -> 99.83986092 | Y105: =IF(ISERROR(INDIRECT(CONCATENATE($B105,"!G129"))),"",INDIRECT(CONCATENATE($B105,"!G129"))) -> 99.75752409 | AB105: =IF(ISERROR(INDIRECT(CONCATENATE($B105,"!G2127"))),"",INDIRECT(CONCATENATE($B105,"!G127"))) -> 0
B106: MICS13 | C106: 2013 | D106: 93.82910446 | E106: 93.08282968 | H106: 2.332310695 | I106: 99.92738705 | J106: 95.11182036 | M106: 0.03875276337 | N106: 99.96566017 | O106: 95.52608017 | R106: 0.0343398287 | S106: 98.80599116 | T106: 96.45866247 | W106: 0 | X106: 99.45826718 | Y106: 97.22868635 | AB106: 0
B118: =CONCATENATE("National use of sanitation facilities, ",C99,"–",C100) -> National use of sanitation facilities, 2000–2019 | S118: Data points used for regression
A197: URBAN | D197: Poorest | I197: Poor | N197: Middle | S197: Rich | X197: Richest
D198: Improved | E198: Basic | F198: Limited | G198: Unimproved | H198: Open defecation | I198: Improved | J198: Basic | K198: Limited | L198: Unimproved | M198: Open defecation | N198: Improved | O198: Basic | P198: Limited | Q198: Unimproved | R198: Open defecation | S198: Improved | T198: Basic | U198: Limited | V198: Unimproved | W198: Open defecation | X198: Improved | Y198: Basic | Z198: Limited | AA198: Unimproved | AB198: Open defecation
A199: Forecast period: | C199: =MinBase(C205:C216) -> 2000 | D199: =IF((D201+H201)>100,D201*100/(D201+H201),D201) -> 100 | E199: =D199*AVERAGEIF(E205:E216,">0")/100 -> 95.29013038 | F199: =D199*(100-AVERAGEIF(E205:E216,">0"))/100 -> 4.709869621 | G199: =100-(E199+F199+H199) -> 0 | H199: =IF((D201+H201)>100,H201*100/(D201+H201),H201) -> 0 | I199: =IF((I201+M201)>100,I201*100/(I201+M201),I201) -> 100 | J199: =I199*AVERAGEIF(J205:J216,">0")/100 -> 98.05982261 | K199: =I199*(100-AVERAGEIF(J205:J216,">0"))/100 -> 1.94017739 | L199: =100-(J199+K199+M199) -> 0 | M199: =IF((I201+M201)>100,M201*100/(I201+M201),M201) -> 0 | N199: =IF((N201+R201)>100,N201*100/(N201+R201),N201) -> 100 | O199: =N199*AVERAGEIF(O205:O216,">0")/100 -> 97.27770977 | P199: =N199*(100-AVERAGEIF(O205:O216,">0"))/100 -> 2.722290234 | Q199: =100-(O199+P199+R199) -> 0 | R199: =IF((N201+R201)>100,R201*100/(N201+R201),R201) -> 0 | S199: =IF((S201+W201)>100,S201*100/(S201+W201),S201) -> 100 | T199: =S199*AVERAGEIF(T205:T216,">0")/100 -> 98.19716939 | U199: =S199*(100-AVERAGEIF(T205:T216,">0"))/100 -> 1.80283061 | V199: =100-(T199+U199+W199) -> 0 | W199: =IF((S201+W201)>100,W201*100/(S201+W201),W201) -> 0 | X199: =IF((X201+AB201)>100,X201*100/(X201+AB201),X201) -> 99.87016141 | Y199: =X199*AVERAGEIF(Y205:Y216,">0")/100 -> 98.31252441 | Z199: =X199*(100-AVERAGEIF(Y205:Y216,">0"))/100 -> 1.557637004 | AA199: =100-(Y199+Z199+AB199) -> 0.1298385882 | AB199: =IF((X201+AB201)>100,AB201*100/(X201+AB201),AB201) -> 0
C200: =MaxTarget(C205:C216) -> 2019 | D200: =IF((D202+H202)>100,D202*100/(D202+H202),D202) -> 92.67992587 | E200: =D200*AVERAGEIF(E205:E216,">0")/100 -> 88.3148222 | F200: =D200*(100-AVERAGEIF(E205:E216,">0"))/100 -> 4.365103674 | G200: =100-(E200+F200+H200) -> 4.289810284 | H200: =IF((D202+H202)>100,H202*100/(D202+H202),H202) -> 3.030263842 | I200: =IF((I202+M202)>100,I202*100/(I202+M202),I202) -> 99.90413358 | J200: =I200*AVERAGEIF(J205:J216,">0")/100 -> 97.96581617 | K200: =I200*(100-AVERAGEIF(J205:J216,">0"))/100 -> 1.938317411 | L200: =100-(J200+K200+M200) -> 0.04463180263 | M200: =IF((I202+M202)>100,M202*100/(I202+M202),M202) -> 0.05123461922 | N200: =IF((N202+R202)>100,N202*100/(N202+R202),N202) -> 99.95439789 | O200: =N200*AVERAGEIF(O205:O216,">0")/100 -> 97.23334908 | P200: =N200*(100-AVERAGEIF(O205:O216,">0"))/100 -> 2.721048812 | Q200: =100-(O200+P200+R200) -> 0 | R200: =IF((N202+R202)>100,R202*100/(N202+R202),R202) -> 0.04560210976 | S200: =IF((S202+W202)>100,S202*100/(S202+W202),S202) -> 98.47303878 | T200: =S200*AVERAGEIF(T205:T216,">0")/100 -> 96.6977367 | U200: =S200*(100-AVERAGEIF(T205:T216,">0"))/100 -> 1.775302086 | V200: =100-(T200+U200+W200) -> 1.526961219 | W200: =IF((S202+W202)>100,W202*100/(S202+W202),W202) -> 0 | X200: =IF((X202+AB202)>100,X202*100/(X202+AB202),X202) -> 99.32638191 | Y200: =X200*AVERAGEIF(Y205:Y216,">0")/100 -> 97.77722603 | Z200: =X200*(100-AVERAGEIF(Y205:Y216,">0"))/100 -> 1.549155881 | AA200: =100-(Y200+Z200+AB200) -> 0.6736180885 | AB200: =IF((X202+AB202)>100,AB202*100/(X202+AB202),AB202) -> 0
A201: Regression period: | C201: =MinRegYear(C199,C205:C216) -> 2001 | D201: =IF(MAX(C205:C216)-MIN(C205:C216)<5,AVERAGEIF(C205:C216,">0",D205:D216), IF(FORECAST($C201,D$205:D$216,$C$205:$C$216)<0,0, IF(FORECAST($C201,D$205:D$216,$C$205:$C$216)>100,100, FORECAST($C201,D$205:D$216,$C$205:$C$216)))) -> 100 | H201: =IF(MAX(C205:C216)-MIN(C205:C216)<5,AVERAGEIF(C205:C216,">0",H205:H216), IF(FORECAST($C201,H$205:H$216,$C$205:$C$216)<0,0, IF(FORECAST($C201,H$205:H$216,$C$205:$C$216)>100,100, FORECAST($C201,H$205:H$216,$C$205:$C$216)))) -> 0 | I201: =IF(MAX(C205:C216)-MIN(C205:C216)<5,AVERAGEIF(C205:C216,">0",I205:I216), IF(FORECAST($C201,I$205:I$216,$C$205:$C$216)<0,0, IF(FORECAST($C201,I$205:I$216,$C$205:$C$216)>100,100, FORECAST($C201,I$205:I$216,$C$205:$C$216)))) -> 100 | M201: =IF(MAX(C205:C216)-MIN(C205:C216)<5,AVERAGEIF(C205:C216,">0",M205:M216), IF(FORECAST($C201,M$205:M$216,$C$205:$C$216)<0,0, IF(FORECAST($C201,M$205:M$216,$C$205:$C$216)>100,100, FORECAST($C201,M$205:M$216,$C$205:$C$216)))) -> 0 | N201: =IF(MAX(C205:C216)-MIN(C205:C216)<5,AVERAGEIF(C205:C216,">0",N205:N216), IF(FORECAST($C201,N$205:N$216,$C$205:$C$216)<0,0, IF(FORECAST($C201,N$205:N$216,$C$205:$C$216)>100,100, FORECAST($C201,N$205:N$216,$C$205:$C$216)))) -> 100 | R201: =IF(MAX(C205:C216)-MIN(C205:C216)<5,AVERAGEIF(C205:C216,">0",R205:R216), IF(FORECAST($C201,R$205:R$216,$C$205:$C$216)<0,0, IF(FORECAST($C201,R$205:R$216,$C$205:$C$216)>100,100, FORECAST($C201,R$205:R$216,$C$205:$C$216)))) -> 0 | S201: =IF(MAX(C205:C216)-MIN(C205:C216)<5,AVERAGEIF(C205:C216,">0",S205:S216), IF(FORECAST($C201,S$205:S$216,$C$205:$C$216)<0,0, IF(FORECAST($C201,S$205:S$216,$C$205:$C$216)>100,100, FORECAST($C201,S$205:S$216,$C$205:$C$216)))) -> 100 | W201: =IF(MAX(C205:C216)-MIN(C205:C216)<5,AVERAGEIF(C205:C216,">0",W205:W216), IF(FORECAST($C201,W$205:W$216,$C$205:$C$216)<0,0, IF(FORECAST($C201,W$205:W$216,$C$205:$C$216)>100,100, FORECAST($C201,W$205:W$216,$C$205:$C$216)))) -> 0 | X201: =IF(MAX(C205:C216)-MIN(C205:C216)<5,AVERAGEIF(C205:C216,">0",X205:X216), IF(FORECAST($C201,X$205:X$216,$C$205:$C$216)<0,0, IF(FORECAST($C201,X$205:X$216,$C$205:$C$216)>100,100, FORECAST($C201,X$205:X$216,$C$205:$C$216)))) -> 99.87016141 | AB201: =IF(MAX(C205:C216)-MIN(C205:C216)<5,AVERAGEIF(C205:C216,">0",AB205:AB216), IF(FORECAST($C201,AB$205:AB$216,$C$205:$C$216)<0,0, IF(FORECAST($C201,AB$205:AB$216,$C$205:$C$216)>100,100, FORECAST($C201,AB$205:AB$216,$C$205:$C$216)))) -> 0
C202: =MaxRegYear(C200,C205:C216) -> 2015 | D202: =IF(MAX(C205:C216)-MIN(C205:C216)<5,AVERAGEIF(C205:C216,">0",D205:D216), IF(FORECAST($C202,D$205:D$216,$C$205:$C$216)<0,0, IF(FORECAST($C202,D$205:D$216,$C$205:$C$216)>100,100, FORECAST($C202,D$205:D$216,$C$205:$C$216)))) -> 92.67992587 | H202: =IF(MAX(C205:C216)-MIN(C205:C216)<5,AVERAGEIF(C205:C216,">0",H205:H216), IF(FORECAST($C202,H$205:H$216,$C$205:$C$216)<0,0, IF(FORECAST($C202,H$205:H$216,$C$205:$C$216)>100,100, FORECAST($C202,H$205:H$216,$C$205:$C$216)))) -> 3.030263842 | I202: =IF(MAX(C205:C216)-MIN(C205:C216)<5,AVERAGEIF(C205:C216,">0",I205:I216), IF(FORECAST($C202,I$205:I$216,$C$205:$C$216)<0,0, IF(FORECAST($C202,I$205:I$216,$C$205:$C$216)>100,100, FORECAST($C202,I$205:I$216,$C$205:$C$216)))) -> 99.90413358 | M202: =IF(MAX(C205:C216)-MIN(C205:C216)<5,AVERAGEIF(C205:C216,">0",M205:M216), IF(FORECAST($C202,M$205:M$216,$C$205:$C$216)<0,0, IF(FORECAST($C202,M$205:M$216,$C$205:$C$216)>100,100, FORECAST($C202,M$205:M$216,$C$205:$C$216)))) -> 0.05123461922 | N202: =IF(MAX(C205:C216)-MIN(C205:C216)<5,AVERAGEIF(C205:C216,">0",N205:N216), IF(FORECAST($C202,N$205:N$216,$C$205:$C$216)<0,0, IF(FORECAST($C202,N$205:N$216,$C$205:$C$216)>100,100, FORECAST($C202,N$205:N$216,$C$205:$C$216)))) -> 99.95439789 | R202: =IF(MAX(C205:C216)-MIN(C205:C216)<5,AVERAGEIF(C205:C216,">0",R205:R216), IF(FORECAST($C202,R$205:R$216,$C$205:$C$216)<0,0, IF(FORECAST($C202,R$205:R$216,$C$205:$C$216)>100,100, FORECAST($C202,R$205:R$216,$C$205:$C$216)))) -> 0.04560210976 | S202: =IF(MAX(C205:C216)-MIN(C205:C216)<5,AVERAGEIF(C205:C216,">0",S205:S216), IF(FORECAST($C202,S$205:S$216,$C$205:$C$216)<0,0, IF(FORECAST($C202,S$205:S$216,$C$205:$C$216)>100,100, FORECAST($C202,S$205:S$216,$C$205:$C$216)))) -> 98.47303878 | W202: =IF(MAX(C205:C216)-MIN(C205:C216)<5,AVERAGEIF(C205:C216,">0",W205:W216), IF(FORECAST($C202,W$205:W$216,$C$205:$C$216)<0,0, IF(FORECAST($C202,W$205:W$216,$C$205:$C$216)>100,100, FORECAST($C202,W$205:W$216,$C$205:$C$216)))) -> 0 | X202: =IF(MAX(C205:C216)-MIN(C205:C216)<5,AVERAGEIF(C205:C216,">0",X205:X216), IF(FORECAST($C202,X$205:X$216,$C$205:$C$216)<0,0, IF(FORECAST($C202,X$205:X$216,$C$205:$C$216)>100,100, FORECAST($C202,X$205:X$216,$C$205:$C$216)))) -> 99.32638191 | AB202: =IF(MAX(C205:C216)-MIN(C205:C216)<5,AVERAGEIF(C205:C216,">0",AB205:AB216), IF(FORECAST($C202,AB$205:AB$216,$C$205:$C$216)<0,0, IF(FORECAST($C202,AB$205:AB$216,$C$205:$C$216)>100,100, FORECAST($C202,AB$205:AB$216,$C$205:$C$216)))) -> 0
B204: Survey | C204: Year | D204: Improved | E204: Not shared | H204: Open defecation | I204: Improved | J204: Not shared | M204: Open defecation | N204: Improved | O204: Not shared | R204: Open defecation | S204: Improved | T204: Not shared | W204: Open defecation | X204: Improved | Y204: Not shared | AB204: Open defecation
B205: WHS03 | C205: 2003 | D205: =IF(ISERROR(INDIRECT(CONCATENATE($B205,"!H122"))),"",INDIRECT(CONCATENATE($B205,"!H122"))) -> 100 | E205: =IF(ISERROR(INDIRECT(CONCATENATE($B205,"!H129"))),"",INDIRECT(CONCATENATE($B205,"!H129"))) -> 99.09242679 | H205: =IF(ISERROR(INDIRECT(CONCATENATE($B205,"!H127"))),"",INDIRECT(CONCATENATE($B205,"!H127"))) -> 0 | I205: =IF(ISERROR(INDIRECT(CONCATENATE($B205,"!I122"))),"",INDIRECT(CONCATENATE($B205,"!I122"))) -> 100 | J205: =IF(ISERROR(INDIRECT(CONCATENATE($B205,"!I129"))),"",INDIRECT(CONCATENATE($B205,"!I129"))) -> 99.45321665 | M205: =IF(ISERROR(INDIRECT(CONCATENATE($B205,"!I127"))),"",INDIRECT(CONCATENATE($B205,"!I127"))) -> 0 | N205: =IF(ISERROR(INDIRECT(CONCATENATE($B205,"!J122"))),"",INDIRECT(CONCATENATE($B205,"!J122"))) -> 100 | O205: =IF(ISERROR(INDIRECT(CONCATENATE($B205,"!J129"))),"",INDIRECT(CONCATENATE($B205,"!J129"))) -> 99.60451418 | R205: =IF(ISERROR(INDIRECT(CONCATENATE($B205,"!J127"))),"",INDIRECT(CONCATENATE($B205,"!J127"))) -> 0 | S205: =IF(ISERROR(INDIRECT(CONCATENATE($B205,"!K122"))),"",INDIRECT(CONCATENATE($B205,"!K122"))) -> 99.7927653 | T205: =IF(ISERROR(INDIRECT(CONCATENATE($B205,"!K129"))),"",INDIRECT(CONCATENATE($B205,"!K129"))) -> 99.60633713 | W205: =IF(ISERROR(INDIRECT(CONCATENATE($B205,"!K127"))),"",INDIRECT(CONCATENATE($B205,"!K127"))) -> 0 | X205: =IF(ISERROR(INDIRECT(CONCATENATE($B205,"!L122"))),"",INDIRECT(CONCATENATE($B205,"!L122"))) -> 99.79247863 | Y205: =IF(ISERROR(INDIRECT(CONCATENATE($B205,"!L129"))),"",INDIRECT(CONCATENATE($B205,"!L129"))) -> 99.87157186 | AB205: =IF(ISERROR(INDIRECT(CONCATENATE($B205,"!L2127"))),"",INDIRECT(CONCATENATE($B205,"!L127"))) -> 0
B206: MICS13 | C206: 2013 | D206: 93.89993823 | E206: 91.48783397 | H206: 2.525219868 | I206: 99.92011132 | J206: 96.66642857 | M206: 0.04269551601 | N206: 99.96199824 | O206: 94.95090535 | R206: 0.03800175813 | S206: 98.6929932 | T206: 96.78800165 | W206: 0 | X206: 99.4040647 | Y206: 97.00910405 | AB206: 0
B218: =CONCATENATE("Urban use of sanitation facilities, ",C199,"–",C200) -> Urban use of sanitation facilities, 2000–2019 | S218: Data points used for regression
A297: RURAL | D297: Poorest | I297: Poor | N297: Middle | S297: Rich | X297: Richest
D298: Improved | E298: Basic | F298: Limited | G298: Unimproved | H298: Open defecation | I298: Improved | J298: Basic | K298: Limited | L298: Unimproved | M298: Open defecation | N298: Improved | O298: Basic | P298: Limited | Q298: Unimproved | R298: Open defecation | S298: Improved | T298: Basic | U298: Limited | V298: Unimproved | W298: Open defecation | X298: Improved | Y298: Basic | Z298: Limited | AA298: Unimproved | AB298: Open defecation
A299: Forecast period: | C299: =MinBase(C305:C316) -> 2000 | D299: =IF((D301+H301)>100,D301*100/(D301+H301),D301) -> 100 | E299: =D299*AVERAGEIF(E305:E316,">0")/100 -> 93.20494858 | F299: =D299*(100-AVERAGEIF(E305:E316,">0"))/100 -> 6.795051424 | G299: =100-(E299+F299+H299) -> 0 | H299: =IF((D301+H301)>100,H301*100/(D301+H301),H301) -> 0 | I299: =IF((I301+M301)>100,I301*100/(I301+M301),I301) -> 100 | J299: =I299*AVERAGEIF(J305:J316,">0")/100 -> 96.66803301 | K299: =I299*(100-AVERAGEIF(J305:J316,">0"))/100 -> 3.331966992 | L299: =100-(J299+K299+M299) -> 0 | M299: =IF((I301+M301)>100,M301*100/(I301+M301),M301) -> 0 | N299: =IF((N301+R301)>100,N301*100/(N301+R301),N301) -> 99.39396888 | O299: =N299*AVERAGEIF(O305:O316,">0")/100 -> 98.58360224 | P299: =N299*(100-AVERAGEIF(O305:O316,">0"))/100 -> 0.8103666367 | Q299: =100-(O299+P299+R299) -> 0.6060311185 | R299: =IF((N301+R301)>100,R301*100/(N301+R301),R301) -> 0 | S299: =IF((S301+W301)>100,S301*100/(S301+W301),S301) -> 100 | T299: =S299*AVERAGEIF(T305:T316,">0")/100 -> 98.82755421 | U299: =S299*(100-AVERAGEIF(T305:T316,">0"))/100 -> 1.172445788 | V299: =100-(T299+U299+W299) -> 0 | W299: =IF((S301+W301)>100,W301*100/(S301+W301),W301) -> 0 | X299: =IF((X301+AB301)>100,X301*100/(X301+AB301),X301) -> 100 | Y299: =X299*AVERAGEIF(Y305:Y316,">0")/100 -> 99.16136959 | Z299: =X299*(100-AVERAGEIF(Y305:Y316,">0"))/100 -> 0.8386304064 | AA299: =100-(Y299+Z299+AB299) -> 0 | AB299: =IF((X301+AB301)>100,AB301*100/(X301+AB301),AB301) -> 0
C300: =MaxTarget(C305:C316) -> 2019 | D300: =IF((D302+H302)>100,D302*100/(D302+H302),D302) -> 92.29045731 | E300: =D300*AVERAGEIF(E305:E316,">0")/100 -> 86.01927327 | F300: =D300*(100-AVERAGEIF(E305:E316,">0"))/100 -> 6.271184034 | G300: =100-(E300+F300+H300) -> 7.253563627 | H300: =IF((D302+H302)>100,H302*100/(D302+H302),H302) -> 0.4559790654 | I300: =IF((I302+M302)>100,I302*100/(I302+M302),I302) -> 99.64381815 | J300: =I300*AVERAGEIF(J305:J316,">0")/100 -> 96.32371902 | K300: =I300*(100-AVERAGEIF(J305:J316,">0"))/100 -> 3.32009913 | L300: =100-(J300+K300+M300) -> 0.3561818485 | M300: =IF((I302+M302)>100,M302*100/(I302+M302),M302) -> 0 | N300: =IF((N302+R302)>100,N302*100/(N302+R302),N302) -> 100 | O300: =N300*AVERAGEIF(O305:O316,">0")/100 -> 99.18469235 | P300: =N300*(100-AVERAGEIF(O305:O316,">0"))/100 -> 0.8153076548 | Q300: =100-(O300+P300+R300) -> 0 | R300: =IF((N302+R302)>100,R302*100/(N302+R302),R302) -> 0 | S300: =IF((S302+W302)>100,S302*100/(S302+W302),S302) -> 100 | T300: =S300*AVERAGEIF(T305:T316,">0")/100 -> 98.82755421 | U300: =S300*(100-AVERAGEIF(T305:T316,">0"))/100 -> 1.172445788 | V300: =100-(T300+U300+W300) -> 0 | W300: =IF((S302+W302)>100,W302*100/(S302+W302),W302) -> 0 | X300: =IF((X302+AB302)>100,X302*100/(X302+AB302),X302) -> 100 | Y300: =X300*AVERAGEIF(Y305:Y316,">0")/100 -> 99.16136959 | Z300: =X300*(100-AVERAGEIF(Y305:Y316,">0"))/100 -> 0.8386304064 | AA300: =100-(Y300+Z300+AB300) -> 0 | AB300: =IF((X302+AB302)>100,AB302*100/(X302+AB302),AB302) -> 0
A301: Regression period: | C301: =MinRegYear(C299,C305:C316) -> 2001 | D301: =IF(MAX(C305:C316)-MIN(C305:C316)<5,AVERAGEIF(C305:C316,">0",D305:D316), IF(FORECAST($C301,D$305:D$316,$C$305:$C$316)<0,0, IF(FORECAST($C301,D$305:D$316,$C$305:$C$316)>100,100, FORECAST($C301,D$305:D$316,$C$305:$C$316)))) -> 100 | H301: =IF(MAX(C305:C316)-MIN(C305:C316)<5,AVERAGEIF(C305:C316,">0",H305:H316), IF(FORECAST($C301,H$305:H$316,$C$305:$C$316)<0,0, IF(FORECAST($C301,H$305:H$316,$C$305:$C$316)>100,100, FORECAST($C301,H$305:H$316,$C$305:$C$316)))) -> 0 | I301: =IF(MAX(C305:C316)-MIN(C305:C316)<5,AVERAGEIF(C305:C316,">0",I305:I316), IF(FORECAST($C301,I$305:I$316,$C$305:$C$316)<0,0, IF(FORECAST($C301,I$305:I$316,$C$305:$C$316)>100,100, FORECAST($C301,I$305:I$316,$C$305:$C$316)))) -> 100 | M301: =IF(MAX(C305:C316)-MIN(C305:C316)<5,AVERAGEIF(C305:C316,">0",M305:M316), IF(FORECAST($C301,M$305:M$316,$C$305:$C$316)<0,0, IF(FORECAST($C301,M$305:M$316,$C$305:$C$316)>100,100, FORECAST($C301,M$305:M$316,$C$305:$C$316)))) -> 0 | N301: =IF(MAX(C305:C316)-MIN(C305:C316)<5,AVERAGEIF(C305:C316,">0",N305:N316), IF(FORECAST($C301,N$305:N$316,$C$305:$C$316)<0,0, IF(FORECAST($C301,N$305:N$316,$C$305:$C$316)>100,100, FORECAST($C301,N$305:N$316,$C$305:$C$316)))) -> 99.39396888 | R301: =IF(MAX(C305:C316)-MIN(C305:C316)<5,AVERAGEIF(C305:C316,">0",R305:R316), IF(FORECAST($C301,R$305:R$316,$C$305:$C$316)<0,0, IF(FORECAST($C301,R$305:R$316,$C$305:$C$316)>100,100, FORECAST($C301,R$305:R$316,$C$305:$C$316)))) -> 0 | S301: =IF(MAX(C305:C316)-MIN(C305:C316)<5,AVERAGEIF(C305:C316,">0",S305:S316), IF(FORECAST($C301,S$305:S$316,$C$305:$C$316)<0,0, IF(FORECAST($C301,S$305:S$316,$C$305:$C$316)>100,100, FORECAST($C301,S$305:S$316,$C$305:$C$316)))) -> 100 | W301: =IF(MAX(C305:C316)-MIN(C305:C316)<5,AVERAGEIF(C305:C316,">0",W305:W316), IF(FORECAST($C301,W$305:W$316,$C$305:$C$316)<0,0, IF(FORECAST($C301,W$305:W$316,$C$305:$C$316)>100,100, FORECAST($C301,W$305:W$316,$C$305:$C$316)))) -> 0 | X301: =IF(MAX(C305:C316)-MIN(C305:C316)<5,AVERAGEIF(C305:C316,">0",X305:X316), IF(FORECAST($C301,X$305:X$316,$C$305:$C$316)<0,0, IF(FORECAST($C301,X$305:X$316,$C$305:$C$316)>100,100, FORECAST($C301,X$305:X$316,$C$305:$C$316)))) -> 100 | AB301: =IF(MAX(C305:C316)-MIN(C305:C316)<5,AVERAGEIF(C305:C316,">0",AB305:AB316), IF(FORECAST($C301,AB$305:AB$316,$C$305:$C$316)<0,0, IF(FORECAST($C301,AB$305:AB$316,$C$305:$C$316)>100,100, FORECAST($C301,AB$305:AB$316,$C$305:$C$316)))) -> 0
C302: =MaxRegYear(C300,C305:C316) -> 2015 | D302: =IF(MAX(C305:C316)-MIN(C305:C316)<5,AVERAGEIF(C305:C316,">0",D305:D316), IF(FORECAST($C302,D$305:D$316,$C$305:$C$316)<0,0, IF(FORECAST($C302,D$305:D$316,$C$305:$C$316)>100,100, FORECAST($C302,D$305:D$316,$C$305:$C$316)))) -> 92.29045731 | H302: =IF(MAX(C305:C316)-MIN(C305:C316)<5,AVERAGEIF(C305:C316,">0",H305:H316), IF(FORECAST($C302,H$305:H$316,$C$305:$C$316)<0,0, IF(FORECAST($C302,H$305:H$316,$C$305:$C$316)>100,100, FORECAST($C302,H$305:H$316,$C$305:$C$316)))) -> 0.4559790654 | I302: =IF(MAX(C305:C316)-MIN(C305:C316)<5,AVERAGEIF(C305:C316,">0",I305:I316), IF(FORECAST($C302,I$305:I$316,$C$305:$C$316)<0,0, IF(FORECAST($C302,I$305:I$316,$C$305:$C$316)>100,100, FORECAST($C302,I$305:I$316,$C$305:$C$316)))) -> 99.64381815 | M302: =IF(MAX(C305:C316)-MIN(C305:C316)<5,AVERAGEIF(C305:C316,">0",M305:M316), IF(FORECAST($C302,M$305:M$316,$C$305:$C$316)<0,0, IF(FORECAST($C302,M$305:M$316,$C$305:$C$316)>100,100, FORECAST($C302,M$305:M$316,$C$305:$C$316)))) -> 0 | N302: =IF(MAX(C305:C316)-MIN(C305:C316)<5,AVERAGEIF(C305:C316,">0",N305:N316), IF(FORECAST($C302,N$305:N$316,$C$305:$C$316)<0,0, IF(FORECAST($C302,N$305:N$316,$C$305:$C$316)>100,100, FORECAST($C302,N$305:N$316,$C$305:$C$316)))) -> 100 | R302: =IF(MAX(C305:C316)-MIN(C305:C316)<5,AVERAGEIF(C305:C316,">0",R305:R316), IF(FORECAST($C302,R$305:R$316,$C$305:$C$316)<0,0, IF(FORECAST($C302,R$305:R$316,$C$305:$C$316)>100,100, FORECAST($C302,R$305:R$316,$C$305:$C$316)))) -> 0 | S302: =IF(MAX(C305:C316)-MIN(C305:C316)<5,AVERAGEIF(C305:C316,">0",S305:S316), IF(FORECAST($C302,S$305:S$316,$C$305:$C$316)<0,0, IF(FORECAST($C302,S$305:S$316,$C$305:$C$316)>100,100, FORECAST($C302,S$305:S$316,$C$305:$C$316)))) -> 100 | W302: =IF(MAX(C305:C316)-MIN(C305:C316)<5,AVERAGEIF(C305:C316,">0",W305:W316), IF(FORECAST($C302,W$305:W$316,$C$305:$C$316)<0,0, IF(FORECAST($C302,W$305:W$316,$C$305:$C$316)>100,100, FORECAST($C302,W$305:W$316,$C$305:$C$316)))) -> 0 | X302: =IF(MAX(C305:C316)-MIN(C305:C316)<5,AVERAGEIF(C305:C316,">0",X305:X316), IF(FORECAST($C302,X$305:X$316,$C$305:$C$316)<0,0, IF(FORECAST($C302,X$305:X$316,$C$305:$C$316)>100,100, FORECAST($C302,X$305:X$316,$C$305:$C$316)))) -> 100 | AB302: =IF(MAX(C305:C316)-MIN(C305:C316)<5,AVERAGEIF(C305:C316,">0",AB305:AB316), IF(FORECAST($C302,AB$305:AB$316,$C$305:$C$316)<0,0, IF(FORECAST($C302,AB$305:AB$316,$C$305:$C$316)>100,100, FORECAST($C302,AB$305:AB$316,$C$305:$C$316)))) -> 0
B304: Survey | C304: Year | D304: Improved | E304: Not shared | H304: Open defecation | I304: Improved | J304: Not shared | M304: Open defecation | N304: Improved | O304: Not shared | R304: Open defecation | S304: Improved | T304: Not shared | W304: Open defecation | X304: Improved | Y304: Not shared | AB304: Open defecation
B305: WHS03 | C305: 2003 | D305: =IF(ISERROR(INDIRECT(CONCATENATE($B305,"!M122"))),"",INDIRECT(CONCATENATE($B305,"!M122"))) -> 99.31653758 | E305: =IF(ISERROR(INDIRECT(CONCATENATE($B305,"!M129"))),"",INDIRECT(CONCATENATE($B305,"!M129"))) -> 94.32986594 | H305: =IF(ISERROR(INDIRECT(CONCATENATE($B305,"!M127"))),"",INDIRECT(CONCATENATE($B305,"!M127"))) -> 0 | I305: =IF(ISERROR(INDIRECT(CONCATENATE($B305,"!N122"))),"",INDIRECT(CONCATENATE($B305,"!N122"))) -> 100 | J305: =IF(ISERROR(INDIRECT(CONCATENATE($B305,"!N129"))),"",INDIRECT(CONCATENATE($B305,"!N129"))) -> 98.64538176 | M305: =IF(ISERROR(INDIRECT(CONCATENATE($B305,"!N127"))),"",INDIRECT(CONCATENATE($B305,"!N127"))) -> 0 | N305: =IF(ISERROR(INDIRECT(CONCATENATE($B305,"!O122"))),"",INDIRECT(CONCATENATE($B305,"!O122"))) -> 99.49497407 | O305: =IF(ISERROR(INDIRECT(CONCATENATE($B305,"!O129"))),"",INDIRECT(CONCATENATE($B305,"!O129"))) -> 99.35459883 | R305: =IF(ISERROR(INDIRECT(CONCATENATE($B305,"!O127"))),"",INDIRECT(CONCATENATE($B305,"!O127"))) -> 0 | S305: =IF(ISERROR(INDIRECT(CONCATENATE($B305,"!P122"))),"",INDIRECT(CONCATENATE($B305,"!P122"))) -> 100 | T305: =IF(ISERROR(INDIRECT(CONCATENATE($B305,"!P129"))),"",INDIRECT(CONCATENATE($B305,"!P129"))) -> 100 | W305: =IF(ISERROR(INDIRECT(CONCATENATE($B305,"!P127"))),"",INDIRECT(CONCATENATE($B305,"!P127"))) -> 0 | X305: =IF(ISERROR(INDIRECT(CONCATENATE($B305,"!Q122"))),"",INDIRECT(CONCATENATE($B305,"!Q122"))) -> 100 | Y305: =IF(ISERROR(INDIRECT(CONCATENATE($B305,"!Q129"))),"",INDIRECT(CONCATENATE($B305,"!Q129"))) -> 100 | AB305: =IF(ISERROR(INDIRECT(CONCATENATE($B305,"!Q2127"))),"",INDIRECT(CONCATENATE($B305,"!Q127"))) -> 0
B306: MICS13 | C306: 2013 | D306: 93.46147069 | E306: 92.08003121 | H306: 0.3799825545 | I306: 99.70318179 | J306: 94.69068426 | M306: 0 | N306: 100 | O306: 99.01478586 | R306: 0 | S306: 100 | T306: 97.65510842 | W306: 0 | X306: 100 | Y306: 98.32273919 | AB306: 0
B318: =CONCATENATE("Rural use of sanitation facilities, ",C299,"–",C300) -> Rural use of sanitation facilities, 2000–2019 | S318: Data points used for regression

Sheet Hygiene
B4: Access to hygiene facilities by wealth quintile (%)
B5: =IF(ISERROR(INDIRECT(CONCATENATE($E$32,"!A2"))),"",INDIRECT(CONCATENATE($E$32,"!A2"))) -> Uruguay
B7: =CONCATENATE("National ",IF(ISERROR(INDIRECT(CONCATENATE($E$32,"!A2"))),"",INDIRECT(CONCATENATE($E$32,"!A210")))) -> National Access to hygiene facilities | K7: =CONCATENATE("Urban ",IF(ISERROR(INDIRECT(CONCATENATE($E$32,"!A2"))),"",INDIRECT(CONCATENATE($E$32,"!A210")))) -> Urban Access to hygiene facilities | S7: =CONCATENATE("Rural ",IF(ISERROR(INDIRECT(CONCATENATE($E$32,"!A2"))),"",INDIRECT(CONCATENATE($E$32,"!A210")))) -> Rural Access to hygiene facilities
E32: =INDEX(B88:B100,A88) -> MICS13 | G32: =IF(ISERROR(INDIRECT(CONCATENATE($E$32,"!A2"))),"",INDIRECT(CONCATENATE($E$32,"!A2"))) -> Uruguay | K32: Poorest | N32: Poor | Q32: Middle | T32: Rich | W32: Richest
K33: Basic | L33: Limited | M33: No facility | N33: Basic | O33: Limited | P33: No facility | Q33: Basic | R33: Limited | S33: No facility | T33: Basic | U33: Limited | V33: No facility | W33: Basic | X33: Limited | Y33: No facility
B34: >>> Select Survey : | G34: NATIONAL | J34: =IF(ISERROR(INDIRECT(CONCATENATE(#REF!,"!A2"))),"",INDIRECT(CONCATENATE(#REF!,"!A210"))) ->  | K34: =IF(ISERROR(INDIRECT(CONCATENATE($E$32,"!C222"))),"",INDIRECT(CONCATENATE($E$32,"!C222"))) -> N/A | L34: =IF(ISERROR(INDIRECT(CONCATENATE($E$32,"!C223"))),"",INDIRECT(CONCATENATE($E$32,"!C223"))) -> N/A | M34: =IF(ISERROR(INDIRECT(CONCATENATE($E$32,"!C224"))),"",INDIRECT(CONCATENATE($E$32,"!C224"))) -> N/A | N34: =IF(ISERROR(INDIRECT(CONCATENATE($E$32,"!D222"))),"",INDIRECT(CONCATENATE($E$32,"!D222"))) -> N/A | O34: =IF(ISERROR(INDIRECT(CONCATENATE($E$32,"!D223"))),"",INDIRECT(CONCATENATE($E$32,"!D223"))) -> N/A | P34: =IF(ISERROR(INDIRECT(CONCATENATE($E$32,"!D224"))),"",INDIRECT(CONCATENATE($E$32,"!D224"))) -> N/A | Q34: =IF(ISERROR(INDIRECT(CONCATENATE($E$32,"!E222"))),"",INDIRECT(CONCATENATE($E$32,"!E222"))) -> N/A | R34: =IF(ISERROR(INDIRECT(CONCATENATE($E$32,"!E223"))),"",INDIRECT(CONCATENATE($E$32,"!E223"))) -> N/A | S34: =IF(ISERROR(INDIRECT(CONCATENATE($E$32,"!E224"))),"",INDIRECT(CONCATENATE($E$32,"!E224"))) -> N/A | T34: =IF(ISERROR(INDIRECT(CONCATENATE($E$32,"!F222"))),"",INDIRECT(CONCATENATE($E$32,"!F222"))) -> N/A | U34: =IF(ISERROR(INDIRECT(CONCATENATE($E$32,"!F223"))),"",INDIRECT(CONCATENATE($E$32,"!F223"))) -> N/A | V34: =IF(ISERROR(INDIRECT(CONCATENATE($E$32,"!F224"))),"",INDIRECT(CONCATENATE($E$32,"!F224"))) -> N/A | W34: =IF(ISERROR(INDIRECT(CONCATENATE($E$32,"!G222"))),"",INDIRECT(CONCATENATE($E$32,"!G222"))) -> N/A | X34: =IF(ISERROR(INDIRECT(CONCATENATE($E$32,"!G223"))),"",INDIRECT(CONCATENATE($E$32,"!G223"))) -> N/A | Y34: =IF(ISERROR(INDIRECT(CONCATENATE($E$32,"!G224"))),"",INDIRECT(CONCATENATE($E$32,"!G224"))) -> N/A
G37: URBAN | J37: =IF(ISERROR(INDIRECT(CONCATENATE(#REF!,"!A2"))),"",INDIRECT(CONCATENATE(#REF!,"!A210"))) ->  | K37: =IF(ISERROR(INDIRECT(CONCATENATE($E$32,"!H222"))),"",INDIRECT(CONCATENATE($E$32,"!H222"))) -> N/A | L37: =IF(ISERROR(INDIRECT(CONCATENATE($E$32,"!H223"))),"",INDIRECT(CONCATENATE($E$32,"!H223"))) -> N/A | M37: =IF(ISERROR(INDIRECT(CONCATENATE($E$32,"!H224"))),"",INDIRECT(CONCATENATE($E$32,"!H224"))) -> N/A | N37: =IF(ISERROR(INDIRECT(CONCATENATE($E$32,"!I222"))),"",INDIRECT(CONCATENATE($E$32,"!I222"))) -> N/A | O37: =IF(ISERROR(INDIRECT(CONCATENATE($E$32,"!I223"))),"",INDIRECT(CONCATENATE($E$32,"!I223"))) -> N/A | P37: =IF(ISERROR(INDIRECT(CONCATENATE($E$32,"!I224"))),"",INDIRECT(CONCATENATE($E$32,"!I224"))) -> N/A | Q37: =IF(ISERROR(INDIRECT(CONCATENATE($E$32,"!J222"))),"",INDIRECT(CONCATENATE($E$32,"!J222"))) -> N/A | R37: =IF(ISERROR(INDIRECT(CONCATENATE($E$32,"!J223"))),"",INDIRECT(CONCATENATE($E$32,"!J223"))) -> N/A | S37: =IF(ISERROR(INDIRECT(CONCATENATE($E$32,"!J224"))),"",INDIRECT(CONCATENATE($E$32,"!J224"))) -> N/A | T37: =IF(ISERROR(INDIRECT(CONCATENATE($E$32,"!K222"))),"",INDIRECT(CONCATENATE($E$32,"!K222"))) -> N/A | U37: =IF(ISERROR(INDIRECT(CONCATENATE($E$32,"!K223"))),"",INDIRECT(CONCATENATE($E$32,"!K223"))) -> N/A | V37: =IF(ISERROR(INDIRECT(CONCATENATE($E$32,"!K224"))),"",INDIRECT(CONCATENATE($E$32,"!K224"))) -> N/A | W37: =IF(ISERROR(INDIRECT(CONCATENATE($E$32,"!L222"))),"",INDIRECT(CONCATENATE($E$32,"!L222"))) -> N/A | X37: =IF(ISERROR(INDIRECT(CONCATENATE($E$32,"!L223"))),"",INDIRECT(CONCATENATE($E$32,"!L223"))) -> N/A | Y37: =IF(ISERROR(INDIRECT(CONCATENATE($E$32,"!L224"))),"",INDIRECT(CONCATENATE($E$32,"!L224"))) -> N/A
G40: RURAL | J40: =IF(ISERROR(INDIRECT(CONCATENATE(#REF!,"!A2"))),"",INDIRECT(CONCATENATE(#REF!,"!A210"))) ->  | K40: =IF(ISERROR(INDIRECT(CONCATENATE($E$32,"!M222"))),"",INDIRECT(CONCATENATE($E$32,"!M222"))) -> N/A | L40: =IF(ISERROR(INDIRECT(CONCATENATE($E$32,"!M223"))),"",INDIRECT(CONCATENATE($E$32,"!M223"))) -> N/A | M40: =IF(ISERROR(INDIRECT(CONCATENATE($E$32,"!M224"))),"",INDIRECT(CONCATENATE($E$32,"!M224"))) -> N/A | N40: =IF(ISERROR(INDIRECT(CONCATENATE($E$32,"!N222"))),"",INDIRECT(CONCATENATE($E$32,"!N222"))) -> N/A | O40: =IF(ISERROR(INDIRECT(CONCATENATE($E$32,"!N223"))),"",INDIRECT(CONCATENATE($E$32,"!N223"))) -> N/A | P40: =IF(ISERROR(INDIRECT(CONCATENATE($E$32,"!N224"))),"",INDIRECT(CONCATENATE($E$32,"!N224"))) -> N/A | Q40: =IF(ISERROR(INDIRECT(CONCATENATE($E$32,"!O222"))),"",INDIRECT(CONCATENATE($E$32,"!O222"))) -> N/A | R40: =IF(ISERROR(INDIRECT(CONCATENATE($E$32,"!O223"))),"",INDIRECT(CONCATENATE($E$32,"!O223"))) -> N/A | S40: =IF(ISERROR(INDIRECT(CONCATENATE($E$32,"!O224"))),"",INDIRECT(CONCATENATE($E$32,"!O224"))) -> N/A | T40: =IF(ISERROR(INDIRECT(CONCATENATE($E$32,"!P222"))),"",INDIRECT(CONCATENATE($E$32,"!P222"))) -> N/A | U40: =IF(ISERROR(INDIRECT(CONCATENATE($E$32,"!P223"))),"",INDIRECT(CONCATENATE($E$32,"!P223"))) -> N/A | V40: =IF(ISERROR(INDIRECT(CONCATENATE($E$32,"!P224"))),"",INDIRECT(CONCATENATE($E$32,"!P224"))) -> N/A | W40: =IF(ISERROR(INDIRECT(CONCATENATE($E$32,"!Q222"))),"",INDIRECT(CONCATENATE($E$32,"!Q222"))) -> N/A | X40: =IF(ISERROR(INDIRECT(CONCATENATE($E$32,"!Q223"))),"",INDIRECT(CONCATENATE($E$32,"!Q223"))) -> N/A | Y40: =IF(ISERROR(INDIRECT(CONCATENATE($E$32,"!Q224"))),"",INDIRECT(CONCATENATE($E$32,"!Q224"))) -> N/A
A88: 2 | B88: WHS03
B89: MICS13
B90: Template

Sheet WHS03
A2: =A1026 -> Uruguay
A3: =A1034 -> 2003
A4: Use of drinking water sources
A5: by wealth quintile and sub-national region
A6: Notes:
A7: WHO/UNICEF JMP customised wealth index excludes water,
A8: sanitation and hygiene assets.
A9: Survey used for analysis: | B9: =A1025 -> WHS03
A10: =B1028 -> 
A11: =B1027 -> 
A14: Use of drinking water sources | C14: NATIONAL wealth index quintile | H14: URBAN wealth index quintile | M14: RURAL wealth index quintile | BA14: Raw numbers of respondents: | BB14: Use of drinking water sources | BC14: NATIONAL wealth index quintile | BH14: URBAN wealth index quintile | BM14: RURAL wealth index quintile
A15: Weighted percentage (used in graphs) | C15: Poorest | D15: Poor | E15: Middle | F15: Rich | G15: Richest | H15: Poorest | I15: Poor | J15: Middle | K15: Rich | L15: Richest | M15: Poorest | N15: Poor | O15: Middle | P15: Rich | Q15: Richest | BA15: Water data, raw numbers (weighted) | BC15: Poorest | BD15: Poor | BE15: Middle | BF15: Rich | BG15: Richest | BH15: Poorest | BI15: Poor | BJ15: Middle | BK15: Rich | BL15: Richest | BM15: Poorest | BN15: Poor | BO15: Middle | BP15: Rich | BQ15: Richest
A16: Water | B16: Improved | C16: 99.22803 | D16: 99.56572293 | E16: 99.59771327 | F16: 99.83989213 | G16: 99.35944367 | H16: 98.97124437 | I16: 99.37475116 | J16: 99.79279208 | K16: 99.5855306 | L16: 99.37743588 | M16: 99.24617049 | N16: 100 | O16: 100 | P16: 100 | Q16: 100 | BA16: Water | BB16: Improved | BC16: N/A | BD16: N/A | BE16: N/A | BF16: N/A | BG16: N/A | BH16: N/A | BI16: N/A | BJ16: N/A | BK16: N/A | BL16: N/A | BM16: N/A | BN16: N/A | BO16: N/A | BP16: N/A | BQ16: N/A
B17: Not Improved | C17: 0.7719699986 | D17: 0.434277066 | E17: 0.4022867293 | F17: 0.1601078666 | G17: 0.6405563259 | H17: 1.028755627 | I17: 0.6252488351 | J17: 0.2072079203 | K17: 0.414469398 | L17: 0.622564122 | M17: 0.7538295115 | N17: 0 | O17: 0 | P17: 0 | Q17: 0 | BB17: Not Improved | BC17: N/A | BD17: N/A | BE17: N/A | BF17: N/A | BG17: N/A | BH17: N/A | BI17: N/A | BJ17: N/A | BK17: N/A | BL17: N/A | BM17: N/A | BN17: N/A | BO17: N/A | BP17: N/A | BQ17: N/A
A18: Water ladder | B18: Basic | C18: =C16*C23/100 -> 96.77740472 | D18: =D16*D23/100 -> 99.56572293 | E18: =E16*E23/100 -> 99.59771327 | F18: 99.83989213 | G18: 99.35944367 | H18: 98.97124437 | I18: 99.37475116 | J18: 99.79279208 | K18: 99.5855306 | L18: 99.37743588 | M18: 94.50752617 | N18: 100 | O18: 100 | P18: 100 | Q18: 100 | BA18: Water ladder | BB18: Basic | BC18: N/A | BD18: N/A | BE18: N/A | BF18: N/A | BG18: N/A | BH18: N/A | BI18: N/A | BJ18: N/A | BK18: N/A | BL18: N/A | BM18: N/A | BN18: N/A | BO18: N/A | BP18: N/A | BQ18: N/A
B19: Limited | C19: =C16*C22/100 -> 2.45062528 | D19: =D16*D22/100 -> 0 | E19: =E16*E22/100 -> 0 | F19: 0 | G19: 0 | H19: 0 | I19: 0 | J19: 0 | K19: 0 | L19: 0 | M19: 4.738644315 | N19: 0 | O19: 0 | P19: 0 | Q19: 0 | BB19: Limited | BC19: N/A | BD19: N/A | BE19: N/A | BF19: N/A | BG19: N/A | BH19: N/A | BI19: N/A | BJ19: N/A | BK19: N/A | BL19: N/A | BM19: N/A | BN19: N/A | BO19: N/A | BP19: N/A | BQ19: N/A
B20: Unimproved | C20: =100-C18-C19-C21 -> 0.7719699986 | D20: =100-D18-D19-D21 -> 0.434277066 | E20: =100-E18-E19-E21 -> 0.4022867293 | F20: 0.1601078666 | G20: 0.6405563259 | H20: 1.028755627 | I20: 0.6252488351 | J20: 0.2072079203 | K20: 0.414469398 | L20: 0.622564122 | M20: 0.7538295115 | N20: 0 | O20: 0 | P20: 0 | Q20: 0 | BB20: Unimproved | BC20: N/A | BD20: N/A | BE20: N/A | BF20: N/A | BG20: N/A | BH20: N/A | BI20: N/A | BJ20: N/A | BK20: N/A | BL20: N/A | BM20: N/A | BN20: N/A | BO20: N/A | BP20: N/A | BQ20: N/A
B21: Surface water | C21: 0 | D21: 0 | E21: 0 | F21: 0 | G21: 0 | H21: 0 | I21: 0 | J21: 0 | K21: 0 | L21: 0 | M21: 0 | N21: 0 | O21: 0 | P21: 0 | Q21: 0 | BB21: Surface water | BC21: N/A | BD21: N/A | BE21: N/A | BF21: N/A | BG21: N/A | BH21: N/A | BI21: N/A | BJ21: N/A | BK21: N/A | BL21: N/A | BM21: N/A | BN21: N/A | BO21: N/A | BP21: N/A | BQ21: N/A
A22: Improved water point at more than 30 minutes | B22: Yes | C22: 2.46969055 | D22: 0 | E22: 0 | F22: 0 | G22: 0 | H22: 0 | I22: 0 | J22: 0 | K22: 0 | L22: 0 | M22: 4.774636937 | N22: 0 | O22: 0 | P22: 0 | Q22: 0 | BA22: Improved water point at more than 30 minutes | BB22: Yes | BC22: N/A | BD22: N/A | BE22: N/A | BF22: N/A | BG22: N/A | BH22: N/A | BI22: N/A | BJ22: N/A | BK22: N/A | BL22: N/A | BM22: N/A | BN22: N/A | BO22: N/A | BP22: N/A | BQ22: N/A
B23: No | C23: 97.53030945 | D23: 100 | E23: 100 | F23: 100 | G23: 100 | H23: 100 | I23: 100 | J23: 100 | K23: 100 | L23: 100 | M23: 95.22536306 | N23: 100 | O23: 100 | P23: 100 | Q23: 100 | BB23: No | BC23: N/A | BD23: N/A | BE23: N/A | BF23: N/A | BG23: N/A | BH23: N/A | BI23: N/A | BJ23: N/A | BK23: N/A | BL23: N/A | BM23: N/A | BN23: N/A | BO23: N/A | BP23: N/A | BQ23: N/A
A24: Manually calculated ratios | B24: Improved wells
B25: Improved springs
B26: Other
C27: NATIONAL wealth index quintile | H27: URBAN wealth index quintile | M27: RURAL wealth index quintile | BA27: Raw numbers of respondents: | BB27: Use of drinking water sources | BC27: NATIONAL wealth index quintile | BH27: URBAN wealth index quintile | BM27: RURAL wealth index quintile
A28: Percentage based on weighted population | C28: Poorest | D28: Poor | E28: Middle | F28: Rich | G28: Richest | H28: Poorest | I28: Poor | J28: Middle | K28: Rich | L28: Richest | M28: Poorest | N28: Poor | O28: Middle | P28: Rich | Q28: Richest | BA28: Water data, raw numbers (weighted) | BC28: Poorest | BD28: Poor | BE28: Middle | BF28: Rich | BG28: Richest | BH28: Poorest | BI28: Poor | BJ28: Middle | BK28: Rich | BL28: Richest | BM28: Poorest | BN28: Poor | BO28: Middle | BP28: Rich | BQ28: Richest
A29: Piped water | B29: Yes | C29: 89.51977742 | D29: 94.25053956 | E29: 97.33288285 | F29: 98.43895016 | G29: 98.81651206 | H29: 96.79270314 | I29: 98.5358776 | J29: 99.12749119 | K29: 99.40269663 | L29: 99.23110101 | M29: 74.41136928 | N29: 86.70967182 | O29: 81.50410742 | P29: 92.17303095 | Q29: 93.54294508 | BA29: Piped water | BB29: Yes | BC29: N/A | BD29: N/A | BE29: N/A | BF29: N/A | BG29: N/A | BH29: N/A | BI29: N/A | BJ29: N/A | BK29: N/A | BL29: N/A | BM29: N/A | BN29: N/A | BO29: N/A | BP29: N/A | BQ29: N/A
B30: No | C30: 10.48022258 | D30: 5.749460438 | E30: 2.667117153 | F30: 1.561049836 | G30: 1.183487942 | H30: 3.207296856 | I30: 1.464122401 | J30: 0.8725088119 | K30: 0.5973033694 | L30: 0.7688989899 | M30: 25.58863072 | N30: 13.29032818 | O30: 18.49589258 | P30: 7.826969055 | Q30: 6.457054917 | BB30: No | BC30: N/A | BD30: N/A | BE30: N/A | BF30: N/A | BG30: N/A | BH30: N/A | BI30: N/A | BJ30: N/A | BK30: N/A | BL30: N/A | BM30: N/A | BN30: N/A | BO30: N/A | BP30: N/A | BQ30: N/A
A31: Piped water on premises | B31: Yes | C31: 84.83938809 | D31: 92.20080705 | E31: 96.39253813 | F31: 97.88377582 | G31: 98.67163623 | H31: 91.95681742 | I31: 96.63103572 | J31: 98.2017894 | K31: 98.81003023 | L31: 99.04335901 | M31: 68.89200152 | N31: 86.06758015 | O31: 80.29950648 | P31: 91.40211424 | Q31: 93.54294508 | BA31: Piped water on premises | BB31: Yes | BC31: N/A | BD31: N/A | BE31: N/A | BF31: N/A | BG31: N/A | BH31: N/A | BI31: N/A | BJ31: N/A | BK31: N/A | BL31: N/A | BM31: N/A | BN31: N/A | BO31: N/A | BP31: N/A | BQ31: N/A
B32: No | C32: 15.16061191 | D32: 7.799192948 | E32: 3.607461872 | F32: 2.116224177 | G32: 1.328363772 | H32: 8.043182584 | I32: 3.368964283 | J32: 1.798210603 | K32: 1.189969773 | L32: 0.9566409886 | M32: 31.10799848 | N32: 13.93241985 | O32: 19.70049352 | P32: 8.597885756 | Q32: 6.457054917 | BB32: No | BC32: N/A | BD32: N/A | BE32: N/A | BF32: N/A | BG32: N/A | BH32: N/A | BI32: N/A | BJ32: N/A | BK32: N/A | BL32: N/A | BM32: N/A | BN32: N/A | BO32: N/A | BP32: N/A | BQ32: N/A
A33: Piped water into dwelling | B33: Yes | C33: N/A | D33: N/A | E33: N/A | F33: N/A | G33: N/A | H33: N/A | I33: N/A | J33: N/A | K33: N/A | L33: N/A | M33: N/A | N33: N/A | O33: N/A | P33: N/A | Q33: N/A | BA33: Piped water into dwelling | BB33: Yes | BC33: N/A | BD33: N/A | BE33: N/A | BF33: N/A | BG33: N/A | BH33: N/A | BI33: N/A | BJ33: N/A | BK33: N/A | BL33: N/A | BM33: N/A | BN33: N/A | BO33: N/A | BP33: N/A | BQ33: N/A
B34: No | C34: N/A | D34: N/A | E34: N/A | F34: N/A | G34: N/A | H34: N/A | I34: N/A | J34: N/A | K34: N/A | L34: N/A | M34: N/A | N34: N/A | O34: N/A | P34: N/A | Q34: N/A | BB34: No | BC34: N/A | BD34: N/A | BE34: N/A | BF34: N/A | BG34: N/A | BH34: N/A | BI34: N/A | BJ34: N/A | BK34: N/A | BL34: N/A | BM34: N/A | BN34: N/A | BO34: N/A | BP34: N/A | BQ34: N/A
A35: Water source on premises | B35: Yes | C35: N/A | D35: N/A | E35: N/A | F35: N/A | G35: N/A | H35: N/A | I35: N/A | J35: N/A | K35: N/A | L35: N/A | M35: N/A | N35: N/A | O35: N/A | P35: N/A | Q35: N/A | BA35: Water source on premises | BB35: Yes | BC35: N/A | BD35: N/A | BE35: N/A | BF35: N/A | BG35: N/A | BH35: N/A | BI35: N/A | BJ35: N/A | BK35: N/A | BL35: N/A | BM35: N/A | BN35: N/A | BO35: N/A | BP35: N/A | BQ35: N/A
B36: No | C36: N/A | D36: N/A | E36: N/A | F36: N/A | G36: N/A | H36: N/A | I36: N/A | J36: N/A | K36: N/A | L36: N/A | M36: N/A | N36: N/A | O36: N/A | P36: N/A | Q36: N/A | BB36: No | BC36: N/A | BD36: N/A | BE36: N/A | BF36: N/A | BG36: N/A | BH36: N/A | BI36: N/A | BJ36: N/A | BK36: N/A | BL36: N/A | BM36: N/A | BN36: N/A | BO36: N/A | BP36: N/A | BQ36: N/A
A37: Improved Water source on premises | B37: Yes | C37: N/A | D37: N/A | E37: N/A | F37: N/A | G37: N/A | H37: N/A | I37: N/A | J37: N/A | K37: N/A | L37: N/A | M37: N/A | N37: N/A | O37: N/A | P37: N/A | Q37: N/A | BA37: Improved water source on premises | BB37: Yes | BC37: N/A | BD37: N/A | BE37: N/A | BF37: N/A | BG37: N/A | BH37: N/A | BI37: N/A | BJ37: N/A | BK37: N/A | BL37: N/A | BM37: N/A | BN37: N/A | BO37: N/A | BP37: N/A | BQ37: N/A
B38: No | C38: N/A | D38: N/A | E38: N/A | F38: N/A | G38: N/A | H38: N/A | I38: N/A | J38: N/A | K38: N/A | L38: N/A | M38: N/A | N38: N/A | O38: N/A | P38: N/A | Q38: N/A | BB38: No | BC38: N/A | BD38: N/A | BE38: N/A | BF38: N/A | BG38: N/A | BH38: N/A | BI38: N/A | BJ38: N/A | BK38: N/A | BL38: N/A | BM38: N/A | BN38: N/A | BO38: N/A | BP38: N/A | BQ38: N/A
A39: Piped water on premises available when needed | B39: Yes | C39: N/A | D39: N/A | E39: N/A | F39: N/A | G39: N/A | H39: N/A | I39: N/A | J39: N/A | K39: N/A | L39: N/A | M39: N/A | N39: N/A | O39: N/A | P39: N/A | Q39: N/A | BA39: Piped water on premises available when needed | BB39: Yes | BC39: N/A | BD39: N/A | BE39: N/A | BF39: N/A | BG39: N/A | BH39: N/A | BI39: N/A | BJ39: N/A | BK39: N/A | BL39: N/A | BM39: N/A | BN39: N/A | BO39: N/A | BP39: N/A | BQ39: N/A
B40: No | C40: N/A | D40: N/A | E40: N/A | F40: N/A | G40: N/A | H40: N/A | I40: N/A | J40: N/A | K40: N/A | L40: N/A | M40: N/A | N40: N/A | O40: N/A | P40: N/A | Q40: N/A | BB40: No | BC40: N/A | BD40: N/A | BE40: N/A | BF40: N/A | BG40: N/A | BH40: N/A | BI40: N/A | BJ40: N/A | BK40: N/A | BL40: N/A | BM40: N/A | BN40: N/A | BO40: N/A | BP40: N/A | BQ40: N/A
A41: Water point at more than 30 minutes | B41: Yes | C41: 2.37574024 | D41: 0 | E41: 0 | F41: 0 | G41: 0 | H41: 0 | I41: 0 | J41: 0 | K41: 0 | L41: 0 | M41: 4.656330097 | N41: 0 | O41: 0 | P41: 0 | Q41: 0 | BA41: Water point at more than 30 minutes | BB41: Yes | BC41: N/A | BD41: N/A | BE41: N/A | BF41: N/A | BG41: N/A | BH41: N/A | BI41: N/A | BJ41: N/A | BK41: N/A | BL41: N/A | BM41: N/A | BN41: N/A | BO41: N/A | BP41: N/A | BQ41: N/A
B42: No | C42: 97.62425976 | D42: 100 | E42: 100 | F42: 100 | G42: 100 | H42: 100 | I42: 100 | J42: 100 | K42: 100 | L42: 100 | M42: 95.3436699 | N42: 100 | O42: 100 | P42: 100 | Q42: 100 | BB42: No | BC42: N/A | BD42: N/A | BE42: N/A | BF42: N/A | BG42: N/A | BH42: N/A | BI42: N/A | BJ42: N/A | BK42: N/A | BL42: N/A | BM42: N/A | BN42: N/A | BO42: N/A | BP42: N/A | BQ42: N/A
A43: Water source available when needed | B43: Yes | C43: N/A | D43: N/A | E43: N/A | F43: N/A | G43: N/A | H43: N/A | I43: N/A | J43: N/A | K43: N/A | L43: N/A | M43: N/A | N43: N/A | O43: N/A | P43: N/A | Q43: N/A | BA43: Water source available when needed | BB43: Yes | BC43: N/A | BD43: N/A | BE43: N/A | BF43: N/A | BG43: N/A | BH43: N/A | BI43: N/A | BJ43: N/A | BK43: N/A | BL43: N/A | BM43: N/A | BN43: N/A | BO43: N/A | BP43: N/A | BQ43: N/A
B44: No | C44: N/A | D44: N/A | E44: N/A | F44: N/A | G44: N/A | H44: N/A | I44: N/A | J44: N/A | K44: N/A | L44: N/A | M44: N/A | N44: N/A | O44: N/A | P44: N/A | Q44: N/A | BB44: No | BC44: N/A | BD44: N/A | BE44: N/A | BF44: N/A | BG44: N/A | BH44: N/A | BI44: N/A | BJ44: N/A | BK44: N/A | BL44: N/A | BM44: N/A | BN44: N/A | BO44: N/A | BP44: N/A | BQ44: N/A
A45: Improved water source available when needed | B45: Yes | C45: N/A | D45: N/A | E45: N/A | F45: N/A | G45: N/A | H45: N/A | I45: N/A | J45: N/A | K45: N/A | L45: N/A | M45: N/A | N45: N/A | O45: N/A | P45: N/A | Q45: N/A | BA45: Improved water source available when needed | BB45: Yes | BC45: N/A | BD45: N/A | BE45: N/A | BF45: N/A | BG45: N/A | BH45: N/A | BI45: N/A | BJ45: N/A | BK45: N/A | BL45: N/A | BM45: N/A | BN45: N/A | BO45: N/A | BP45: N/A | BQ45: N/A
B46: No | C46: N/A | D46: N/A | E46: N/A | F46: N/A | G46: N/A | H46: N/A | I46: N/A | J46: N/A | K46: N/A | L46: N/A | M46: N/A | N46: N/A | O46: N/A | P46: N/A | Q46: N/A | BB46: No | BC46: N/A | BD46: N/A | BE46: N/A | BF46: N/A | BG46: N/A | BH46: N/A | BI46: N/A | BJ46: N/A | BK46: N/A | BL46: N/A | BM46: N/A | BN46: N/A | BO46: N/A | BP46: N/A | BQ46: N/A
A47: Microbiological quality at point of collection | B47: Not contaminated (No E. coli in 100 mL) | C47: N/A | D47: N/A | E47: N/A | F47: N/A | G47: N/A | H47: N/A | I47: N/A | J47: N/A | K47: N/A | L47: N/A | M47: N/A | N47: N/A | O47: N/A | P47: N/A | Q47: N/A | BA47: Microbiological quality at point of collection | BB47: Not contaminated (No E. coli in 100 mL) | BC47: N/A | BD47: N/A | BE47: N/A | BF47: N/A | BG47: N/A | BH47: N/A | BI47: N/A | BJ47: N/A | BK47: N/A | BL47: N/A | BM47: N/A | BN47: N/A | BO47: N/A | BP47: N/A | BQ47: N/A
B48: Contaminated (E. coli detected in 100 mL) | C48: N/A | D48: N/A | E48: N/A | F48: N/A | G48: N/A | H48: N/A | I48: N/A | J48: N/A | K48: N/A | L48: N/A | M48: N/A | N48: N/A | O48: N/A | P48: N/A | Q48: N/A | BB48: Contaminated (E. coli detected in 100 mL) | BC48: N/A | BD48: N/A | BE48: N/A | BF48: N/A | BG48: N/A | BH48: N/A | BI48: N/A | BJ48: N/A | BK48: N/A | BL48: N/A | BM48: N/A | BN48: N/A | BO48: N/A | BP48: N/A | BQ48: N/A
B49: Highly contaminated (>100 CFU/100 mL) | C49: N/A | D49: N/A | E49: N/A | F49: N/A | G49: N/A | H49: N/A | I49: N/A | J49: N/A | K49: N/A | L49: N/A | M49: N/A | N49: N/A | O49: N/A | P49: N/A | Q49: N/A | BB49: Highly contaminated (>100 CFU/100 mL) | BC49: N/A | BD49: N/A | BE49: N/A | BF49: N/A | BG49: N/A | BH49: N/A | BI49: N/A | BJ49: N/A | BK49: N/A | BL49: N/A | BM49: N/A | BN49: N/A | BO49: N/A | BP49: N/A | BQ49: N/A
A50: Microbiological quality of improved water sources at point of collection | B50: Not contaminated (No E. coli in 100 mL) | C50: N/A | D50: N/A | E50: N/A | F50: N/A | G50: N/A | H50: N/A | I50: N/A | J50: N/A | K50: N/A | L50: N/A | M50: N/A | N50: N/A | O50: N/A | P50: N/A | Q50: N/A | BA50: Microbiological quality of improved water sources at point of collection | BB50: Not contaminated (No E. coli in 100 mL) | BC50: N/A | BD50: N/A | BE50: N/A | BF50: N/A | BG50: N/A | BH50: N/A | BI50: N/A | BJ50: N/A | BK50: N/A | BL50: N/A | BM50: N/A | BN50: N/A | BO50: N/A | BP50: N/A | BQ50: N/A
B51: Contaminated (E. coli detected in 100 mL) | C51: N/A | D51: N/A | E51: N/A | F51: N/A | G51: N/A | H51: N/A | I51: N/A | J51: N/A | K51: N/A | L51: N/A | M51: N/A | N51: N/A | O51: N/A | P51: N/A | Q51: N/A | BB51: Contaminated (E. coli detected in 100 mL) | BC51: N/A | BD51: N/A | BE51: N/A | BF51: N/A | BG51: N/A | BH51: N/A | BI51: N/A | BJ51: N/A | BK51: N/A | BL51: N/A | BM51: N/A | BN51: N/A | BO51: N/A | BP51: N/A | BQ51: N/A
B52: Highly contaminated (>100 CFU/100 mL) | C52: N/A | D52: N/A | E52: N/A | F52: N/A | G52: N/A | H52: N/A | I52: N/A | J52: N/A | K52: N/A | L52: N/A | M52: N/A | N52: N/A | O52: N/A | P52: N/A | Q52: N/A | BB52: Highly contaminated (>100 CFU/100 mL) | BC52: N/A | BD52: N/A | BE52: N/A | BF52: N/A | BG52: N/A | BH52: N/A | BI52: N/A | BJ52: N/A | BK52: N/A | BL52: N/A | BM52: N/A | BN52: N/A | BO52: N/A | BP52: N/A | BQ52: N/A
A53: Microbiological quality of piped on premises at point of collection | B53: Not contaminated (No E. coli in 100 mL) | C53: N/A | D53: N/A | E53: N/A | F53: N/A | G53: N/A | H53: N/A | I53: N/A | J53: N/A | K53: N/A | L53: N/A | M53: N/A | N53: N/A | O53: N/A | P53: N/A | Q53: N/A | BA53: Microbiological quality of piped on premises at point of collection | BB53: Not contaminated (No E. coli in 100 mL) | BC53: N/A | BD53: N/A | BE53: N/A | BF53: N/A | BG53: N/A | BH53: N/A | BI53: N/A | BJ53: N/A | BK53: N/A | BL53: N/A | BM53: N/A | BN53: N/A | BO53: N/A | BP53: N/A | BQ53: N/A
B54: Contaminated (E. coli detected in 100 mL) | C54: N/A | D54: N/A | E54: N/A | F54: N/A | G54: N/A | H54: N/A | I54: N/A | J54: N/A | K54: N/A | L54: N/A | M54: N/A | N54: N/A | O54: N/A | P54: N/A | Q54: N/A | BB54: Contaminated (E. coli detected in 100 mL) | BC54: N/A | BD54: N/A | BE54: N/A | BF54: N/A | BG54: N/A | BH54: N/A | BI54: N/A | BJ54: N/A | BK54: N/A | BL54: N/A | BM54: N/A | BN54: N/A | BO54: N/A | BP54: N/A | BQ54: N/A
B55: Highly contaminated (>100 CFU/100 mL) | C55: N/A | D55: N/A | E55: N/A | F55: N/A | G55: N/A | H55: N/A | I55: N/A | J55: N/A | K55: N/A | L55: N/A | M55: N/A | N55: N/A | O55: N/A | P55: N/A | Q55: N/A | BB55: Highly contaminated (>100 CFU/100 mL) | BC55: N/A | BD55: N/A | BE55: N/A | BF55: N/A | BG55: N/A | BH55: N/A | BI55: N/A | BJ55: N/A | BK55: N/A | BL55: N/A | BM55: N/A | BN55: N/A | BO55: N/A | BP55: N/A | BQ55: N/A
C56: NATIONAL wealth index quintile | H56: URBAN wealth index quintile | M56: RURAL wealth index quintile | BA56: Raw numbers of respondents: | BB56: Use of drinking water sources | BC56: NATIONAL wealth index quintile | BH56: URBAN wealth index quintile | BM56: RURAL wealth index quintile
A57: Percentage based on weighted population | C57: Poorest | D57: Poor | E57: Middle | F57: Rich | G57: Richest | H57: Poorest | I57: Poor | J57: Middle | K57: Rich | L57: Richest | M57: Poorest | N57: Poor | O57: Middle | P57: Rich | Q57: Richest | BA57: Water data, raw numbers (weighted) | BC57: Poorest | BD57: Poor | BE57: Middle | BF57: Rich | BG57: Richest | BH57: Poorest | BI57: Poor | BJ57: Middle | BK57: Rich | BL57: Richest | BM57: Poorest | BN57: Poor | BO57: Middle | BP57: Rich | BQ57: Richest
A58: main source of drinking water | B58: Piped water through house connection or yard | C58: 85.3523623 | D58: 92.60296047 | E58: 96.78187878 | F58: 98.04074677 | G58: 99.30775836 | H58: 92.91266165 | I58: 97.23902157 | J58: 98.40569379 | K58: 99.22127204 | L58: 99.66383026 | M58: 68.89200152 | N58: 86.06758015 | O58: 80.29950648 | P58: 91.40211424 | Q58: 93.54294508
B59: Public standpipe | C59: 4.708688912 | D59: 2.058672854 | E59: 0.9441428801 | F59: 0.5560646451 | G59: 0.1458098237 | H59: 4.886152296 | I59: 1.91682682 | J59: 0.927623901 | K59: 0.5951330475 | L59: 0.1889181352 | M59: 5.519367754 | N59: 0.6420916708 | O59: 1.204600933 | P59: 0.7709167011 | Q59: 0
B60: Protected tube well or bore hole | C60: 4.650171253 | D60: 3.88852272 | E60: 1.323493232 | F60: 0.4166061953 | G60: 0.3901588325 | H60: 1.161915522 | I60: 0.1795145971 | J60: 0.1878476563 | K60: 0.1835949162 | L60: 0.1472516036 | M60: 9.884078043 | N60: 8.463749191 | O60: 14.4589422 | P60: 5.187376159 | Q60: 2.396017025
B61: Protected dug well or protected spring | C61: 3.848165297 | D61: 1.334553097 | E61: 0.9504851045 | F61: 0.8875439603 | G61: 0.1562729872 | H61: 0.649969876 | I61: 0.6646370165 | J61: 0.3506009013 | K61: 0 | L61: 0 | M61: 12.11979449 | N61: 3.426775306 | O61: 3.531924451 | P61: 2.639592895 | Q61: 4.061037893
B62: Unprotected dug well or spring | C62: 0.1719960765 | D62: 0 | E62: 0 | F62: 0 | G62: 0 | H62: 0 | I62: 0 | J62: 0 | K62: 0 | L62: 0 | M62: 0.7538295115 | N62: 0 | O62: 0 | P62: 0 | Q62: 0
B63: Rainwater (into tank or cistern ) | C63: 1.130034318 | D63: 0.1152908571 | E63: 0 | F63: 0 | G63: 0 | H63: 0.209314915 | I63: 0 | J63: 0 | K63: 0 | L63: 0 | M63: 2.830928677 | N63: 1.39980368 | O63: 0.5050259321 | P63: 0 | Q63: 0
B64: Tanker-truck, vendor | C64: 0.1385818402 | D64: 0 | E64: 0 | F64: 0.09903842864 | G64: 0 | H64: 0.1799857416 | I64: 0 | J64: 0.1282337526 | K64: 0 | L64: 0 | M64: 0 | N64: 0 | O64: 0 | P64: 0 | Q64: 0
A108: =A1026 -> Uruguay
A109: =A1034 -> 2003
A110: Use of sanitation facilities
A111: by wealth quintile and sub-national region
A112: Notes:
A113: WHO/UNICEF JMP customised wealth index excludes water,
A114: sanitation and hygiene assets.
A115: Survey used for analysis: | B115: =A1025 -> WHS03
A116: =B1030 -> 
A117: =B1029 -> 
A120: Use of sanitation facilities | C120: NATIONAL wealth index quintile | H120: URBAN wealth index quintile | M120: RURAL wealth index quintile | BA120: Raw numbers of respondents: | BB120: Use of sanitation facilities | BC120: NATIONAL wealth index quintile | BH120: URBAN wealth index quintile | BM120: RURAL wealth index quintile
A121: Weighted percentage (used in graphs) | C121: Poorest | D121: Poor | E121: Middle | F121: Rich | G121: Richest | H121: Poorest | I121: Poor | J121: Middle | K121: Rich | L121: Richest | M121: Poorest | N121: Poor | O121: Middle | P121: Rich | Q121: Richest | BA121: Sanitation data, raw numbers (weighted) | BC121: Poorest | BD121: Poor | BE121: Middle | BF121: Rich | BG121: Richest | BH121: Poorest | BI121: Poor | BJ121: Middle | BK121: Rich | BL121: Richest | BM121: Poorest | BN121: Poor | BO121: Middle | BP121: Rich | BQ121: Richest
A122: Sanitation | B122: Improved | C122: 99.84499631 | D122: 99.88520982 | E122: 100 | F122: 99.83989213 | G122: 99.83986092 | H122: 100 | I122: 100 | J122: 100 | K122: 99.7927653 | L122: 99.79247863 | M122: 99.31653758 | N122: 100 | O122: 99.49497407 | P122: 100 | Q122: 100 | BA122: Sanitation | BB122: Improved | BC122: 222169.9628 | BD122: 223097.9921 | BE122: 222131.9663 | BF122: 222280.2359 | BG122: 222236.8388 | BH122: 172068.0394 | BI122: 171819.1317 | BJ122: 172029.5545 | BK122: 171650.8662 | BL122: 171413.2511 | BM122: 50119.6459 | BN122: 51029.13712 | BO122: 50511.08051 | BP122: 50229.4559 | BQ122: 51046.83347
B123: Not Improved | C123: 0.1550036865 | D123: 0.1147901753 | E123: 0 | F123: 0.1601078666 | G123: 0.1601390815 | H123: 0 | I123: 0 | J123: 0 | K123: 0.207234699 | L123: 0.207521374 | M123: 0.6834624212 | N123: 0 | O123: 0.5050259321 | P123: 0 | Q123: 0 | BB123: Not Improved | BC123: 344.90625 | BD123: 256.3888855 | BE123: 0 | BF123: 356.4588623 | BG123: 356.4588623 | BH123: 0 | BI123: 0 | BJ123: 0 | BK123: 356.4588623 | BL123: 356.4588623 | BM123: 344.90625 | BN123: 0 | BO123: 256.3888855 | BP123: 0 | BQ123: 0
A124: Sanitation ladder | B124: Basic | C124: =C122*C129/100 -> 97.79992104 | D124: =D122*D129/100 -> 99.07673492 | E124: =E122*E129/100 -> 99.85400167 | F124: 99.51916206 | G124: 99.59777331 | H124: 99.09242679 | I124: 99.45321665 | J124: 99.60451418 | K124: 99.39991824 | L124: 99.664317 | M124: 93.68515676 | N124: 98.64538176 | O124: 98.85283235 | P124: 100 | Q124: 100 | BA124: Sanitation ladder | BB124: Basic | BC124: 215413.9826 | BD124: 220097.8553 | BE124: 220559.4161 | BF124: 221210.8593 | BG124: 221342.3735 | BH124: 168134.2661 | BI124: 169066.5044 | BJ124: 170994.1529 | BK124: 170620.0848 | BL124: 171193.1083 | BM124: 46818.76712 | BN124: 50337.88712 | BO124: 50183.42667 | BP124: 50229.4559 | BQ124: 51046.83347
B125: Limited | C125: =C122*C128/100 -> 2.045075277 | D125: =D122*D128/100 -> 0.8084748997 | E125: =E122*E128/100 -> 0.1459983306 | F125: 0.3207300709 | G125: 0.242087611 | H125: 0.9075732106 | I125: 0.5467833506 | J125: 0.3954858193 | K125: 0.3928470635 | L125: 0.1281616257 | M125: 5.631380822 | N125: 1.354618242 | O125: 0.6421417222 | P125: 0 | Q125: 0 | BB125: Limited | BC125: 4504.480225 | BD125: 1798.110077 | BE125: 322.4838867 | BF125: 712.9177246 | BG125: 538.0064697 | BH125: 1539.917435 | BI125: 929.509903 | BJ125: 678.942749 | BK125: 674.3224792 | BL125: 220.1428528 | BM125: 2814.259125 | BN125: 691.25 | BO125: 327.6538391 | BP125: 0 | BQ125: 0
B126: Unimproved | C126: =100-C124-C125-C127 -> 0.1550036865 | D126: =100-D124-D125-D127 -> 0.1147901753 | E126: =100-E124-E125-E127 -> -2.01505479e-14 | F126: 0.1601078666 | G126: 0.1601390815 | H126: -7.105427358e-15 | I126: 8.215650382e-15 | J126: 3.219646771e-15 | K126: 0.207234699 | L126: 0.207521374 | M126: 0.6834624212 | N126: -8.881784197e-16 | O126: 0.5050259321 | P126: 0 | Q126: 0 | BB126: Unimproved | BC126: 344.90625 | BD126: 256.3888855 | BE126: 0 | BF126: 356.4588623 | BG126: 356.4588623 | BH126: 0 | BI126: 0 | BJ126: 0 | BK126: 356.4588623 | BL126: 356.4588623 | BM126: 344.90625 | BN126: 0 | BO126: 256.3888855 | BP126: 0 | BQ126: 0
B127: Open defecation | C127: 0 | D127: 0 | E127: 0 | F127: 0 | G127: 0 | H127: 0 | I127: 0 | J127: 0 | K127: 0 | L127: 0 | M127: 0 | N127: 0 | O127: 0 | P127: 0 | Q127: 0 | BB127: Open defecation | BC127: 100636.8855 | BD127: 135625.9589 | BE127: 174455.9052 | BF127: 189870.6586 | BG127: 200381.5083 | BH127: 103120.5467 | BI127: 132995.5942 | BJ127: 144411.6387 | BK127: 152654.1307 | BL127: 161005.8684 | BM127: 12064.1434 | BN127: 18193.69107 | BO127: 16523.34796 | BP127: 30585.30661 | BQ127: 29416.6488
A128: Shared among Improved Sanitation | B128: Yes | C128: 2.048250141 | D128: 0.809404016 | E128: 0.1459983306 | F128: 0.3212444084 | G128: 0.2424759097 | H128: 0.9075732106 | I128: 0.5467833506 | J128: 0.3954858193 | K128: 0.3936628696 | L128: 0.1284281415 | M128: 5.670134057 | N128: 1.354618242 | O128: 0.6454011654 | P128: 0 | Q128: 0 | BA128: Shared among improved sanitation facilities | BB128: Yes | BC128: N/A | BD128: N/A | BE128: N/A | BF128: N/A | BG128: N/A | BH128: N/A | BI128: N/A | BJ128: N/A | BK128: N/A | BL128: N/A | BM128: N/A | BN128: N/A | BO128: N/A | BP128: N/A | BQ128: N/A
B129: No | C129: 97.95174986 | D129: 99.19059598 | E129: 99.85400167 | F129: 99.67875559 | G129: 99.75752409 | H129: 99.09242679 | I129: 99.45321665 | J129: 99.60451418 | K129: 99.60633713 | L129: 99.87157186 | M129: 94.32986594 | N129: 98.64538176 | O129: 99.35459883 | P129: 100 | Q129: 100 | BB129: No | BC129: N/A | BD129: N/A | BE129: N/A | BF129: N/A | BG129: N/A | BH129: N/A | BI129: N/A | BJ129: N/A | BK129: N/A | BL129: N/A | BM129: N/A | BN129: N/A | BO129: N/A | BP129: N/A | BQ129: N/A
A130: Manually calculated ratios | B130: Improved latrines
B131: Other
B132: Other
C133: NATIONAL wealth index quintile | H133: URBAN wealth index quintile | M133: RURAL wealth index quintile | BA133: Raw numbers of respondents: | BB133: Use of sanitation facilities | BC133: NATIONAL wealth index quintile | BH133: URBAN wealth index quintile | BM133: RURAL wealth index quintile
A134: Percentage based on weighted population | C134: Poorest | D134: Poor | E134: Middle | F134: Rich | G134: Richest | H134: Poorest | I134: Poor | J134: Middle | K134: Rich | L134: Richest | M134: Poorest | N134: Poor | O134: Middle | P134: Rich | Q134: Richest | BA134: Sanitation data, raw numbers (weighted) | BC134: Poorest | BD134: Poor | BE134: Middle | BF134: Rich | BG134: Richest | BH134: Poorest | BI134: Poor | BJ134: Middle | BK134: Rich | BL134: Richest | BM134: Poorest | BN134: Poor | BO134: Middle | BP134: Rich | BQ134: Richest
A135: Sanitation type | B135: Sewer connection | C135: 45.22703849 | D135: 60.72231866 | E135: 78.5370553 | F135: 85.28273329 | G135: 90.0213575 | H135: 59.93009919 | I135: 77.40441527 | J135: 83.94583074 | K135: 88.748622 | L135: 93.73356243 | M135: 23.90617352 | N135: 35.65353463 | O135: 32.54711759 | P135: 60.89117642 | Q135: 57.62678467 | BA135: Sanitation type | BB135: Sewer connection | BC135: N/A | BD135: N/A | BE135: N/A | BF135: N/A | BG135: N/A | BH135: N/A | BI135: N/A | BJ135: N/A | BK135: N/A | BL135: N/A | BM135: N/A | BN135: N/A | BO135: N/A | BP135: N/A | BQ135: N/A
B136: Septic tank connection | C136: 49.97810055 | D136: 38.31639078 | E136: 20.67616864 | F136: 14.55715884 | G136: 9.818503423 | H136: 38.0239412 | I136: 21.60179065 | J136: 16.05416926 | K136: 11.04414331 | L136: 6.058916197 | M136: 71.02982307 | N136: 54.58628344 | O136: 65.17505778 | P136: 37.82747155 | Q136: 42.37321533 | BB136: Septic tank connection | BC136: N/A | BD136: N/A | BE136: N/A | BF136: N/A | BG136: N/A | BH136: N/A | BI136: N/A | BJ136: N/A | BK136: N/A | BL136: N/A | BM136: N/A | BN136: N/A | BO136: N/A | BP136: N/A | BQ136: N/A
B137: Improved latrines | C137: 4.639857277 | D137: 0.8465003779 | E137: 0.7867760552 | F137: 0 | G137: 0 | H137: 2.045959614 | I137: 0.9937940754 | J137: 0 | K137: 0 | L137: 0 | M137: 4.380540989 | N137: 9.760181933 | O137: 1.772798696 | P137: 1.281352024 | Q137: 0 | BB137: Improved latrines | BC137: N/A | BD137: N/A | BE137: N/A | BF137: N/A | BG137: N/A | BH137: N/A | BI137: N/A | BJ137: N/A | BK137: N/A | BL137: N/A | BM137: N/A | BN137: N/A | BO137: N/A | BP137: N/A | BQ137: N/A
B138: Unimproved facilities | C138: 0.1550036865 | D138: 0.1147901753 | E138: 0 | F138: 0.1601078666 | G138: 0.1601390815 | H138: 0 | I138: 0 | J138: 0 | K138: 0.207234699 | L138: 0.207521374 | M138: 0.6834624212 | N138: 0 | O138: 0.5050259321 | P138: 0 | Q138: 0 | BB138: Unimproved facilities | BC138: N/A | BD138: N/A | BE138: N/A | BF138: N/A | BG138: N/A | BH138: N/A | BI138: N/A | BJ138: N/A | BK138: N/A | BL138: N/A | BM138: N/A | BN138: N/A | BO138: N/A | BP138: N/A | BQ138: N/A
B139: Open defecation | C139: 0 | D139: 0 | E139: 0 | F139: 0 | G139: 0 | H139: 0 | I139: 0 | J139: 0 | K139: 0 | L139: 0 | M139: 0 | N139: 0 | O139: 0 | P139: 0 | Q139: 0 | BB139: Open defecation | BC139: N/A | BD139: N/A | BE139: N/A | BF139: N/A | BG139: N/A | BH139: N/A | BI139: N/A | BJ139: N/A | BK139: N/A | BL139: N/A | BM139: N/A | BN139: N/A | BO139: N/A | BP139: N/A | BQ139: N/A
A140: Septic tank emptying practices | B140: Not emptied/treated and disposed in situ | C140: N/A | D140: N/A | E140: N/A | F140: N/A | G140: N/A | H140: N/A | I140: N/A | J140: N/A | K140: N/A | L140: N/A | M140: N/A | N140: N/A | O140: N/A | P140: N/A | Q140: N/A | BA140: Septic tank emptying practices | BB140: Not emptied/treated and disposed in situ | BC140: N/A | BD140: N/A | BE140: N/A | BF140: N/A | BG140: N/A | BH140: N/A | BI140: N/A | BJ140: N/A | BK140: N/A | BL140: N/A | BM140: N/A | BN140: N/A | BO140: N/A | BP140: N/A | BQ140: N/A
B141: Emptied and buried on site | C141: N/A | D141: N/A | E141: N/A | F141: N/A | G141: N/A | H141: N/A | I141: N/A | J141: N/A | K141: N/A | L141: N/A | M141: N/A | N141: N/A | O141: N/A | P141: N/A | Q141: N/A | BB141: Emptied and buried on site | BC141: N/A | BD141: N/A | BE141: N/A | BF141: N/A | BG141: N/A | BH141: N/A | BI141: N/A | BJ141: N/A | BK141: N/A | BL141: N/A | BM141: N/A | BN141: N/A | BO141: N/A | BP141: N/A | BQ141: N/A
B142: Emptied and discharged locally | C142: N/A | D142: N/A | E142: N/A | F142: N/A | G142: N/A | H142: N/A | I142: N/A | J142: N/A | K142: N/A | L142: N/A | M142: N/A | N142: N/A | O142: N/A | P142: N/A | Q142: N/A | BB142: Emptied and discharged locally | BC142: N/A | BD142: N/A | BE142: N/A | BF142: N/A | BG142: N/A | BH142: N/A | BI142: N/A | BJ142: N/A | BK142: N/A | BL142: N/A | BM142: N/A | BN142: N/A | BO142: N/A | BP142: N/A | BQ142: N/A
B143: Emptied and removed offsite | C143: N/A | D143: N/A | E143: N/A | F143: N/A | G143: N/A | H143: N/A | I143: N/A | J143: N/A | K143: N/A | L143: N/A | M143: N/A | N143: N/A | O143: N/A | P143: N/A | Q143: N/A | BB143: Emptied and removed offsite | BC143: N/A | BD143: N/A | BE143: N/A | BF143: N/A | BG143: N/A | BH143: N/A | BI143: N/A | BJ143: N/A | BK143: N/A | BL143: N/A | BM143: N/A | BN143: N/A | BO143: N/A | BP143: N/A | BQ143: N/A
A144: Latrine emptying practices | B144: Not emptied/treated and disposed in situ | C144: N/A | D144: N/A | E144: N/A | F144: N/A | G144: N/A | H144: N/A | I144: N/A | J144: N/A | K144: N/A | L144: N/A | M144: N/A | N144: N/A | O144: N/A | P144: N/A | Q144: N/A | BA144: Latrine emptying practices | BB144: Not emptied/treated and disposed in situ | BC144: N/A | BD144: N/A | BE144: N/A | BF144: N/A | BG144: N/A | BH144: N/A | BI144: N/A | BJ144: N/A | BK144: N/A | BL144: N/A | BM144: N/A | BN144: N/A | BO144: N/A | BP144: N/A | BQ144: N/A
B145: Emptied and buried on site | C145: N/A | D145: N/A | E145: N/A | F145: N/A | G145: N/A | H145: N/A | I145: N/A | J145: N/A | K145: N/A | L145: N/A | M145: N/A | N145: N/A | O145: N/A | P145: N/A | Q145: N/A | BB145: Emptied and buried on site | BC145: N/A | BD145: N/A | BE145: N/A | BF145: N/A | BG145: N/A | BH145: N/A | BI145: N/A | BJ145: N/A | BK145: N/A | BL145: N/A | BM145: N/A | BN145: N/A | BO145: N/A | BP145: N/A | BQ145: N/A
B146: Emptied and discharged locally | C146: N/A | D146: N/A | E146: N/A | F146: N/A | G146: N/A | H146: N/A | I146: N/A | J146: N/A | K146: N/A | L146: N/A | M146: N/A | N146: N/A | O146: N/A | P146: N/A | Q146: N/A | BB146: Emptied and discharged locally | BC146: N/A | BD146: N/A | BE146: N/A | BF146: N/A | BG146: N/A | BH146: N/A | BI146: N/A | BJ146: N/A | BK146: N/A | BL146: N/A | BM146: N/A | BN146: N/A | BO146: N/A | BP146: N/A | BQ146: N/A
B147: Emptied and removed offsite | C147: N/A | D147: N/A | E147: N/A | F147: N/A | G147: N/A | H147: N/A | I147: N/A | J147: N/A | K147: N/A | L147: N/A | M147: N/A | N147: N/A | O147: N/A | P147: N/A | Q147: N/A | BB147: Emptied and removed offsite | BC147: N/A | BD147: N/A | BE147: N/A | BF147: N/A | BG147: N/A | BH147: N/A | BI147: N/A | BJ147: N/A | BK147: N/A | BL147: N/A | BM147: N/A | BN147: N/A | BO147: N/A | BP147: N/A | BQ147: N/A
A148: Shared among improved sanitation facilities | B148: Yes | C148: 2.024350212 | D148: 0.8050480449 | E148: 0.1451767128 | F148: 0.3202157333 | G148: 0.2416993123 | H148: 0.8949468127 | I148: 0.540981609 | J148: 0.3946663414 | K148: 0.3920312574 | L148: 0.1281616257 | M148: 5.576704844 | N148: 1.354618242 | O148: 0.6454011654 | P148: 0 | Q148: 0 | BA148: Shared among improved sanitation facilities | BB148: Yes | BC148: N/A | BD148: N/A | BE148: N/A | BF148: N/A | BG148: N/A | BH148: N/A | BI148: N/A | BJ148: N/A | BK148: N/A | BL148: N/A | BM148: N/A | BN148: N/A | BO148: N/A | BP148: N/A | BQ148: N/A
B149: No | C149: 96.80880362 | D149: 98.65678177 | E149: 99.29206489 | F149: 99.35956853 | G149: 99.43802252 | H149: 97.71382681 | I149: 98.39795068 | J149: 99.39812574 | K149: 99.19349934 | L149: 99.664317 | M149: 92.77555258 | N149: 98.64538176 | O149: 99.35459883 | P149: 100 | Q149: 100 | BB149: No | BC149: N/A | BD149: N/A | BE149: N/A | BF149: N/A | BG149: N/A | BH149: N/A | BI149: N/A | BJ149: N/A | BK149: N/A | BL149: N/A | BM149: N/A | BN149: N/A | BO149: N/A | BP149: N/A | BQ149: N/A
B150: DK/missing | C150: 1.166846166 | D150: 0.5381701861 | E150: 0.5627583931 | F150: 0.3202157333 | G150: 0.3202781629 | H150: 1.39122638 | I150: 1.06106771 | J150: 0.2072079203 | K150: 0.414469398 | L150: 0.207521374 | M150: 1.647742572 | N150: 0 | O150: 0 | P150: 0 | Q150: 0 | BB150: DK/missing | BC150: N/A | BD150: N/A | BE150: N/A | BF150: N/A | BG150: N/A | BH150: N/A | BI150: N/A | BJ150: N/A | BK150: N/A | BL150: N/A | BM150: N/A | BN150: N/A | BO150: N/A | BP150: N/A | BQ150: N/A
A151: Shared among all sanitation facilities | B151: Yes | C151: 98.35040737 | D151: 99.18609677 | E151: 99.85351351 | F151: 99.67661033 | G151: 99.75712122 | H151: 99.28002151 | I151: 99.45087636 | J151: 99.60195413 | K151: 99.60463819 | L151: 99.87129552 | M151: 95.31650586 | N151: 98.60710754 | O151: 99.3516586 | P151: 100 | Q151: 100 | BA151: Shared among all sanitation facilities | BB151: Yes | BC151: N/A | BD151: N/A | BE151: N/A | BF151: N/A | BG151: N/A | BH151: N/A | BI151: N/A | BJ151: N/A | BK151: N/A | BL151: N/A | BM151: N/A | BN151: N/A | BO151: N/A | BP151: N/A | BQ151: N/A
B152: No | C152: 1.64959263 | D152: 0.8139032311 | E152: 0.1464864932 | F152: 0.3233896651 | G152: 0.2428787822 | H152: 0.7199784921 | I152: 0.5491236429 | J152: 0.3980458733 | K152: 0.3953618114 | L152: 0.1287044831 | M152: 4.683494143 | N152: 1.392892465 | O152: 0.6483413975 | P152: 0 | Q152: 0 | BB152: No | BC152: N/A | BD152: N/A | BE152: N/A | BF152: N/A | BG152: N/A | BH152: N/A | BI152: N/A | BJ152: N/A | BK152: N/A | BL152: N/A | BM152: N/A | BN152: N/A | BO152: N/A | BP152: N/A | BQ152: N/A
A153: What type of toilet facilities | B153: Flush to piped sewage system | C153: 45.22703849 | D153: 60.79210202 | E153: 78.5370553 | F153: 85.41949663 | G153: 90.1657481 | H153: 59.93009919 | I153: 77.40441527 | J153: 83.94583074 | K153: 88.93292187 | L153: 93.92848411 | M153: 23.90617352 | N153: 35.65353463 | O153: 32.71232331 | P153: 60.89117642 | Q153: 57.62678467 | BA153: What type of toilet facilities | BB153: Flush to piped sewage system | BC153: 100636.8855 | BD153: 135625.9589 | BE153: 174455.9052 | BF153: 189870.6586 | BG153: 200381.5083 | BH153: 103120.5467 | BI153: 132995.5942 | BJ153: 144411.6387 | BK153: 152654.1307 | BL153: 161005.8684 | BM153: 12064.1434 | BN153: 18193.69107 | BO153: 16523.34796 | BP153: 30585.30661 | BQ153: 29416.6488
B154: Flush to septic tank | C154: 49.97810055 | D154: 38.36042478 | E154: 20.67616864 | F154: 14.58050337 | G154: 9.834251904 | H154: 38.0239412 | I154: 21.60179065 | J154: 16.05416926 | K154: 11.06707813 | L154: 6.071515891 | M154: 71.02982307 | N154: 54.58628344 | O154: 65.50587946 | P154: 37.82747155 | Q154: 42.37321533 | BB154: Flush to septic tank | BC154: 111208.705 | BD154: 85581.33743 | BE154: 45928.37996 | BF154: 32409.57729 | BG154: 21855.33055 | BH154: 65427.05014 | BI154: 37116.00912 | BJ154: 27617.91586 | BK154: 18996.73547 | BL154: 10407.38278 | BM154: 35844.88211 | BN154: 27854.90942 | BO154: 33087.72751 | BP154: 19000.53314 | BQ154: 21630.18466
B155: Pour flush latrine | C155: 1.204407709 | D155: 0.1149220946 | E155: 0.7867760552 | F155: 0 | G155: 0 | H155: 1.006780432 | I155: 0.8679430643 | J155: 0 | K155: 0 | L155: 0 | M155: 0.5080573879 | N155: 1.354618242 | O155: 0.5075893902 | P155: 0.510435323 | Q155: 0 | BB155: Pour flush latrine | BC155: 2679.986237 | BD155: 256.3888855 | BE155: 1747.681122 | BF155: 0 | BG155: 0 | BH155: 1732.347351 | BI155: 1491.292236 | BJ155: 0 | BK155: 0 | BL155: 0 | BM155: 256.3888855 | BN155: 691.25 | BO155: 256.3888855 | BP155: 256.3888855 | BQ155: 0
B156: Covered dry latrine (with privacy) | C156: 3.435449568 | D156: 0.7325510993 | E156: 0 | F156: 0 | G156: 0 | H156: 1.039179182 | I156: 0.1258510111 | J156: 0 | K156: 0 | L156: 0 | M156: 3.872483601 | N156: 8.405563691 | O156: 1.274207844 | P156: 0.7709167011 | Q156: 0 | BB156: Covered dry latrine (with privacy) | BC156: 7644.386108 | BD156: 1634.306793 | BE156: 0 | BF156: 0 | BG156: 0 | BH156: 1788.095245 | BI156: 216.2361145 | BJ156: 0 | BK156: 0 | BL156: 0 | BM156: 1954.231506 | BN156: 4289.286621 | BO156: 643.6161499 | BP156: 387.2272644 | BQ156: 0
B157: Bucket latrine (where fresh excreta are manually removed) | C157: 0.1550036865 | D157: 0 | E157: 0 | F157: 0 | G157: 0 | H157: 0 | I157: 0 | J157: 0 | K157: 0 | L157: 0 | M157: 0.6834624212 | N157: 0 | O157: 0 | P157: 0 | Q157: 0 | BB157: Bucket latrine (where fresh excreta are manually removed) | BC157: 344.90625 | BD157: 0 | BE157: 0 | BF157: 0 | BG157: 0 | BH157: 0 | BI157: 0 | BJ157: 0 | BK157: 0 | BL157: 0 | BM157: 344.90625 | BN157: 0 | BO157: 0 | BP157: 0 | BQ157: 0
BB158: Total | BC158: 222514.8691 | BD158: 223097.9921 | BE158: 222131.9663 | BF158: 222280.2359 | BG158: 222236.8388 | BH158: 172068.0394 | BI158: 171819.1317 | BJ158: 172029.5545 | BK158: 171650.8662 | BL158: 171413.2511 | BM158: 50464.55215 | BN158: 51029.13712 | BO158: 50511.08051 | BP158: 50229.4559 | BQ158: 51046.83347
A208: =A1026 -> Uruguay
A209: =A1034 -> 2003
A210: Access to hygiene facilities
A211: by wealth quintile and sub-national region
A212: Notes:
A213: WHO/UNICEF JMP customised wealth index excludes water,
A214: sanitation and hygiene assets.
A215: Survey used for analysis: | B215: =A1025 -> WHS03
A220: Access to handwashing | C220: NATIONAL wealth index quintile | H220: URBAN wealth index quintile | M220: RURAL wealth index quintile | BA220: Raw numbers of respondents: | BB220: Access to handwashing | BC220: NATIONAL wealth index quintile | BH220: URBAN wealth index quintile | BM220: RURAL wealth index quintile
A221: Weighted percentage (used in graphs) | C221: Poorest | D221: Poor | E221: Middle | F221: Rich | G221: Richest | H221: Poorest | I221: Poor | J221: Middle | K221: Rich | L221: Richest | M221: Poorest | N221: Poor | O221: Middle | P221: Rich | Q221: Richest | BA221: Hygiene data, raw numbers (weighted) | BC221: Poorest | BD221: Poor | BE221: Middle | BF221: Rich | BG221: Richest | BH221: Poorest | BI221: Poor | BJ221: Middle | BK221: Rich | BL221: Richest | BM221: Poorest | BN221: Poor | BO221: Middle | BP221: Rich | BQ221: Richest
A222: Hygiene ladder | B222: Basic | C222: N/A | D222: N/A | E222: N/A | F222: N/A | G222: N/A | H222: N/A | I222: N/A | J222: N/A | K222: N/A | L222: N/A | M222: N/A | N222: N/A | O222: N/A | P222: N/A | Q222: N/A | BA222: Hygiene ladder | BB222: Basic | BC222: N/A | BD222: N/A | BE222: N/A | BF222: N/A | BG222: N/A | BH222: N/A | BI222: N/A | BJ222: N/A | BK222: N/A | BL222: N/A | BM222: N/A | BN222: N/A | BO222: N/A | BP222: N/A | BQ222: N/A
B223: Limited | C223: N/A | D223: N/A | E223: N/A | F223: N/A | G223: N/A | H223: N/A | I223: N/A | J223: N/A | K223: N/A | L223: N/A | M223: N/A | N223: N/A | O223: N/A | P223: N/A | Q223: N/A | BB223: Limited | BC223: N/A | BD223: N/A | BE223: N/A | BF223: N/A | BG223: N/A | BH223: N/A | BI223: N/A | BJ223: N/A | BK223: N/A | BL223: N/A | BM223: N/A | BN223: N/A | BO223: N/A | BP223: N/A | BQ223: N/A
B224: No facility | C224: N/A | D224: N/A | E224: N/A | F224: N/A | G224: N/A | H224: N/A | I224: N/A | J224: N/A | K224: N/A | L224: N/A | M224: N/A | N224: N/A | O224: N/A | P224: N/A | Q224: N/A | BB224: No facility | BC224: N/A | BD224: N/A | BE224: N/A | BF224: N/A | BG224: N/A | BH224: N/A | BI224: N/A | BJ224: N/A | BK224: N/A | BL224: N/A | BM224: N/A | BN224: N/A | BO224: N/A | BP224: N/A | BQ224: N/A
BA225: Observed handwashing place | BB225: Fixed | BC225: N/A | BD225: N/A | BE225: N/A | BF225: N/A | BG225: N/A | BH225: N/A | BI225: N/A | BJ225: N/A | BK225: N/A | BL225: N/A | BM225: N/A | BN225: N/A | BO225: N/A | BP225: N/A | BQ225: N/A
BB226: Mobile | BC226: N/A | BD226: N/A | BE226: N/A | BF226: N/A | BG226: N/A | BH226: N/A | BI226: N/A | BJ226: N/A | BK226: N/A | BL226: N/A | BM226: N/A | BN226: N/A | BO226: N/A | BP226: N/A | BQ226: N/A
BA227: Water / Soap | BB227: Water and soap | BC227: N/A | BD227: N/A | BE227: N/A | BF227: N/A | BG227: N/A | BH227: N/A | BI227: N/A | BJ227: N/A | BK227: N/A | BL227: N/A | BM227: N/A | BN227: N/A | BO227: N/A | BP227: N/A | BQ227: N/A
BB228: Water only | BC228: N/A | BD228: N/A | BE228: N/A | BF228: N/A | BG228: N/A | BH228: N/A | BI228: N/A | BJ228: N/A | BK228: N/A | BL228: N/A | BM228: N/A | BN228: N/A | BO228: N/A | BP228: N/A | BQ228: N/A
BB229: Soap only | BC229: N/A | BD229: N/A | BE229: N/A | BF229: N/A | BG229: N/A | BH229: N/A | BI229: N/A | BJ229: N/A | BK229: N/A | BL229: N/A | BM229: N/A | BN229: N/A | BO229: N/A | BP229: N/A | BQ229: N/A
BB230: Neither | BC230: N/A | BD230: N/A | BE230: N/A | BF230: N/A | BG230: N/A | BH230: N/A | BI230: N/A | BJ230: N/A | BK230: N/A | BL230: N/A | BM230: N/A | BN230: N/A | BO230: N/A | BP230: N/A | BQ230: N/A
BA259: Raw numbers of respondents: | BB259: Menstrual health and hygiene | BC259: NATIONAL wealth index quintile | BH259: URBAN wealth index quintile | BM259: RURAL wealth index quintile
BA260: MHH data, raw numbers (weighted) | BC260: Poorest | BD260: Poor | BE260: Middle | BF260: Rich | BG260: Richest | BH260: Poorest | BI260: Poor | BJ260: Middle | BK260: Rich | BL260: Richest | BM260: Poorest | BN260: Poor | BO260: Middle | BP260: Rich | BQ260: Richest
BA261: Private place to wash and change | BB261: Yes | BC261: N/A | BD261: N/A | BE261: N/A | BF261: N/A | BG261: N/A | BH261: N/A | BI261: N/A | BJ261: N/A | BK261: N/A | BL261: N/A | BM261: N/A | BN261: N/A | BO261: N/A | BP261: N/A | BQ261: N/A
BB262: No | BC262: N/A | BD262: N/A | BE262: N/A | BF262: N/A | BG262: N/A | BH262: N/A | BI262: N/A | BJ262: N/A | BK262: N/A | BL262: N/A | BM262: N/A | BN262: N/A | BO262: N/A | BP262: N/A | BQ262: N/A
BB263: DK/not sure/missing | BC263: N/A | BD263: N/A | BE263: N/A | BF263: N/A | BG263: N/A | BH263: N/A | BI263: N/A | BJ263: N/A | BK263: N/A | BL263: N/A | BM263: N/A | BN263: N/A | BO263: N/A | BP263: N/A | BQ263: N/A
BA264: Use of menstrual materials | BB264: Materials reusable | BC264: N/A | BD264: N/A | BE264: N/A | BF264: N/A | BG264: N/A | BH264: N/A | BI264: N/A | BJ264: N/A | BK264: N/A | BL264: N/A | BM264: N/A | BN264: N/A | BO264: N/A | BP264: N/A | BQ264: N/A
BB265: Materials not reusable | BC265: N/A | BD265: N/A | BE265: N/A | BF265: N/A | BG265: N/A | BH265: N/A | BI265: N/A | BJ265: N/A | BK265: N/A | BL265: N/A | BM265: N/A | BN265: N/A | BO265: N/A | BP265: N/A | BQ265: N/A
BB266: No materials used | BC266: N/A | BD266: N/A | BE266: N/A | BF266: N/A | BG266: N/A | BH266: N/A | BI266: N/A | BJ266: N/A | BK266: N/A | BL266: N/A | BM266: N/A | BN266: N/A | BO266: N/A | BP266: N/A | BQ266: N/A
BB267: DK/not sure/missing | BC267: N/A | BD267: N/A | BE267: N/A | BF267: N/A | BG267: N/A | BH267: N/A | BI267: N/A | BJ267: N/A | BK267: N/A | BL267: N/A | BM267: N/A | BN267: N/A | BO267: N/A | BP267: N/A | BQ267: N/A
BA268: Use of menstrual materials with private place to wash and change | BB268: Materials reusable | BC268: N/A | BD268: N/A | BE268: N/A | BF268: N/A | BG268: N/A | BH268: N/A | BI268: N/A | BJ268: N/A | BK268: N/A | BL268: N/A | BM268: N/A | BN268: N/A | BO268: N/A | BP268: N/A | BQ268: N/A
BB269: Materials not reusable | BC269: N/A | BD269: N/A | BE269: N/A | BF269: N/A | BG269: N/A | BH269: N/A | BI269: N/A | BJ269: N/A | BK269: N/A | BL269: N/A | BM269: N/A | BN269: N/A | BO269: N/A | BP269: N/A | BQ269: N/A
BB270: No materials used | BC270: N/A | BD270: N/A | BE270: N/A | BF270: N/A | BG270: N/A | BH270: N/A | BI270: N/A | BJ270: N/A | BK270: N/A | BL270: N/A | BM270: N/A | BN270: N/A | BO270: N/A | BP270: N/A | BQ270: N/A
BA271: Awareness of menstruation before menarche | BB271: Yes | BC271: N/A | BD271: N/A | BE271: N/A | BF271: N/A | BG271: N/A | BH271: N/A | BI271: N/A | BJ271: N/A | BK271: N/A | BL271: N/A | BM271: N/A | BN271: N/A | BO271: N/A | BP271: N/A | BQ271: N/A
BB272: No | BC272: N/A | BD272: N/A | BE272: N/A | BF272: N/A | BG272: N/A | BH272: N/A | BI272: N/A | BJ272: N/A | BK272: N/A | BL272: N/A | BM272: N/A | BN272: N/A | BO272: N/A | BP272: N/A | BQ272: N/A
BB273: DK/not sure/missing | BC273: N/A | BD273: N/A | BE273: N/A | BF273: N/A | BG273: N/A | BH273: N/A | BI273: N/A | BJ273: N/A | BK273: N/A | BL273: N/A | BM273: N/A | BN273: N/A | BO273: N/A | BP273: N/A | BQ273: N/A
BA274: Participation in (all) activities during menstruation | BB274: Yes | BC274: N/A | BD274: N/A | BE274: N/A | BF274: N/A | BG274: N/A | BH274: N/A | BI274: N/A | BJ274: N/A | BK274: N/A | BL274: N/A | BM274: N/A | BN274: N/A | BO274: N/A | BP274: N/A | BQ274: N/A
BB275: No | BC275: N/A | BD275: N/A | BE275: N/A | BF275: N/A | BG275: N/A | BH275: N/A | BI275: N/A | BJ275: N/A | BK275: N/A | BL275: N/A | BM275: N/A | BN275: N/A | BO275: N/A | BP275: N/A | BQ275: N/A
BB276: DK/not sure/missing/no such activity | BC276: N/A | BD276: N/A | BE276: N/A | BF276: N/A | BG276: N/A | BH276: N/A | BI276: N/A | BJ276: N/A | BK276: N/A | BL276: N/A | BM276: N/A | BN276: N/A | BO276: N/A | BP276: N/A | BQ276: N/A
BA277: Participation in specific activities during menstruation | BB277: Did not go to school (amongst those usually attending school) | BC277: N/A | BD277: N/A | BE277: N/A | BF277: N/A | BG277: N/A | BH277: N/A | BI277: N/A | BJ277: N/A | BK277: N/A | BL277: N/A | BM277: N/A | BN277: N/A | BO277: N/A | BP277: N/A | BQ277: N/A
BB278: Did not go to work (amongst those who usually work) | BC278: N/A | BD278: N/A | BE278: N/A | BF278: N/A | BG278: N/A | BH278: N/A | BI278: N/A | BJ278: N/A | BK278: N/A | BL278: N/A | BM278: N/A | BN278: N/A | BO278: N/A | BP278: N/A | BQ278: N/A
BB279: Did not participate in social activities | BC279: N/A | BD279: N/A | BE279: N/A | BF279: N/A | BG279: N/A | BH279: N/A | BI279: N/A | BJ279: N/A | BK279: N/A | BL279: N/A | BM279: N/A | BN279: N/A | BO279: N/A | BP279: N/A | BQ279: N/A
BB280: Did not cook food | BC280: N/A | BD280: N/A | BE280: N/A | BF280: N/A | BG280: N/A | BH280: N/A | BI280: N/A | BJ280: N/A | BK280: N/A | BL280: N/A | BM280: N/A | BN280: N/A | BO280: N/A | BP280: N/A | BQ280: N/A
BB281: Did not eat with others | BC281: N/A | BD281: N/A | BE281: N/A | BF281: N/A | BG281: N/A | BH281: N/A | BI281: N/A | BJ281: N/A | BK281: N/A | BL281: N/A | BM281: N/A | BN281: N/A | BO281: N/A | BP281: N/A | BQ281: N/A
BB282: Did not bathe in regular place | BC282: N/A | BD282: N/A | BE282: N/A | BF282: N/A | BG282: N/A | BH282: N/A | BI282: N/A | BJ282: N/A | BK282: N/A | BL282: N/A | BM282: N/A | BN282: N/A | BO282: N/A | BP282: N/A | BQ282: N/A
BB283: Did not participate in other activities | BC283: N/A | BD283: N/A | BE283: N/A | BF283: N/A | BG283: N/A | BH283: N/A | BI283: N/A | BJ283: N/A | BK283: N/A | BL283: N/A | BM283: N/A | BN283: N/A | BO283: N/A | BP283: N/A | BQ283: N/A
BB284: DK/not sure/missing/no such activity | BC284: N/A | BD284: N/A | BE284: N/A | BF284: N/A | BG284: N/A | BH284: N/A | BI284: N/A | BJ284: N/A | BK284: N/A | BL284: N/A | BM284: N/A | BN284: N/A | BO284: N/A | BP284: N/A | BQ284: N/A
BA339: Raw numbers of respondents: | BB339: Basic water, sanitation and hygiene | BC339: NATIONAL wealth index quintile | BH339: URBAN wealth index quintile | BM339: RURAL wealth index quintile
BA340: WatSan data, raw numbers (weighted) | BC340: Poorest | BD340: Poor | BE340: Middle | BF340: Rich | BG340: Richest | BH340: Poorest | BI340: Poor | BJ340: Middle | BK340: Rich | BL340: Richest | BM340: Poorest | BN340: Poor | BO340: Middle | BP340: Rich | BQ340: Richest
BA341: Use of Basic Water Sanitation and Hygiene | BB341: Yes | BC341: N/A | BD341: N/A | BE341: N/A | BF341: N/A | BG341: N/A | BH341: N/A | BI341: N/A | BJ341: N/A | BK341: N/A | BL341: N/A | BM341: N/A | BN341: N/A | BO341: N/A | BP341: N/A | BQ341: N/A
BB342: No | BC342: N/A | BD342: N/A | BE342: N/A | BF342: N/A | BG342: N/A | BH342: N/A | BI342: N/A | BJ342: N/A | BK342: N/A | BL342: N/A | BM342: N/A | BN342: N/A | BO342: N/A | BP342: N/A | BQ342: N/A
BA343: Use of Basic Water and Sanitation | BB343: Yes | BC343: N/A | BD343: N/A | BE343: N/A | BF343: N/A | BG343: N/A | BH343: N/A | BI343: N/A | BJ343: N/A | BK343: N/A | BL343: N/A | BM343: N/A | BN343: N/A | BO343: N/A | BP343: N/A | BQ343: N/A
BB344: No | BC344: N/A | BD344: N/A | BE344: N/A | BF344: N/A | BG344: N/A | BH344: N/A | BI344: N/A | BJ344: N/A | BK344: N/A | BL344: N/A | BM344: N/A | BN344: N/A | BO344: N/A | BP344: N/A | BQ344: N/A
BA345: Use of Basic Water and Hygiene | BB345: Yes | BC345: N/A | BD345: N/A | BE345: N/A | BF345: N/A | BG345: N/A | BH345: N/A | BI345: N/A | BJ345: N/A | BK345: N/A | BL345: N/A | BM345: N/A | BN345: N/A | BO345: N/A | BP345: N/A | BQ345: N/A
BB346: No | BC346: N/A | BD346: N/A | BE346: N/A | BF346: N/A | BG346: N/A | BH346: N/A | BI346: N/A | BJ346: N/A | BK346: N/A | BL346: N/A | BM346: N/A | BN346: N/A | BO346: N/A | BP346: N/A | BQ346: N/A
BA347: Use of Basic Sanitation and Hygiene | BB347: Yes | BC347: N/A | BD347: N/A | BE347: N/A | BF347: N/A | BG347: N/A | BH347: N/A | BI347: N/A | BJ347: N/A | BK347: N/A | BL347: N/A | BM347: N/A | BN347: N/A | BO347: N/A | BP347: N/A | BQ347: N/A
BB348: No | BC348: N/A | BD348: N/A | BE348: N/A | BF348: N/A | BG348: N/A | BH348: N/A | BI348: N/A | BJ348: N/A | BK348: N/A | BL348: N/A | BM348: N/A | BN348: N/A | BO348: N/A | BP348: N/A | BQ348: N/A
BA349: Use of Basic Water | BB349: Yes | BC349: N/A | BD349: N/A | BE349: N/A | BF349: N/A | BG349: N/A | BH349: N/A | BI349: N/A | BJ349: N/A | BK349: N/A | BL349: N/A | BM349: N/A | BN349: N/A | BO349: N/A | BP349: N/A | BQ349: N/A
BB350: No | BC350: N/A | BD350: N/A | BE350: N/A | BF350: N/A | BG350: N/A | BH350: N/A | BI350: N/A | BJ350: N/A | BK350: N/A | BL350: N/A | BM350: N/A | BN350: N/A | BO350: N/A | BP350: N/A | BQ350: N/A
BA351: Use of Basic Sanitation | BB351: Yes | BC351: N/A | BD351: N/A | BE351: N/A | BF351: N/A | BG351: N/A | BH351: N/A | BI351: N/A | BJ351: N/A | BK351: N/A | BL351: N/A | BM351: N/A | BN351: N/A | BO351: N/A | BP351: N/A | BQ351: N/A
BB352: No | BC352: N/A | BD352: N/A | BE352: N/A | BF352: N/A | BG352: N/A | BH352: N/A | BI352: N/A | BJ352: N/A | BK352: N/A | BL352: N/A | BM352: N/A | BN352: N/A | BO352: N/A | BP352: N/A | BQ352: N/A
BA353: Access to Basic Hygiene | BB353: Yes | BC353: N/A | BD353: N/A | BE353: N/A | BF353: N/A | BG353: N/A | BH353: N/A | BI353: N/A | BJ353: N/A | BK353: N/A | BL353: N/A | BM353: N/A | BN353: N/A | BO353: N/A | BP353: N/A | BQ353: N/A
BB354: No | BC354: N/A | BD354: N/A | BE354: N/A | BF354: N/A | BG354: N/A | BH354: N/A | BI354: N/A | BJ354: N/A | BK354: N/A | BL354: N/A | BM354: N/A | BN354: N/A | BO354: N/A | BP354: N/A | BQ354: N/A
C399: INITIAL (national) Wealth Index | H399: URBAN Wealth Index | M399: RURAL Wealth Index
C400: Component Matrix | H400: Component Matrix | M400: Component Matrix
E401: Component | J401: Component | O401: Component
B402: Note: The INITIAL (national) Wealth Index is based on the first component of the Principal Component Analysis (PCA) which has been obtained at national level. The final national-level (NATIONAL) Wealth Index is based on the URBAN and RURAL specific wealth indexes. Regression procedures are used to establish the relationships between the two sets of scores (urban and rural) and the initial (national) wealth factors. This allows best use of the available information for each area and a better precision of the FINAL (NATIONAL) Wealth Index. For dependency reasons, all WASH variables (contained in the generic MICS and DHS scripts) have been excluded from the sets of asset variables used in the PCAs. The PCA can extracts as many components as there are asset variables in the input. Only the first of the components is used to represent the Wealth Index. The scores represent the weights of the asset variables on the Wealth Index (correlations between the variables and the component). The communalities are the proportion of each variable's variance that can be explained by the component. Proportion of explained variance is the part of the model's total variance that is explained by the component. For more information on the procedure used: The DHS Wealth Index, DHS Comparative Reports No. 6, Shea Oscar Rutstein, Kiersten Johnson, ORC Macro International Inc., 2004. The DHS Wealth Index: Approaches for Rural and Urban Areas, Shea O. Rutstein, ORC Macro International Inc., 2008. MICS Methodological Paper No. 4, Review of options for reporting water, sanitation and hygiene coverage by wealth quintile, UNICEF, 2016. | E402: 1 | J402: 1 | O402: 1
C403: Has Computer | E403: 0.6478582719 | H403: Has Computer | J403: 0.67641504 | M403: Uses gaz fuel | O403: -0.5843648804
C404: Has Internet | E404: 0.635971214 | H404: Has Internet | J404: 0.6700049037 | M404: Uses wood fuel | O404: 0.5234755787
C405: Has Vacuum cleaner | E405: 0.6255147295 | H405: Has Video | J405: 0.6259293399 | M405: Has Clothes washing machine | O405: 0.5132819811
C406: Has Video | E406: 0.6133263945 | H406: Has Vacuum cleaner | J406: 0.6227943436 | M406: Has mud brick wall | O406: 0.5044377433
C407: Has Clothes washing machine | E407: 0.5432965861 | H407: Has Cellular phone | J407: 0.5563198185 | M407: Uses separate room as kitchen | O407: 0.4956246991
C408: Has Cellular phone | E408: 0.5431204382 | H408: Has Car | J408: 0.5367849604 | M408: Has Vacuum cleaner | O408: 0.4773907384
C409: Has Stereo | E409: 0.4965922161 | H409: Has Clothes washing machine | J409: 0.5307307847 | M409: Has Computer | O409: 0.4689249781
C410: Has Car | E410: 0.4905183733 | H410: Has Employee | J410: 0.4744981939 | M410: Has Stereo | O410: 0.4575966062
C411: Has Telephone | E411: 0.4857501766 | H411: Has Stereo | J411: 0.4699295964 | M411: Has Cellular phone | O411: 0.4509227542
C412: Has Employee | E412: 0.4598298476 | H412: Has Telephone | J412: 0.4680838158 | M412: Has TV | O412: 0.4465818825
C413: Uses gaz heating | E413: -0.4456987793 | H413: Has Camera | J413: 0.4495189418 | M413: Has hard floor | O413: -0.4447573112
C414: Has Camera | E414: 0.4276165859 | H414: Has Security system | J414: 0.4385045566 | M414: Has hearth floor | O414: 0.4447573112
C415: Has Security system | E415: 0.4160677373 | H415: Uses gaz heating | J415: -0.3995785225 | M415: Has Video | O415: 0.4431274267
C416: Uses separate room as kitchen | E416: 0.3526513476 | H416: Has Dish washing machine | J416: 0.3725194736 | M416: Has Car | O416: 0.4276105579
C417: Has Dish washing machine | E417: 0.3518260495 | H417: Has Second home | J417: 0.3621143012 | M417: Has Telephone | O417: 0.427311657
C418: Uses wood fuel | E418: 0.3422725435 | H418: Has Magazine | J418: 0.3459136028 | M418: Has Internet | O418: 0.4164876149
C419: Has Second home | E419: 0.3377003657 | H419: Heats house | J419: -0.3089881084 | M419: Uses gaz heating | O419: -0.4003983913
C420: Has Magazine | E420: 0.3263372142 | H420: Has Refrigerator | J420: 0.2819308067 | M420: Uses kerozene fuel | O420: 0.3890907622
C421: Uses wood heating | E421: 0.3101868549 | H421: Uses kerozene fuel | J421: 0.2808414444 | M421: Uses open fire without chimney | O421: 0.3823186229
C422: Uses gaz fuel | E422: -0.2990110406 | H422: Has DVD | J422: 0.2806615898 | M422: Uses open fire with chimney | O422: 0.3715392543
C423: Uses open fire with chimney | E423: 0.2853822204 | H423: Uses open fire without chimney | J423: 0.2677745919 | M423: Has Employee | O423: 0.3552351107
C424: Has TV | E424: 0.2741977534 | H424: Has TV | J424: 0.2451286349 | M424: Uses closed stove with chimney | O424: 0.3333422736
C425: Heats house | E425: -0.2735639978 | H425: Uses separate room as kitchen | J425: 0.2290211878 | M425: Has cement, brick, stone or wood wall | O425: -0.3266896873
C426: Uses open fire without chimney | E426: 0.271860532 | H426: Uses wood heating | J426: 0.2067259836 | M426: Uses living or sleeping room as kitchen | O426: 0.3193459714
C427: Uses kerozene fuel | E427: 0.2714245718 | H427: Uses open fire with chimney | J427: 0.1960387477 | M427: Has Refrigerator | O427: 0.3140585239
... 178 more rows

Sheet MICS13
A2: =A1026 -> Uruguay
A3: =A1034 -> 2013
A4: Use of drinking water sources
A5: by wealth quintile and sub-national region
A6: Notes:
A7: WHO/UNICEF JMP customised wealth index excludes water,
A8: sanitation and hygiene assets.
A9: Survey used for analysis: | B9: =A1025 -> MICS13
A10: =B1028 -> 
A11: =B1027 -> 
A14: Use of drinking water sources | C14: NATIONAL wealth index quintile | H14: URBAN wealth index quintile | M14: RURAL wealth index quintile | R14: SUB-REGIONS: | BA14: Raw numbers of respondents: | BB14: Use of drinking water sources | BC14: NATIONAL wealth index quintile | BH14: URBAN wealth index quintile | BM14: RURAL wealth index quintile | BR14: SUB-REGIONS:
A15: Weighted percentage (used in graphs) | C15: Poorest | D15: Poor | E15: Middle | F15: Rich | G15: Richest | H15: Poorest | I15: Poor | J15: Middle | K15: Rich | L15: Richest | M15: Poorest | N15: Poor | O15: Middle | P15: Rich | Q15: Richest | R15: Más de 5 mil habitantes | S15: Montevideo y Área Metropolitana | T15: Rurales y menores de 5 mil habitantes | BA15: Water data, raw numbers (weighted) | BC15: Poorest | BD15: Poor | BE15: Middle | BF15: Rich | BG15: Richest | BH15: Poorest | BI15: Poor | BJ15: Middle | BK15: Rich | BL15: Richest | BM15: Poorest | BN15: Poor | BO15: Middle | BP15: Rich | BQ15: Richest | BR15: Más de 5 mil habitantes | BS15: Montevideo y Área Metropolitana | BT15: Rurales y menores de 5 mil habitantes
A16: Water | B16: Improved | C16: 98.92535032 | D16: 99.50843469 | E16: 99.97923326 | F16: 99.95354763 | G16: 99.64025553 | H16: 99.90940485 | I16: 100 | J16: 100 | K16: 100 | L16: 99.60426169 | M16: 92.15812535 | N16: 91.88544713 | O16: 99.82162726 | P16: 99.77277073 | Q16: 99.49358665 | R16: 100 | S16: 99.82467477 | T16: 96.59169278 | BA16: Water | BB16: Improved | BC16: N/A | BD16: N/A | BE16: N/A | BF16: N/A | BG16: N/A | BH16: N/A | BI16: N/A | BJ16: N/A | BK16: N/A | BL16: N/A | BM16: N/A | BN16: N/A | BO16: N/A | BP16: N/A | BQ16: N/A | BR16: N/A | BS16: N/A | BT16: N/A
B17: Not Improved | C17: 1.074649676 | D17: 0.4915653126 | E17: 0.02076674318 | F17: 0.04645236555 | G17: 0.3597444667 | H17: 0.09059514903 | I17: 0 | J17: 0 | K17: 0 | L17: 0.395738307 | M17: 7.841874655 | N17: 8.11455287 | O17: 0.1783727372 | P17: 0.227229273 | Q17: 0.5064133548 | R17: 0 | S17: 0.1753252271 | T17: 3.40830722 | BB17: Not Improved | BC17: N/A | BD17: N/A | BE17: N/A | BF17: N/A | BG17: N/A | BH17: N/A | BI17: N/A | BJ17: N/A | BK17: N/A | BL17: N/A | BM17: N/A | BN17: N/A | BO17: N/A | BP17: N/A | BQ17: N/A | BR17: N/A | BS17: N/A | BT17: N/A
A18: Water ladder | B18: Basic | C18: 98.92033665 | D18: 99.50822409 | E18: 99.76144938 | F18: 99.95354763 | G18: 99.64025553 | H18: 99.90898619 | I18: 100 | J18: 99.7615743 | K18: 100 | L18: 99.60426169 | M18: 92.11828795 | N18: 91.88544713 | O18: 99.82162726 | P18: 99.74553579 | Q18: 99.49358665 | R18: 100 | S18: 99.73840106 | T18: 96.51278554 | BA18: Water ladder | BB18: Basic | BC18: N/A | BD18: N/A | BE18: N/A | BF18: N/A | BG18: N/A | BH18: N/A | BI18: N/A | BJ18: N/A | BK18: N/A | BL18: N/A | BM18: N/A | BN18: N/A | BO18: N/A | BP18: N/A | BQ18: N/A | BR18: N/A | BS18: N/A | BT18: N/A
B19: Limited | C19: 0 | D19: 0 | E19: 0.2175787385 | F19: 0 | G19: 0 | H19: 0 | I19: 0 | J19: 0.238425703 | K19: 0 | L19: 0 | M19: 0 | N19: 0 | O19: 0 | P19: 0 | Q19: 0 | R19: 0 | S19: 0.08603524313 | T19: 0 | BB19: Limited | BC19: N/A | BD19: N/A | BE19: N/A | BF19: N/A | BG19: N/A | BH19: N/A | BI19: N/A | BJ19: N/A | BK19: N/A | BL19: N/A | BM19: N/A | BN19: N/A | BO19: N/A | BP19: N/A | BQ19: N/A | BR19: N/A | BS19: N/A | BT19: N/A
B20: Unimproved | C20: 1.079663349 | D20: 0.4917759093 | E20: 0.02097187883 | F20: 0.04645236555 | G20: 0 | H20: 0.09101381389 | I20: 0 | J20: 0 | K20: 0 | L20: 0 | M20: 7.881712047 | N20: 8.11455287 | O20: 0.1783727372 | P20: 0.2544642118 | Q20: 0.5064133548 | R20: 0 | S20: 0.03273174596 | T20: 3.487214463 | BB20: Unimproved | BC20: N/A | BD20: N/A | BE20: N/A | BF20: N/A | BG20: N/A | BH20: N/A | BI20: N/A | BJ20: N/A | BK20: N/A | BL20: N/A | BM20: N/A | BN20: N/A | BO20: N/A | BP20: N/A | BQ20: N/A | BR20: N/A | BS20: N/A | BT20: N/A
B21: Surface water | C21: 0 | D21: 0 | E21: 0 | F21: 0 | G21: 0.3597444667 | H21: 0 | I21: 0 | J21: 0 | K21: 0 | L21: 0.395738307 | M21: 0 | N21: 0 | O21: 0 | P21: 0 | Q21: 0 | R21: 0 | S21: 0.1428319538 | T21: 0 | BB21: Surface water | BC21: N/A | BD21: N/A | BE21: N/A | BF21: N/A | BG21: N/A | BH21: N/A | BI21: N/A | BJ21: N/A | BK21: N/A | BL21: N/A | BM21: N/A | BN21: N/A | BO21: N/A | BP21: N/A | BQ21: N/A | BR21: N/A | BS21: N/A | BT21: N/A
A22: Improved water point at more than 30 minutes | B22: Yes | C22: 0 | D22: 0 | E22: 0.2176243784 | F22: 0 | G22: 0 | H22: 0 | I22: 0 | J22: 0.238425703 | K22: 0 | L22: 0 | M22: 0 | N22: 0 | O22: 0 | P22: 0 | Q22: 0 | R22: 0 | S22: 0.08618655544 | T22: 0 | BA22: Improved water point at more than 30 minutes | BB22: Yes | BC22: N/A | BD22: N/A | BE22: N/A | BF22: N/A | BG22: N/A | BH22: N/A | BI22: N/A | BJ22: N/A | BK22: N/A | BL22: N/A | BM22: N/A | BN22: N/A | BO22: N/A | BP22: N/A | BQ22: N/A | BR22: N/A | BS22: N/A | BT22: N/A
B23: No | C23: 100 | D23: 100 | E23: 99.78237562 | F23: 100 | G23: 100 | H23: 100 | I23: 100 | J23: 99.7615743 | K23: 100 | L23: 100 | M23: 100 | N23: 100 | O23: 100 | P23: 100 | Q23: 100 | R23: 100 | S23: 99.91381344 | T23: 100 | BB23: No | BC23: N/A | BD23: N/A | BE23: N/A | BF23: N/A | BG23: N/A | BH23: N/A | BI23: N/A | BJ23: N/A | BK23: N/A | BL23: N/A | BM23: N/A | BN23: N/A | BO23: N/A | BP23: N/A | BQ23: N/A | BR23: N/A | BS23: N/A | BT23: N/A
A24: Manually calculated ratios | B24: Improved wells
B25: Improved springs
B26: Other
C27: NATIONAL wealth index quintile | H27: URBAN wealth index quintile | M27: RURAL wealth index quintile | R27: SUB-REGIONS: | BA27: Raw numbers of respondents: | BB27: Use of drinking water sources | BC27: NATIONAL wealth index quintile | BH27: URBAN wealth index quintile | BM27: RURAL wealth index quintile | BR27: SUB-REGIONS:
A28: Percentage based on weighted population | C28: Poorest | D28: Poor | E28: Middle | F28: Rich | G28: Richest | H28: Poorest | I28: Poor | J28: Middle | K28: Rich | L28: Richest | M28: Poorest | N28: Poor | O28: Middle | P28: Rich | Q28: Richest | R28: Más de 5 mil habitantes | S28: Montevideo y Área Metropolitana | T28: Rurales y menores de 5 mil habitantes | BA28: Water data, raw numbers (weighted) | BC28: Poorest | BD28: Poor | BE28: Middle | BF28: Rich | BG28: Richest | BH28: Poorest | BI28: Poor | BJ28: Middle | BK28: Rich | BL28: Richest | BM28: Poorest | BN28: Poor | BO28: Middle | BP28: Rich | BQ28: Richest | BR28: Más de 5 mil habitantes | BS28: Montevideo y Área Metropolitana | BT28: Rurales y menores de 5 mil habitantes
A29: Piped water | B29: Yes | C29: 94.87001091 | D29: 97.25993763 | E29: 99.47549525 | F29: 98.91563218 | G29: 98.59595344 | H29: 98.92724396 | I29: 99.66714491 | J29: 99.95472288 | K29: 100 | L29: 99.54767753 | M29: 66.5924825 | N29: 81.13342886 | O29: 78.89605629 | P29: 95.08402689 | Q29: 77.47673973 | R29: 99.63194513 | S29: 99.60902173 | T29: 79.89145426 | BA29: Piped water | BB29: Yes | BC29: N/A | BD29: N/A | BE29: N/A | BF29: N/A | BG29: N/A | BH29: N/A | BI29: N/A | BJ29: N/A | BK29: N/A | BL29: N/A | BM29: N/A | BN29: N/A | BO29: N/A | BP29: N/A | BQ29: N/A | BR29: N/A | BS29: N/A | BT29: N/A
B30: No | C30: 5.129989094 | D30: 2.74006237 | E30: 0.5245047523 | F30: 1.08436782 | G30: 1.404046556 | H30: 1.072756042 | I30: 0.3328550857 | J30: 0.04527712339 | K30: 0 | L30: 0.452322467 | M30: 33.4075175 | N30: 18.86657114 | O30: 21.10394371 | P30: 4.915973109 | Q30: 22.52326027 | R30: 0.3680548708 | S30: 0.3909782747 | T30: 20.10854574 | BB30: No | BC30: N/A | BD30: N/A | BE30: N/A | BF30: N/A | BG30: N/A | BH30: N/A | BI30: N/A | BJ30: N/A | BK30: N/A | BL30: N/A | BM30: N/A | BN30: N/A | BO30: N/A | BP30: N/A | BQ30: N/A | BR30: N/A | BS30: N/A | BT30: N/A
A31: Piped water on premises | B31: Yes | C31: 89.84944539 | D31: 97.11867354 | E31: 98.02799262 | F31: 98.870285 | G31: 98.59595344 | H31: 93.49994566 | I31: 99.62003032 | J31: 99.43531532 | K31: 99.95036128 | L31: 99.54767753 | M31: 65.68922293 | N31: 81.13342886 | O31: 77.77537173 | P31: 84.38117067 | Q31: 77.47673973 | R31: 97.34744663 | S31: 99.26205215 | T31: 77.33320097 | BA31: Piped water on premises | BB31: Yes | BC31: N/A | BD31: N/A | BE31: N/A | BF31: N/A | BG31: N/A | BH31: N/A | BI31: N/A | BJ31: N/A | BK31: N/A | BL31: N/A | BM31: N/A | BN31: N/A | BO31: N/A | BP31: N/A | BQ31: N/A | BR31: N/A | BS31: N/A | BT31: N/A
B32: No | C32: 10.15055461 | D32: 2.881326462 | E32: 1.972007376 | F32: 1.129715 | G32: 1.404046556 | H32: 6.500054342 | I32: 0.3799696823 | J32: 0.5646846796 | K32: 0.04963872148 | L32: 0.452322467 | M32: 34.31077707 | N32: 18.86657114 | O32: 22.22462827 | P32: 15.61882933 | Q32: 22.52326027 | R32: 2.652553375 | S32: 0.7379478462 | T32: 22.66679903 | BB32: No | BC32: N/A | BD32: N/A | BE32: N/A | BF32: N/A | BG32: N/A | BH32: N/A | BI32: N/A | BJ32: N/A | BK32: N/A | BL32: N/A | BM32: N/A | BN32: N/A | BO32: N/A | BP32: N/A | BQ32: N/A | BR32: N/A | BS32: N/A | BT32: N/A
A33: Piped water into dwelling | B33: Yes | C33: N/A | D33: N/A | E33: N/A | F33: N/A | G33: N/A | H33: N/A | I33: N/A | J33: N/A | K33: N/A | L33: N/A | M33: N/A | N33: N/A | O33: N/A | P33: N/A | Q33: N/A | R33: N/A | S33: N/A | T33: N/A | BA33: Piped water into dwelling | BB33: Yes | BC33: N/A | BD33: N/A | BE33: N/A | BF33: N/A | BG33: N/A | BH33: N/A | BI33: N/A | BJ33: N/A | BK33: N/A | BL33: N/A | BM33: N/A | BN33: N/A | BO33: N/A | BP33: N/A | BQ33: N/A | BR33: N/A | BS33: N/A | BT33: N/A
B34: No | C34: N/A | D34: N/A | E34: N/A | F34: N/A | G34: N/A | H34: N/A | I34: N/A | J34: N/A | K34: N/A | L34: N/A | M34: N/A | N34: N/A | O34: N/A | P34: N/A | Q34: N/A | R34: N/A | S34: N/A | T34: N/A | BB34: No | BC34: N/A | BD34: N/A | BE34: N/A | BF34: N/A | BG34: N/A | BH34: N/A | BI34: N/A | BJ34: N/A | BK34: N/A | BL34: N/A | BM34: N/A | BN34: N/A | BO34: N/A | BP34: N/A | BQ34: N/A | BR34: N/A | BS34: N/A | BT34: N/A
A35: Water source on premises | B35: Yes | C35: 94.33648528 | D35: 99.95717629 | E35: 98.80640323 | F35: 100 | G35: 100 | H35: 95.06087942 | I35: 99.9528854 | J35: 99.7615743 | K35: 100 | L35: 100 | M35: 87.94930647 | N35: 99.1699007 | O35: 100 | P35: 89.29714378 | Q35: 100 | R35: 97.95299767 | S35: 99.75773278 | T35: 95.2686706 | BA35: Water source on premises | BB35: Yes | BC35: N/A | BD35: N/A | BE35: N/A | BF35: N/A | BG35: N/A | BH35: N/A | BI35: N/A | BJ35: N/A | BK35: N/A | BL35: N/A | BM35: N/A | BN35: N/A | BO35: N/A | BP35: N/A | BQ35: N/A | BR35: N/A | BS35: N/A | BT35: N/A
B36: No | C36: 5.663514725 | D36: 0.04282370977 | E36: 1.193596773 | F36: 0 | G36: 0 | H36: 4.939120576 | I36: 0.04711459665 | J36: 0.238425703 | K36: 0 | L36: 0 | M36: 12.05069353 | N36: 0.8300992958 | O36: 0 | P36: 10.70285622 | Q36: 0 | R36: 2.047002333 | S36: 0.2422672213 | T36: 4.731329402 | BB36: No | BC36: N/A | BD36: N/A | BE36: N/A | BF36: N/A | BG36: N/A | BH36: N/A | BI36: N/A | BJ36: N/A | BK36: N/A | BL36: N/A | BM36: N/A | BN36: N/A | BO36: N/A | BP36: N/A | BQ36: N/A | BR36: N/A | BS36: N/A | BT36: N/A
A37: Improved Water source on premises | B37: Yes | C37: 94.41572541 | D37: 99.95696474 | E37: 98.8061553 | F37: 100 | G37: 100 | H37: 95.11331469 | I37: 99.9528854 | J37: 99.7615743 | K37: 100 | L37: 100 | M37: 87.9722507 | N37: 99.09659329 | O37: 100 | P37: 89.27276837 | Q37: 100 | R37: 97.95299767 | S37: 99.7778596 | T37: 95.30083044 | BA37: Improved water source on premises | BB37: Yes | BC37: N/A | BD37: N/A | BE37: N/A | BF37: N/A | BG37: N/A | BH37: N/A | BI37: N/A | BJ37: N/A | BK37: N/A | BL37: N/A | BM37: N/A | BN37: N/A | BO37: N/A | BP37: N/A | BQ37: N/A | BR37: N/A | BS37: N/A | BT37: N/A
B38: No | C38: 5.584274588 | D38: 0.04303525616 | E38: 1.193844696 | F38: 0 | G38: 0 | H38: 4.886685315 | I38: 0.04711459665 | J38: 0.238425703 | K38: 0 | L38: 0 | M38: 12.0277493 | N38: 0.903406711 | O38: 0 | P38: 10.72723163 | Q38: 0 | R38: 2.047002333 | S38: 0.2221404007 | T38: 4.699169557 | BB38: No | BC38: N/A | BD38: N/A | BE38: N/A | BF38: N/A | BG38: N/A | BH38: N/A | BI38: N/A | BJ38: N/A | BK38: N/A | BL38: N/A | BM38: N/A | BN38: N/A | BO38: N/A | BP38: N/A | BQ38: N/A | BR38: N/A | BS38: N/A | BT38: N/A
A39: Piped water on premises available when needed | B39: Yes | C39: N/A | D39: N/A | E39: N/A | F39: N/A | G39: N/A | H39: N/A | I39: N/A | J39: N/A | K39: N/A | L39: N/A | M39: N/A | N39: N/A | O39: N/A | P39: N/A | Q39: N/A | R39: N/A | S39: N/A | T39: N/A | BA39: Piped water on premises available when needed | BB39: Yes | BC39: N/A | BD39: N/A | BE39: N/A | BF39: N/A | BG39: N/A | BH39: N/A | BI39: N/A | BJ39: N/A | BK39: N/A | BL39: N/A | BM39: N/A | BN39: N/A | BO39: N/A | BP39: N/A | BQ39: N/A | BR39: N/A | BS39: N/A | BT39: N/A
B40: No | C40: N/A | D40: N/A | E40: N/A | F40: N/A | G40: N/A | H40: N/A | I40: N/A | J40: N/A | K40: N/A | L40: N/A | M40: N/A | N40: N/A | O40: N/A | P40: N/A | Q40: N/A | R40: N/A | S40: N/A | T40: N/A | BB40: No | BC40: N/A | BD40: N/A | BE40: N/A | BF40: N/A | BG40: N/A | BH40: N/A | BI40: N/A | BJ40: N/A | BK40: N/A | BL40: N/A | BM40: N/A | BN40: N/A | BO40: N/A | BP40: N/A | BQ40: N/A | BR40: N/A | BS40: N/A | BT40: N/A
A41: Water point at more than 30 minutes | B41: Yes | C41: 0 | D41: 0 | E41: 0.2175787385 | F41: 0 | G41: 0 | H41: 0 | I41: 0 | J41: 0.238425703 | K41: 0 | L41: 0 | M41: 0 | N41: 0 | O41: 0 | P41: 0 | Q41: 0 | R41: 0 | S41: 0.08603524313 | T41: 0 | BA41: Water point at more than 30 minutes | BB41: Yes | BC41: N/A | BD41: N/A | BE41: N/A | BF41: N/A | BG41: N/A | BH41: N/A | BI41: N/A | BJ41: N/A | BK41: N/A | BL41: N/A | BM41: N/A | BN41: N/A | BO41: N/A | BP41: N/A | BQ41: N/A | BR41: N/A | BS41: N/A | BT41: N/A
B42: No | C42: 100 | D42: 100 | E42: 99.78242126 | F42: 100 | G42: 100 | H42: 100 | I42: 100 | J42: 99.7615743 | K42: 100 | L42: 100 | M42: 100 | N42: 100 | O42: 100 | P42: 100 | Q42: 100 | R42: 100 | S42: 99.91396476 | T42: 100 | BB42: No | BC42: N/A | BD42: N/A | BE42: N/A | BF42: N/A | BG42: N/A | BH42: N/A | BI42: N/A | BJ42: N/A | BK42: N/A | BL42: N/A | BM42: N/A | BN42: N/A | BO42: N/A | BP42: N/A | BQ42: N/A | BR42: N/A | BS42: N/A | BT42: N/A
A43: Water source available when needed | B43: Yes | C43: N/A | D43: N/A | E43: N/A | F43: N/A | G43: N/A | H43: N/A | I43: N/A | J43: N/A | K43: N/A | L43: N/A | M43: N/A | N43: N/A | O43: N/A | P43: N/A | Q43: N/A | R43: N/A | S43: N/A | T43: N/A | BA43: Water source available when needed | BB43: Yes | BC43: N/A | BD43: N/A | BE43: N/A | BF43: N/A | BG43: N/A | BH43: N/A | BI43: N/A | BJ43: N/A | BK43: N/A | BL43: N/A | BM43: N/A | BN43: N/A | BO43: N/A | BP43: N/A | BQ43: N/A | BR43: N/A | BS43: N/A | BT43: N/A
B44: No | C44: N/A | D44: N/A | E44: N/A | F44: N/A | G44: N/A | H44: N/A | I44: N/A | J44: N/A | K44: N/A | L44: N/A | M44: N/A | N44: N/A | O44: N/A | P44: N/A | Q44: N/A | R44: N/A | S44: N/A | T44: N/A | BB44: No | BC44: N/A | BD44: N/A | BE44: N/A | BF44: N/A | BG44: N/A | BH44: N/A | BI44: N/A | BJ44: N/A | BK44: N/A | BL44: N/A | BM44: N/A | BN44: N/A | BO44: N/A | BP44: N/A | BQ44: N/A | BR44: N/A | BS44: N/A | BT44: N/A
A45: Improved water source available when needed | B45: Yes | C45: N/A | D45: N/A | E45: N/A | F45: N/A | G45: N/A | H45: N/A | I45: N/A | J45: N/A | K45: N/A | L45: N/A | M45: N/A | N45: N/A | O45: N/A | P45: N/A | Q45: N/A | R45: N/A | S45: N/A | T45: N/A | BA45: Improved water source available when needed | BB45: Yes | BC45: N/A | BD45: N/A | BE45: N/A | BF45: N/A | BG45: N/A | BH45: N/A | BI45: N/A | BJ45: N/A | BK45: N/A | BL45: N/A | BM45: N/A | BN45: N/A | BO45: N/A | BP45: N/A | BQ45: N/A | BR45: N/A | BS45: N/A | BT45: N/A
B46: No | C46: N/A | D46: N/A | E46: N/A | F46: N/A | G46: N/A | H46: N/A | I46: N/A | J46: N/A | K46: N/A | L46: N/A | M46: N/A | N46: N/A | O46: N/A | P46: N/A | Q46: N/A | R46: N/A | S46: N/A | T46: N/A | BB46: No | BC46: N/A | BD46: N/A | BE46: N/A | BF46: N/A | BG46: N/A | BH46: N/A | BI46: N/A | BJ46: N/A | BK46: N/A | BL46: N/A | BM46: N/A | BN46: N/A | BO46: N/A | BP46: N/A | BQ46: N/A | BR46: N/A | BS46: N/A | BT46: N/A
A47: Microbiological quality at point of collection | B47: Not contaminated (No E. coli in 100 mL) | C47: N/A | D47: N/A | E47: N/A | F47: N/A | G47: N/A | H47: N/A | I47: N/A | J47: N/A | K47: N/A | L47: N/A | M47: N/A | N47: N/A | O47: N/A | P47: N/A | Q47: N/A | R47: N/A | S47: N/A | T47: N/A | BA47: Microbiological quality at point of collection | BB47: Not contaminated (No E. coli in 100 mL) | BC47: N/A | BD47: N/A | BE47: N/A | BF47: N/A | BG47: N/A | BH47: N/A | BI47: N/A | BJ47: N/A | BK47: N/A | BL47: N/A | BM47: N/A | BN47: N/A | BO47: N/A | BP47: N/A | BQ47: N/A | BR47: N/A | BS47: N/A | BT47: N/A
B48: Contaminated (E. coli detected in 100 mL) | C48: N/A | D48: N/A | E48: N/A | F48: N/A | G48: N/A | H48: N/A | I48: N/A | J48: N/A | K48: N/A | L48: N/A | M48: N/A | N48: N/A | O48: N/A | P48: N/A | Q48: N/A | R48: N/A | S48: N/A | T48: N/A | BB48: Contaminated (E. coli detected in 100 mL) | BC48: N/A | BD48: N/A | BE48: N/A | BF48: N/A | BG48: N/A | BH48: N/A | BI48: N/A | BJ48: N/A | BK48: N/A | BL48: N/A | BM48: N/A | BN48: N/A | BO48: N/A | BP48: N/A | BQ48: N/A | BR48: N/A | BS48: N/A | BT48: N/A
B49: Highly contaminated (>100 CFU/100 mL) | C49: N/A | D49: N/A | E49: N/A | F49: N/A | G49: N/A | H49: N/A | I49: N/A | J49: N/A | K49: N/A | L49: N/A | M49: N/A | N49: N/A | O49: N/A | P49: N/A | Q49: N/A | R49: N/A | S49: N/A | T49: N/A | BB49: Highly contaminated (>100 CFU/100 mL) | BC49: N/A | BD49: N/A | BE49: N/A | BF49: N/A | BG49: N/A | BH49: N/A | BI49: N/A | BJ49: N/A | BK49: N/A | BL49: N/A | BM49: N/A | BN49: N/A | BO49: N/A | BP49: N/A | BQ49: N/A | BR49: N/A | BS49: N/A | BT49: N/A
A50: Microbiological quality of improved water sources at point of collection | B50: Not contaminated (No E. coli in 100 mL) | C50: N/A | D50: N/A | E50: N/A | F50: N/A | G50: N/A | H50: N/A | I50: N/A | J50: N/A | K50: N/A | L50: N/A | M50: N/A | N50: N/A | O50: N/A | P50: N/A | Q50: N/A | R50: N/A | S50: N/A | T50: N/A | BA50: Microbiological quality of improved water sources at point of collection | BB50: Not contaminated (No E. coli in 100 mL) | BC50: N/A | BD50: N/A | BE50: N/A | BF50: N/A | BG50: N/A | BH50: N/A | BI50: N/A | BJ50: N/A | BK50: N/A | BL50: N/A | BM50: N/A | BN50: N/A | BO50: N/A | BP50: N/A | BQ50: N/A | BR50: N/A | BS50: N/A | BT50: N/A
B51: Contaminated (E. coli detected in 100 mL) | C51: N/A | D51: N/A | E51: N/A | F51: N/A | G51: N/A | H51: N/A | I51: N/A | J51: N/A | K51: N/A | L51: N/A | M51: N/A | N51: N/A | O51: N/A | P51: N/A | Q51: N/A | R51: N/A | S51: N/A | T51: N/A | BB51: Contaminated (E. coli detected in 100 mL) | BC51: N/A | BD51: N/A | BE51: N/A | BF51: N/A | BG51: N/A | BH51: N/A | BI51: N/A | BJ51: N/A | BK51: N/A | BL51: N/A | BM51: N/A | BN51: N/A | BO51: N/A | BP51: N/A | BQ51: N/A | BR51: N/A | BS51: N/A | BT51: N/A
B52: Highly contaminated (>100 CFU/100 mL) | C52: N/A | D52: N/A | E52: N/A | F52: N/A | G52: N/A | H52: N/A | I52: N/A | J52: N/A | K52: N/A | L52: N/A | M52: N/A | N52: N/A | O52: N/A | P52: N/A | Q52: N/A | R52: N/A | S52: N/A | T52: N/A | BB52: Highly contaminated (>100 CFU/100 mL) | BC52: N/A | BD52: N/A | BE52: N/A | BF52: N/A | BG52: N/A | BH52: N/A | BI52: N/A | BJ52: N/A | BK52: N/A | BL52: N/A | BM52: N/A | BN52: N/A | BO52: N/A | BP52: N/A | BQ52: N/A | BR52: N/A | BS52: N/A | BT52: N/A
A53: Microbiological quality of piped on premises at point of collection | B53: Not contaminated (No E. coli in 100 mL) | C53: N/A | D53: N/A | E53: N/A | F53: N/A | G53: N/A | H53: N/A | I53: N/A | J53: N/A | K53: N/A | L53: N/A | M53: N/A | N53: N/A | O53: N/A | P53: N/A | Q53: N/A | R53: N/A | S53: N/A | T53: N/A | BA53: Microbiological quality of piped on premises at point of collection | BB53: Not contaminated (No E. coli in 100 mL) | BC53: N/A | BD53: N/A | BE53: N/A | BF53: N/A | BG53: N/A | BH53: N/A | BI53: N/A | BJ53: N/A | BK53: N/A | BL53: N/A | BM53: N/A | BN53: N/A | BO53: N/A | BP53: N/A | BQ53: N/A | BR53: N/A | BS53: N/A | BT53: N/A
B54: Contaminated (E. coli detected in 100 mL) | C54: N/A | D54: N/A | E54: N/A | F54: N/A | G54: N/A | H54: N/A | I54: N/A | J54: N/A | K54: N/A | L54: N/A | M54: N/A | N54: N/A | O54: N/A | P54: N/A | Q54: N/A | R54: N/A | S54: N/A | T54: N/A | BB54: Contaminated (E. coli detected in 100 mL) | BC54: N/A | BD54: N/A | BE54: N/A | BF54: N/A | BG54: N/A | BH54: N/A | BI54: N/A | BJ54: N/A | BK54: N/A | BL54: N/A | BM54: N/A | BN54: N/A | BO54: N/A | BP54: N/A | BQ54: N/A | BR54: N/A | BS54: N/A | BT54: N/A
B55: Highly contaminated (>100 CFU/100 mL) | C55: N/A | D55: N/A | E55: N/A | F55: N/A | G55: N/A | H55: N/A | I55: N/A | J55: N/A | K55: N/A | L55: N/A | M55: N/A | N55: N/A | O55: N/A | P55: N/A | Q55: N/A | R55: N/A | S55: N/A | T55: N/A | BB55: Highly contaminated (>100 CFU/100 mL) | BC55: N/A | BD55: N/A | BE55: N/A | BF55: N/A | BG55: N/A | BH55: N/A | BI55: N/A | BJ55: N/A | BK55: N/A | BL55: N/A | BM55: N/A | BN55: N/A | BO55: N/A | BP55: N/A | BQ55: N/A | BR55: N/A | BS55: N/A | BT55: N/A
C56: NATIONAL wealth index quintile | H56: URBAN wealth index quintile | M56: RURAL wealth index quintile | R56: SUB-REGIONS: | BA56: Raw numbers of respondents: | BB56: Use of drinking water sources | BC56: NATIONAL wealth index quintile | BH56: URBAN wealth index quintile | BM56: RURAL wealth index quintile | BR56: SUB-REGIONS:
A57: Percentage based on weighted population | C57: Poorest | D57: Poor | E57: Middle | F57: Rich | G57: Richest | H57: Poorest | I57: Poor | J57: Middle | K57: Rich | L57: Richest | M57: Poorest | N57: Poor | O57: Middle | P57: Rich | Q57: Richest | R57: Más de 5 mil habitantes | S57: Montevideo y Área Metropolitana | T57: Rurales y menores de 5 mil habitantes | BA57: Water data, raw numbers (weighted) | BC57: Poorest | BD57: Poor | BE57: Middle | BF57: Rich | BG57: Richest | BH57: Poorest | BI57: Poor | BJ57: Middle | BK57: Rich | BL57: Richest | BM57: Poorest | BN57: Poor | BO57: Middle | BP57: Rich | BQ57: Richest | BR57: Más de 5 mil habitantes | BS57: Montevideo y Área Metropolitana | BT57: Rurales y menores de 5 mil habitantes
A58: Fuente principal de agua potable | B58: Tubería dentro de la vivienda | C58: 82.64401139 | D58: 95.25669692 | E58: 93.76198538 | F58: 90.07214788 | G58: 79.4785367 | H58: 87.0509916 | I58: 97.64032934 | J58: 94.90448468 | K58: 89.95356783 | L58: 79.27150015 | M58: 54.35903537 | N58: 77.60177908 | O58: 76.86988377 | P58: 81.01974201 | Q58: 75.50128615 | R58: 93.65569292 | S58: 86.63893291 | T58: 73.10273472
B59: Tubería dentro del terreno, patio o lote | C59: 5.887729257 | D59: 0.9763247115 | E59: 1.08238886 | F59: 1.579839763 | G59: 6.828685831 | H59: 5.032937124 | I59: 1.056913227 | J59: 1.102290265 | K59: 1.729351783 | L59: 7.511922544 | M59: 11.33018756 | N59: 3.015814269 | O59: 0.2190433453 | P59: 0.9056276964 | Q59: 0 | R59: 1.757403136 | S59: 4.514782097 | T59: 3.099558548
B60: Tubería al vecino | C60: 0.4643736941 | D60: 0.04282370977 | E60: 0.9781462729 | F60: 0 | G60: 0 | H60: 0.4600014382 | I60: 0.04711459665 | J60: 0 | K60: 0 | L60: 0 | M60: 0.5054408468 | N60: 0 | O60: 0 | P60: 10.70285622 | Q60: 0 | R60: 0.05871093011 | S60: 0.1358325533 | T60: 2.26275854
B61: Canilla o grifo público | C61: 4.556191822 | D61: 0.09844038163 | E61: 0.4693563504 | F61: 0.04534717964 | G61: 0 | H61: 4.967296861 | I61: 0 | J61: 0.5194075563 | K61: 0.04963872148 | L61: 0 | M61: 0.3978187207 | N61: 0 | O61: 1.120684556 | P61: 0 | Q61: 0 | R61: 2.225787574 | S61: 0.2111370182 | T61: 0.2954947516
B62: Pozo con tubería | C62: 1.629768656 | D62: 0.9310721649 | E62: 0.03125226327 | F62: 0.8503464089 | G62: 0.7303309162 | H62: 0.8004275481 | I62: 0.3328550857 | J62: 0 | K62: 0 | L62: 0 | M62: 3.04466862 | N62: 6.767649775 | O62: 7.319175947 | P62: 0.116573272 | Q62: 17.26844838 | R62: 0.3349943133 | S62: 0.1399023565 | T62: 6.89672074
B63: Pozo protegido | C63: 0.5345416196 | D63: 0.2383443318 | E63: 0.03357302165 | F63: 0.1486066425 | G63: 0.05143762454 | H63: 0.136512579 | I63: 0 | J63: 0 | K63: 0 | L63: 0.05658415997 | M63: 4.005707491 | N63: 2.133050675 | O63: 0.9862601291 | P63: 0.5377772611 | Q63: 1.448523782 | R63: 0.03306055743 | S63: 0.04311883132 | T63: 1.824836729
B64: Pozo no protegido | C64: 0.6934886342 | D64: 0.01566817373 | E64: 0 | F64: 0 | G64: 0 | H64: 0.01130519157 | I64: 0 | J64: 0 | K64: 0 | L64: 0 | M64: 4.660810253 | N64: 2.795593201 | O64: 0.1783727372 | P64: 0 | Q64: 0 | R64: 0 | S64: 0.004078982478 | T64: 1.535948249
B65: Manantial o pozo surgente protegido | C65: 0.7325350455 | D65: 1.079080561 | E65: 0.3709630357 | F65: 0.03896240307 | G65: 0.2625335485 | H65: 0 | I65: 0 | J65: 0 | K65: 0 | L65: 0 | M65: 6.510356681 | N65: 1.529937505 | O65: 12.6201349 | P65: 3.738570722 | Q65: 3.29987475 | R65: 0 | S65: 0 | T65: 5.463252861
B66: Manantial o pozo surgente no protegido | C66: 0.3090084637 | D66: 0.4758971389 | E66: 0.02076674318 | F66: 0.04645236555 | G66: 0 | H66: 0 | I66: 0 | J66: 0 | K66: 0 | L66: 0 | M66: 3.181064402 | N66: 5.318959669 | O66: 0 | P66: 0.227229273 | Q66: 0.5064133548 | R66: 0 | S66: 0 | T66: 1.872358971
B67: Recogen agua de lluvia | C67: 0.1698078422 | D67: 0 | E67: 0 | F67: 0 | G67: 0 | H67: 0 | I67: 0 | J67: 0 | K67: 0 | L67: 0 | M67: 1.874795554 | N67: 0 | O67: 0 | P67: 0 | Q67: 0 | R67: 0 | S67: 0 | T67: 0.3731989478
B68: Carrotanque / camión cisterna | C68: 0.9475360883 | D68: 0 | E68: 0 | F68: 0 | G68: 0 | H68: 0 | I68: 0 | J68: 0 | K68: 0 | L68: 0 | M68: 10.1301145 | N68: 0.3213803095 | O68: 0 | P68: 0 | Q68: 0 | R68: 0 | S68: 0 | T68: 2.082468433
B69: Agua de superficie(río, arroyo, represa, lago, estanque, canal, canal de irrigación) | C69: 0 | D69: 0 | E69: 0 | F69: 0 | G69: 0.3597444667 | H69: 0 | I69: 0 | J69: 0 | K69: 0 | L69: 0.395738307 | M69: 0 | N69: 0 | O69: 0 | P69: 0 | Q69: 0 | R69: 0 | S69: 0.1426379415 | T69: 0
B70: Agua embotellada/envasada | C70: 1.358854908 | D70: 0.8856519023 | E70: 3.251568071 | F70: 7.218297355 | G70: 12.28873092 | H70: 1.461237697 | I70: 0.9227877529 | J70: 3.473817503 | K70: 8.267441661 | L70: 12.76425484 | M70: 0 | N70: 0.5158355142 | O70: 0.6864446132 | P70: 2.751623539 | Q70: 1.97545358 | R70: 1.934350565 | S70: 8.140969006 | T70: 1.190668511
B71: Otra | C71: 0.07215257826 | D71: 0 | E71: 0 | F71: 0 | G71: 0 | H71: 0.07928995746 | I71: 0 | J71: 0 | K71: 0 | L71: 0 | M71: 0 | N71: 0 | O71: 0 | P71: 0 | Q71: 0 | R71: 0 | S71: 0.02860830311 | T71: 0
A108: =A1026 -> Uruguay
A109: =A1034 -> 2013
A110: Use of sanitation facilities
A111: by wealth quintile and sub-national region
A112: Notes:
A113: WHO/UNICEF JMP customised wealth index excludes water,
A114: sanitation and hygiene assets.
A115: Survey used for analysis: | B115: =A1025 -> MICS13
A116: =B1030 -> 
A117: =B1029 -> 
A120: Use of sanitation facilities | C120: NATIONAL wealth index quintile | H120: URBAN wealth index quintile | M120: RURAL wealth index quintile | R120: SUB-REGIONS: | BA120: Raw numbers of respondents: | BB120: Use of sanitation facilities | BC120: NATIONAL wealth index quintile | BH120: URBAN wealth index quintile | BM120: RURAL wealth index quintile | BR120: SUB-REGIONS:
A121: Weighted percentage (used in graphs) | C121: Poorest | D121: Poor | E121: Middle | F121: Rich | G121: Richest | H121: Poorest | I121: Poor | J121: Middle | K121: Rich | L121: Richest | M121: Poorest | N121: Poor | O121: Middle | P121: Rich | Q121: Richest | R121: Más de 5 mil habitantes | S121: Montevideo y Área Metropolitana | T121: Rurales y menores de 5 mil habitantes | BA121: Sanitation data, raw numbers (weighted) | BC121: Poorest | BD121: Poor | BE121: Middle | BF121: Rich | BG121: Richest | BH121: Poorest | BI121: Poor | BJ121: Middle | BK121: Rich | BL121: Richest | BM121: Poorest | BN121: Poor | BO121: Middle | BP121: Rich | BQ121: Richest | BR121: Más de 5 mil habitantes | BS121: Montevideo y Área Metropolitana | BT121: Rurales y menores de 5 mil habitantes
A122: Sanitation | B122: Improved | C122: 93.82910446 | D122: 99.92738705 | E122: 99.96566017 | F122: 98.80599116 | G122: 99.45826718 | H122: 93.89993823 | I122: 99.92011132 | J122: 99.96199824 | K122: 98.6929932 | L122: 99.4040647 | M122: 93.46147069 | N122: 99.70318179 | O122: 100 | P122: 100 | Q122: 100 | R122: 99.91513924 | S122: 97.13860891 | T122: 98.63751745 | BA122: Sanitation | BB122: Improved | BC122: 2018.364224 | BD122: 2149.097417 | BE122: 2162.77396 | BF122: 2115.791175 | BG122: 2139.456953 | BH122: 1838.065335 | BI122: 1953.229566 | BJ122: 1954.292915 | BK122: 1930.658837 | BL122: 1943.805644 | BM122: 182.095162 | BN122: 200.274207 | BO122: 188.912838 | BP122: 197.726285 | BQ122: 196.42294 | BR122: 4350.016029 | BS122: 5270.036268 | BT122: 965.431432
B123: Not Improved | C123: 6.170895535 | D123: 0.07261295009 | E123: 0.0343398287 | F123: 1.194008837 | G123: 0.5417328166 | H123: 6.100061772 | I123: 0.07988868487 | J123: 0.03800175813 | K123: 1.307006799 | L123: 0.5959353028 | M123: 6.538529314 | N123: 0.2968182071 | O123: 0 | P123: 0 | Q123: 0 | R123: 0.08486076181 | S123: 2.861391094 | T123: 1.362482545 | BB123: Not Improved | BC123: 132.742552 | BD123: 1.561657 | BE123: 0.742948 | BF123: 25.568018 | BG123: 11.65327 | BH123: 119.407023 | BI123: 1.561657 | BJ123: 0.742948 | BK123: 25.568018 | BL123: 11.65327 | BM123: 12.739309 | BN123: 0.59622 | BO123: 0 | BP123: 0 | BQ123: 0 | BR123: 3.694592 | BS123: 155.238324 | BT123: 13.335529
A124: Sanitation ladder | B124: Basic | C124: 87.33833628 | D124: 95.04179195 | E124: 95.49327668 | F124: 95.30693751 | G124: 96.69562495 | H124: 85.90653994 | I124: 96.58801432 | J124: 94.91482234 | K124: 95.52297589 | L124: 96.42332643 | M124: 86.05935138 | N124: 94.40962507 | O124: 99.01478586 | P124: 97.65510842 | Q124: 98.32273919 | R124: 93.65641271 | S124: 94.01251158 | T124: 95.07719519 | BA124: Sanitation ladder | BB124: Basic | BC124: 1878.59395 | BD124: 2015.86066 | BE124: 2066.013187 | BF124: 2040.863868 | BG124: 2055.283865 | BH124: 1681.452262 | BI124: 1859.471563 | BJ124: 1855.618816 | BK124: 1868.646107 | BL124: 1860.842608 | BM124: 167.673282 | BN124: 189.641017 | BO124: 187.051642 | BP124: 193.089818 | BQ124: 193.128415 | BR124: 4040.279994 | BS124: 5085.751362 | BT124: 930.584174
B125: Limited | C125: 6.49028558 | D125: 4.884580601 | E125: 4.47238349 | F125: 3.49905365 | G125: 2.756119773 | H125: 7.992874019 | I125: 3.330867289 | J125: 5.047175904 | K125: 3.170017314 | L125: 2.972835793 | M125: 7.40211931 | N125: 5.293556726 | O125: 0.9852141441 | P125: 2.344891576 | Q125: 1.677260813 | R125: 6.25794416 | S125: 3.117834813 | T125: 3.560322261 | BB125: Limited | BC125: 139.602055 | BD125: 103.603201 | BE125: 96.760773 | BF125: 74.927307 | BG125: 58.581849 | BH125: 156.444854 | BI125: 64.124447 | BJ125: 98.674099 | BK125: 62.01273 | BL125: 57.371797 | BM125: 14.42188 | BN125: 10.63319 | BO125: 1.861196 | BP125: 4.636467 | BQ125: 3.294525 | BR125: 269.963859 | BS125: 168.664068 | BT125: 34.847258
B126: Unimproved | C126: 3.839067449 | D126: 0.0348746865 | E126: 0 | F126: 1.194008837 | G126: 0.5482552773 | H126: 3.575366168 | I126: 0.03842287895 | J126: 0 | K126: 1.307006799 | L126: 0.6038377735 | M126: 6.158546759 | N126: 0.2968182071 | O126: 0 | P126: 0 | Q126: 0 | R126: 0.05049536584 | S126: 1.95508705 | T126: 1.286842783 | BB126: Unimproved | BC126: 82.575982 | BD126: 0.739701 | BE126: 0 | BF126: 25.568018 | BG126: 11.65327 | BH126: 69.98079 | BI126: 0.739701 | BJ126: 0 | BK126: 25.568018 | BL126: 11.65327 | BM126: 11.998972 | BN126: 0.59622 | BO126: 0 | BP126: 0 | BQ126: 0 | BR126: 2.178339 | BS126: 105.76344 | BT126: 12.595192
B127: Open defecation | C127: 2.332310695 | D127: 0.03875276337 | E127: 0.0343398287 | F127: 0 | G127: 0 | H127: 2.525219868 | I127: 0.04269551601 | J127: 0.03800175813 | K127: 0 | L127: 0 | M127: 0.3799825545 | N127: 0 | O127: 0 | P127: 0 | Q127: 0 | R127: 0.03514776623 | S127: 0.9145665555 | T127: 0.07563976202 | BB127: Open defecation | BC127: 50.16657 | BD127: 0.821956 | BE127: 0.742948 | BF127: 0 | BG127: 0 | BH127: 49.426233 | BI127: 0.821956 | BJ127: 0.742948 | BK127: 0 | BL127: 0 | BM127: 0.740337 | BN127: 0 | BO127: 0 | BP127: 0 | BQ127: 0 | BR127: 1.516253 | BS127: 49.474884 | BT127: 0.740337
A128: Shared among Improved Sanitation | B128: Yes | C128: 6.917170317 | D128: 4.888179643 | E128: 4.473919827 | F128: 3.541337533 | G128: 2.771313646 | H128: 8.512166031 | I128: 3.333571429 | J128: 5.049094649 | K128: 3.211998351 | L128: 2.990895953 | M128: 7.919968791 | N128: 5.309315742 | O128: 0.9852141441 | P128: 2.344891576 | Q128: 1.677260813 | R128: 6.263308254 | S128: 3.209949237 | T128: 3.609501084 | BA128: Shared among improved sanitation facilities | BB128: Yes | BC128: N/A | BD128: N/A | BE128: N/A | BF128: N/A | BG128: N/A | BH128: N/A | BI128: N/A | BJ128: N/A | BK128: N/A | BL128: N/A | BM128: N/A | BN128: N/A | BO128: N/A | BP128: N/A | BQ128: N/A | BR128: N/A | BS128: N/A | BT128: N/A
B129: No | C129: 93.08282968 | D129: 95.11182036 | E129: 95.52608017 | F129: 96.45866247 | G129: 97.22868635 | H129: 91.48783397 | I129: 96.66642857 | J129: 94.95090535 | K129: 96.78800165 | L129: 97.00910405 | M129: 92.08003121 | N129: 94.69068426 | O129: 99.01478586 | P129: 97.65510842 | Q129: 98.32273919 | R129: 93.73669175 | S129: 96.79005076 | T129: 96.39049892 | BB129: No | BC129: N/A | BD129: N/A | BE129: N/A | BF129: N/A | BG129: N/A | BH129: N/A | BI129: N/A | BJ129: N/A | BK129: N/A | BL129: N/A | BM129: N/A | BN129: N/A | BO129: N/A | BP129: N/A | BQ129: N/A | BR129: N/A | BS129: N/A | BT129: N/A
A130: Manually calculated ratios | B130: Improved latrines
B131: Other
B132: Other
C133: NATIONAL wealth index quintile | H133: URBAN wealth index quintile | M133: RURAL wealth index quintile | R133: SUB-REGIONS: | BA133: Raw numbers of respondents: | BB133: Use of sanitation facilities | BC133: NATIONAL wealth index quintile | BH133: URBAN wealth index quintile | BM133: RURAL wealth index quintile | BR133: SUB-REGIONS:
A134: Percentage based on weighted population | C134: Poorest | D134: Poor | E134: Middle | F134: Rich | G134: Richest | H134: Poorest | I134: Poor | J134: Middle | K134: Rich | L134: Richest | M134: Poorest | N134: Poor | O134: Middle | P134: Rich | Q134: Richest | R134: Más de 5 mil habitantes | S134: Montevideo y Área Metropolitana | T134: Rurales y menores de 5 mil habitantes | BA134: Sanitation data, raw numbers (weighted) | BC134: Poorest | BD134: Poor | BE134: Middle | BF134: Rich | BG134: Richest | BH134: Poorest | BI134: Poor | BJ134: Middle | BK134: Rich | BL134: Richest | BM134: Poorest | BN134: Poor | BO134: Middle | BP134: Rich | BQ134: Richest | BR134: Más de 5 mil habitantes | BS134: Montevideo y Área Metropolitana | BT134: Rurales y menores de 5 mil habitantes
A135: Sanitation type | B135: Sewer connection | C135: 33.12667074 | D135: 51.4266569 | E135: 54.3671814 | F135: 65.34766473 | G135: 78.05214759 | H135: 38.06350184 | I135: 52.92080335 | J135: 58.05699918 | K135: 68.91578574 | L135: 79.71043604 | M135: 8.776098455 | N135: 36.1573802 | O135: 34.39583762 | P135: 32.49736726 | Q135: 16.66610886 | R135: 61.59966064 | S135: 57.86973202 | T135: 25.71586599 | BA135: Sanitation type | BB135: Sewer connection | BC135: N/A | BD135: N/A | BE135: N/A | BF135: N/A | BG135: N/A | BH135: N/A | BI135: N/A | BJ135: N/A | BK135: N/A | BL135: N/A | BM135: N/A | BN135: N/A | BO135: N/A | BP135: N/A | BQ135: N/A | BR135: N/A | BS135: N/A | BT135: N/A
B136: Septic tank connection | C136: 60.1743287 | D136: 48.35410017 | E136: 45.38302827 | F136: 33.45832644 | G136: 21.39611611 | H136: 55.57726629 | I136: 46.89186544 | J136: 41.66657336 | K136: 29.77720746 | L136: 19.69362865 | M136: 80.91799269 | N136: 63.54580159 | O136: 65.60416238 | P136: 67.50263274 | Q136: 83.22433877 | R136: 38.26983229 | S136: 39.08736607 | T136: 72.14972717 | BB136: Septic tank connection | BC136: N/A | BD136: N/A | BE136: N/A | BF136: N/A | BG136: N/A | BH136: N/A | BI136: N/A | BJ136: N/A | BK136: N/A | BL136: N/A | BM136: N/A | BN136: N/A | BO136: N/A | BP136: N/A | BQ136: N/A | BR136: N/A | BS136: N/A | BT136: N/A
B137: Improved latrines | C137: 0.5281050261 | D137: 0.1466299814 | E137: 0.2154505002 | F137: 0 | G137: 0.01000348554 | H137: 0.2591700965 | I137: 0.1074425225 | J137: 0.238425703 | K137: 0 | L137: 0 | M137: 3.767379541 | N137: 0 | O137: 0 | P137: 0 | Q137: 0.1095523771 | R137: 0.04564630434 | S137: 0.1815108126 | T137: 0.7719242987 | BB137: Improved latrines | BC137: N/A | BD137: N/A | BE137: N/A | BF137: N/A | BG137: N/A | BH137: N/A | BI137: N/A | BJ137: N/A | BK137: N/A | BL137: N/A | BM137: N/A | BN137: N/A | BO137: N/A | BP137: N/A | BQ137: N/A | BR137: N/A | BS137: N/A | BT137: N/A
B138: Unimproved facilities | C138: 3.83876723 | D138: 0.03439415428 | E138: 0 | F138: 1.194008837 | G138: 0.5417328166 | H138: 3.575058913 | I138: 0.03784040931 | J138: 0 | K138: 1.307006799 | L138: 0.5959353028 | M138: 6.158546759 | N138: 0.2968182071 | O138: 0 | P138: 0 | Q138: 0 | R138: 0.05003407873 | S138: 1.949457824 | T138: 1.286842783 | BB138: Unimproved facilities | BC138: N/A | BD138: N/A | BE138: N/A | BF138: N/A | BG138: N/A | BH138: N/A | BI138: N/A | BJ138: N/A | BK138: N/A | BL138: N/A | BM138: N/A | BN138: N/A | BO138: N/A | BP138: N/A | BQ138: N/A | BR138: N/A | BS138: N/A | BT138: N/A
B139: Open defecation | C139: 2.332128305 | D139: 0.03821879581 | E139: 0.0343398287 | F139: 0 | G139: 0 | H139: 2.525002859 | I139: 0.04204827556 | J139: 0.03800175813 | K139: 0 | L139: 0 | M139: 0.3799825545 | N139: 0 | O139: 0 | P139: 0 | Q139: 0 | R139: 0.03482668308 | S139: 0.9119332701 | T139: 0.07563976202 | BB139: Open defecation | BC139: N/A | BD139: N/A | BE139: N/A | BF139: N/A | BG139: N/A | BH139: N/A | BI139: N/A | BJ139: N/A | BK139: N/A | BL139: N/A | BM139: N/A | BN139: N/A | BO139: N/A | BP139: N/A | BQ139: N/A | BR139: N/A | BS139: N/A | BT139: N/A
A140: Septic tank emptying practices | B140: Not emptied/treated and disposed in situ | C140: N/A | D140: N/A | E140: N/A | F140: N/A | G140: N/A | H140: N/A | I140: N/A | J140: N/A | K140: N/A | L140: N/A | M140: N/A | N140: N/A | O140: N/A | P140: N/A | Q140: N/A | R140: N/A | S140: N/A | T140: N/A | BA140: Septic tank emptying practices | BB140: Not emptied/treated and disposed in situ | BC140: N/A | BD140: N/A | BE140: N/A | BF140: N/A | BG140: N/A | BH140: N/A | BI140: N/A | BJ140: N/A | BK140: N/A | BL140: N/A | BM140: N/A | BN140: N/A | BO140: N/A | BP140: N/A | BQ140: N/A | BR140: N/A | BS140: N/A | BT140: N/A
B141: Emptied and buried on site | C141: N/A | D141: N/A | E141: N/A | F141: N/A | G141: N/A | H141: N/A | I141: N/A | J141: N/A | K141: N/A | L141: N/A | M141: N/A | N141: N/A | O141: N/A | P141: N/A | Q141: N/A | R141: N/A | S141: N/A | T141: N/A | BB141: Emptied and buried on site | BC141: N/A | BD141: N/A | BE141: N/A | BF141: N/A | BG141: N/A | BH141: N/A | BI141: N/A | BJ141: N/A | BK141: N/A | BL141: N/A | BM141: N/A | BN141: N/A | BO141: N/A | BP141: N/A | BQ141: N/A | BR141: N/A | BS141: N/A | BT141: N/A
B142: Emptied and discharged locally | C142: N/A | D142: N/A | E142: N/A | F142: N/A | G142: N/A | H142: N/A | I142: N/A | J142: N/A | K142: N/A | L142: N/A | M142: N/A | N142: N/A | O142: N/A | P142: N/A | Q142: N/A | R142: N/A | S142: N/A | T142: N/A | BB142: Emptied and discharged locally | BC142: N/A | BD142: N/A | BE142: N/A | BF142: N/A | BG142: N/A | BH142: N/A | BI142: N/A | BJ142: N/A | BK142: N/A | BL142: N/A | BM142: N/A | BN142: N/A | BO142: N/A | BP142: N/A | BQ142: N/A | BR142: N/A | BS142: N/A | BT142: N/A
B143: Emptied and removed offsite | C143: N/A | D143: N/A | E143: N/A | F143: N/A | G143: N/A | H143: N/A | I143: N/A | J143: N/A | K143: N/A | L143: N/A | M143: N/A | N143: N/A | O143: N/A | P143: N/A | Q143: N/A | R143: N/A | S143: N/A | T143: N/A | BB143: Emptied and removed offsite | BC143: N/A | BD143: N/A | BE143: N/A | BF143: N/A | BG143: N/A | BH143: N/A | BI143: N/A | BJ143: N/A | BK143: N/A | BL143: N/A | BM143: N/A | BN143: N/A | BO143: N/A | BP143: N/A | BQ143: N/A | BR143: N/A | BS143: N/A | BT143: N/A
A144: Latrine emptying practices | B144: Not emptied/treated and disposed in situ | C144: N/A | D144: N/A | E144: N/A | F144: N/A | G144: N/A | H144: N/A | I144: N/A | J144: N/A | K144: N/A | L144: N/A | M144: N/A | N144: N/A | O144: N/A | P144: N/A | Q144: N/A | R144: N/A | S144: N/A | T144: N/A | BA144: Latrine emptying practices | BB144: Not emptied/treated and disposed in situ | BC144: N/A | BD144: N/A | BE144: N/A | BF144: N/A | BG144: N/A | BH144: N/A | BI144: N/A | BJ144: N/A | BK144: N/A | BL144: N/A | BM144: N/A | BN144: N/A | BO144: N/A | BP144: N/A | BQ144: N/A | BR144: N/A | BS144: N/A | BT144: N/A
B145: Emptied and buried on site | C145: N/A | D145: N/A | E145: N/A | F145: N/A | G145: N/A | H145: N/A | I145: N/A | J145: N/A | K145: N/A | L145: N/A | M145: N/A | N145: N/A | O145: N/A | P145: N/A | Q145: N/A | R145: N/A | S145: N/A | T145: N/A | BB145: Emptied and buried on site | BC145: N/A | BD145: N/A | BE145: N/A | BF145: N/A | BG145: N/A | BH145: N/A | BI145: N/A | BJ145: N/A | BK145: N/A | BL145: N/A | BM145: N/A | BN145: N/A | BO145: N/A | BP145: N/A | BQ145: N/A | BR145: N/A | BS145: N/A | BT145: N/A
B146: Emptied and discharged locally | C146: N/A | D146: N/A | E146: N/A | F146: N/A | G146: N/A | H146: N/A | I146: N/A | J146: N/A | K146: N/A | L146: N/A | M146: N/A | N146: N/A | O146: N/A | P146: N/A | Q146: N/A | R146: N/A | S146: N/A | T146: N/A | BB146: Emptied and discharged locally | BC146: N/A | BD146: N/A | BE146: N/A | BF146: N/A | BG146: N/A | BH146: N/A | BI146: N/A | BJ146: N/A | BK146: N/A | BL146: N/A | BM146: N/A | BN146: N/A | BO146: N/A | BP146: N/A | BQ146: N/A | BR146: N/A | BS146: N/A | BT146: N/A
B147: Emptied and removed offsite | C147: N/A | D147: N/A | E147: N/A | F147: N/A | G147: N/A | H147: N/A | I147: N/A | J147: N/A | K147: N/A | L147: N/A | M147: N/A | N147: N/A | O147: N/A | P147: N/A | Q147: N/A | R147: N/A | S147: N/A | T147: N/A | BB147: Emptied and removed offsite | BC147: N/A | BD147: N/A | BE147: N/A | BF147: N/A | BG147: N/A | BH147: N/A | BI147: N/A | BJ147: N/A | BK147: N/A | BL147: N/A | BM147: N/A | BN147: N/A | BO147: N/A | BP147: N/A | BQ147: N/A | BR147: N/A | BS147: N/A | BT147: N/A
A148: Shared among improved sanitation facilities | B148: Yes | C148: 6.489778032 | D148: 4.817276818 | E148: 4.47238349 | F148: 3.49905365 | G148: 2.723330882 | H148: 7.992187137 | I148: 3.28037318 | J148: 5.047175904 | K148: 3.170017314 | L148: 2.933930066 | M148: 7.40211931 | N148: 5.293556726 | O148: 0.9852141441 | P148: 2.344891576 | Q148: 1.677260813 | R148: 6.200776361 | S148: 3.10885772 | T148: 3.560322261 | BA148: Shared among improved sanitation facilities | BB148: Yes | BC148: N/A | BD148: N/A | BE148: N/A | BF148: N/A | BG148: N/A | BH148: N/A | BI148: N/A | BJ148: N/A | BK148: N/A | BL148: N/A | BM148: N/A | BN148: N/A | BO148: N/A | BP148: N/A | BQ148: N/A | BR148: N/A | BS148: N/A | BT148: N/A
B149: No | C149: 87.33150632 | D149: 93.73222769 | E149: 95.49327668 | F149: 95.30693751 | G149: 95.54526044 | H149: 85.89915741 | I149: 95.12379333 | J149: 94.91482234 | K149: 95.52297589 | L149: 95.16142705 | M149: 86.05935138 | N149: 94.40962507 | O149: 99.01478586 | P149: 97.65510842 | Q149: 98.32273919 | R149: 92.80083923 | S149: 93.74182405 | T149: 95.07719519 | BB149: No | BC149: N/A | BD149: N/A | BE149: N/A | BF149: N/A | BG149: N/A | BH149: N/A | BI149: N/A | BJ149: N/A | BK149: N/A | BL149: N/A | BM149: N/A | BN149: N/A | BO149: N/A | BP149: N/A | BQ149: N/A | BR149: N/A | BS149: N/A | BT149: N/A
B150: DK/missing | C150: 6.178715649 | D150: 1.450495496 | E150: 0.0343398287 | F150: 1.194008837 | G150: 1.731408675 | H150: 6.108655456 | I150: 1.59583349 | J150: 0.03800175813 | K150: 1.307006799 | L150: 1.904642881 | M150: 6.538529314 | N150: 0.2968182071 | O150: 0 | P150: 0 | Q150: 0 | R150: 0.9983844078 | S150: 3.149318235 | T150: 1.362482545 | BB150: DK/missing | BC150: N/A | BD150: N/A | BE150: N/A | BF150: N/A | BG150: N/A | BH150: N/A | BI150: N/A | BJ150: N/A | BK150: N/A | BL150: N/A | BM150: N/A | BN150: N/A | BO150: N/A | BP150: N/A | BQ150: N/A | BR150: N/A | BS150: N/A | BT150: N/A
A151: Shared among all sanitation facilities | B151: Yes | C151: 6.800378164 | D151: 4.819118627 | E151: 4.473919827 | F151: 3.49905365 | G151: 2.723330882 | H151: 8.370587897 | I151: 3.2817531 | J151: 5.049094649 | K151: 3.170017314 | L151: 2.933930066 | M151: 7.430353356 | N151: 5.293556726 | O151: 0.9852141441 | P151: 2.344891576 | Q151: 1.677260813 | R151: 6.209258598 | S151: 3.193176036 | T151: 3.563017319 | BA151: Shared among all sanitation facilities | BB151: Yes | BC151: N/A | BD151: N/A | BE151: N/A | BF151: N/A | BG151: N/A | BH151: N/A | BI151: N/A | BJ151: N/A | BK151: N/A | BL151: N/A | BM151: N/A | BN151: N/A | BO151: N/A | BP151: N/A | BQ151: N/A | BR151: N/A | BS151: N/A | BT151: N/A
B152: No | C152: 93.19161499 | D152: 93.80247202 | E152: 95.52608017 | F152: 96.50094635 | G152: 96.08699326 | H152: 91.62059581 | I152: 95.2016644 | J152: 94.95090535 | K152: 96.82998269 | L152: 95.75736236 | M152: 92.56964664 | N152: 94.70644327 | O152: 99.01478586 | P152: 97.65510842 | Q152: 98.32273919 | R152: 92.8768995 | S152: 96.51624696 | T152: 96.43698268 | BB152: No | BC152: N/A | BD152: N/A | BE152: N/A | BF152: N/A | BG152: N/A | BH152: N/A | BI152: N/A | BJ152: N/A | BK152: N/A | BL152: N/A | BM152: N/A | BN152: N/A | BO152: N/A | BP152: N/A | BQ152: N/A | BR152: N/A | BS152: N/A | BT152: N/A
A153: Tipo de servicio sanitario | B153: Inodoro conectado a red de saneamiento | C153: 33.12667074 | D153: 51.4266569 | E153: 54.3671814 | F153: 65.34766473 | G153: 78.05214759 | H153: 38.06350184 | I153: 52.92080335 | J153: 58.05699918 | K153: 68.91578574 | L153: 79.71043604 | M153: 8.776098455 | N153: 36.1573802 | O153: 34.39583762 | P153: 32.49736726 | Q153: 16.66610886 | R153: 61.59966064 | S153: 57.86973202 | T153: 25.71586599 | BA153: Tipo de servicio sanitario | BB153: Inodoro conectado a red de saneamiento | BC153: 712.590059 | BD153: 1106.012063 | BE153: 1176.243162 | BF153: 1399.328226 | BG153: 1678.987726 | BH153: 745.082527 | BI153: 1034.491219 | BJ153: 1135.035155 | BK153: 1348.149108 | BL153: 1558.704827 | BM153: 17.098865 | BN153: 72.629484 | BO153: 64.978153 | BP153: 64.255837 | BQ153: 32.736061 | BR153: 2681.870968 | BS153: 3139.591868 | BT153: 251.6984
B154: Inodoro conectado a fosa séptica o pozo impermeable | C154: 60.1743287 | D154: 48.35410017 | E154: 45.38302827 | F154: 33.45832644 | G154: 21.39611611 | H154: 55.57726629 | I154: 46.89186544 | J154: 41.66657336 | K154: 29.77720746 | L154: 19.69362865 | M154: 80.91799269 | N154: 63.54580159 | O154: 65.60416238 | P154: 67.50263274 | Q154: 83.22433877 | R154: 38.26983229 | S154: 39.08736607 | T154: 72.14972717 | BB154: Inodoro conectado a fosa séptica o pozo impermeable | BC154: 1294.414062 | BD154: 1039.931843 | BE154: 981.86949 | BF154: 716.462949 | BG154: 460.254041 | BH154: 1087.909625 | BI154: 916.63807 | BJ154: 814.596452 | BK154: 582.509729 | BL154: 385.100817 | BM154: 157.656143 | BN154: 127.644723 | BO154: 123.934685 | BP154: 133.470448 | BQ154: 163.471693 | BR154: 1666.157753 | BS154: 2120.59694 | BT154: 706.177692
B155: Inodoro o taza turca (letrina) conectado/a a pozo permeable (perdedor) | C155: 0.5281050261 | D155: 0.1466299814 | E155: 0.2154505002 | F155: 0 | G155: 0.01000348554 | H155: 0.2591700965 | I155: 0.1074425225 | J155: 0.238425703 | K155: 0 | L155: 0 | M155: 3.767379541 | N155: 0 | O155: 0 | P155: 0 | Q155: 0.1095523771 | R155: 0.04564630434 | S155: 0.1815108126 | T155: 0.7719242987 | BB155: Inodoro o taza turca (letrina) conectado/a a pozo permeable (perdedor) | BC155: 11.360103 | BD155: 3.153511 | BE155: 4.661308 | BF155: 0 | BG155: 0.215186 | BH155: 5.073183 | BI155: 2.100277 | BJ155: 4.661308 | BK155: 0 | BL155: 0 | BM155: 7.340154 | BN155: 0 | BO155: 0 | BP155: 0 | BQ155: 0.215186 | BR155: 1.987308 | BS155: 9.84746 | BT155: 7.55534
B156: Baldeo a otra parte | C156: 2.399448162 | D156: 0 | E156: 0 | F156: 0.5622290758 | G156: 0 | H156: 2.636803109 | I156: 0 | J156: 0 | K156: 0.6154370067 | L156: 0 | M156: 0 | N156: 0 | O156: 0 | P156: 0 | Q156: 0 | R156: 0 | S156: 1.173286899 | T156: 0 | BB156: Baldeo a otra parte | BC156: 51.614692 | BD156: 0 | BE156: 0 | BF156: 12.039344 | BG156: 0 | BH156: 51.614692 | BI156: 0 | BJ156: 0 | BK156: 12.039344 | BL156: 0 | BM156: 0 | BN156: 0 | BO156: 0 | BP156: 0 | BQ156: 0 | BR156: 0 | BS156: 63.654036 | BT156: 0
B157: Balde | C157: 0.6056976411 | D157: 0 | E157: 0 | F157: 0 | G157: 0 | H157: 0.3869546852 | I157: 0 | J157: 0 | K157: 0 | L157: 0 | M157: 2.799644217 | N157: 0 | O157: 0 | P157: 0 | Q157: 0 | R157: 0.03306055743 | S157: 0.1130849673 | T157: 0.5573003807 | BB157: Balde | BC157: 13.029203 | BD157: 0 | BE157: 0 | BF157: 0 | BG157: 0 | BH157: 7.574531 | BI157: 0 | BJ157: 0 | BK157: 0 | BL157: 0 | BM157: 5.454672 | BN157: 0 | BO157: 0 | BP157: 0 | BQ157: 0 | BR157: 1.439361 | BS157: 6.13517 | BT157: 5.454672
B158: No hay instalación sanitaria, va al monte, campo | C158: 2.332128305 | D158: 0.03821879581 | E158: 0.0343398287 | F158: 0 | G158: 0 | H158: 2.525002859 | I158: 0.04204827556 | J158: 0.03800175813 | K158: 0 | L158: 0 | M158: 0.3799825545 | N158: 0 | O158: 0 | P158: 0 | Q158: 0 | R158: 0.03482668308 | S158: 0.9119332701 | T158: 0.07563976202 | BB158: No hay instalación sanitaria, va al monte, campo | BC158: 50.16657 | BD158: 0.821956 | BE158: 0.742948 | BF158: 0 | BG158: 0 | BH158: 49.426233 | BI158: 0.821956 | BJ158: 0.742948 | BK158: 0 | BL158: 0 | BM158: 0.740337 | BN158: 0 | BO158: 0 | BP158: 0 | BQ158: 0 | BR158: 1.516253 | BS158: 49.474884 | BT158: 0.740337
B159: Otro | C159: 0.7357646388 | D159: 0.03439415428 | E159: 0 | F159: 0 | G159: 0 | H159: 0.4742229417 | I159: 0.03784040931 | J159: 0 | K159: 0 | L159: 0 | M159: 3.358902542 | N159: 0 | O159: 0 | P159: 0 | Q159: 0 | R159: 0.01697352131 | S159: 0.1711158734 | T159: 0.6686269828 | BB159: Otro | BC159: 15.827083 | BD159: 0.739701 | BE159: 0 | BF159: 0 | BG159: 0 | BH159: 9.282783 | BI159: 0.739701 | BJ159: 0 | BK159: 0 | BL159: 0 | BM159: 6.5443 | BN159: 0 | BO159: 0 | BP159: 0 | BQ159: 0 | BR159: 0.738978 | BS159: 9.283506 | BT159: 6.5443
B160: Missing | C160: 0.09785678812 | D160: 0 | E160: 0 | F160: 0.6317797614 | G160: 0.5417328166 | H160: 0.07707817655 | I160: 0 | J160: 0 | K160: 0.6915697924 | L160: 0.5959353028 | M160: 0 | N160: 0.2968182071 | O160: 0 | P160: 0 | Q160: 0 | R160: 0 | S160: 0.4919700846 | T160: 0.06091541948 | BB160: Missing | BC160: 2.105004 | BD160: 0 | BE160: 0 | BF160: 13.528674 | BG160: 11.65327 | BH160: 1.508784 | BI160: 0 | BJ160: 0 | BK160: 13.528674 | BL160: 11.65327 | BM160: 0 | BN160: 0.59622 | BO160: 0 | BP160: 0 | BQ160: 0 | BR160: 0 | BS160: 26.690728 | BT160: 0.59622
BB161: Total | BC161: 2151.106776 | BD161: 2150.659074 | BE161: 2163.516908 | BF161: 2141.359193 | BG161: 2151.110223 | BH161: 1957.472358 | BI161: 1954.791223 | BJ161: 1955.035863 | BK161: 1956.226855 | BL161: 1955.458914 | BM161: 194.834471 | BN161: 200.870427 | BO161: 188.912838 | BP161: 197.726285 | BQ161: 196.42294 | BR161: 4353.710621 | BS161: 5425.274592 | BT161: 978.766961
A208: =A1026 -> Uruguay
A209: =A1034 -> 2013
A210: Access to hygiene facilities
A211: by wealth quintile and sub-national region
A212: Notes:
A213: WHO/UNICEF JMP customised wealth index excludes water,
A214: sanitation and hygiene assets.
A215: Survey used for analysis: | B215: =A1025 -> MICS13
A220: Access to handwashing | C220: NATIONAL wealth index quintile | H220: URBAN wealth index quintile | M220: RURAL wealth index quintile | R220: SUB-REGIONS: | BA220: Raw numbers of respondents: | BB220: Access to handwashing | BC220: NATIONAL wealth index quintile | BH220: URBAN wealth index quintile | BM220: RURAL wealth index quintile | BR220: SUB-REGIONS:
A221: Weighted percentage (used in graphs) | C221: Poorest | D221: Poor | E221: Middle | F221: Rich | G221: Richest | H221: Poorest | I221: Poor | J221: Middle | K221: Rich | L221: Richest | M221: Poorest | N221: Poor | O221: Middle | P221: Rich | Q221: Richest | R221: Más de 5 mil habitantes | S221: Montevideo y Área Metropolitana | T221: Rurales y menores de 5 mil habitantes | BA221: Hygiene data, raw numbers (weighted) | BC221: Poorest | BD221: Poor | BE221: Middle | BF221: Rich | BG221: Richest | BH221: Poorest | BI221: Poor | BJ221: Middle | BK221: Rich | BL221: Richest | BM221: Poorest | BN221: Poor | BO221: Middle | BP221: Rich | BQ221: Richest | BR221: Más de 5 mil habitantes | BS221: Montevideo y Área Metropolitana | BT221: Rurales y menores de 5 mil habitantes
A222: Hygiene ladder | B222: Basic | C222: N/A | D222: N/A | E222: N/A | F222: N/A | G222: N/A | H222: N/A | I222: N/A | J222: N/A | K222: N/A | L222: N/A | M222: N/A | N222: N/A | O222: N/A | P222: N/A | Q222: N/A | R222: N/A | S222: N/A | T222: N/A | BA222: Hygiene ladder | BB222: Basic | BC222: N/A | BD222: N/A | BE222: N/A | BF222: N/A | BG222: N/A | BH222: N/A | BI222: N/A | BJ222: N/A | BK222: N/A | BL222: N/A | BM222: N/A | BN222: N/A | BO222: N/A | BP222: N/A | BQ222: N/A | BR222: N/A | BS222: N/A | BT222: N/A
B223: Limited | C223: N/A | D223: N/A | E223: N/A | F223: N/A | G223: N/A | H223: N/A | I223: N/A | J223: N/A | K223: N/A | L223: N/A | M223: N/A | N223: N/A | O223: N/A | P223: N/A | Q223: N/A | R223: N/A | S223: N/A | T223: N/A | BB223: Limited | BC223: N/A | BD223: N/A | BE223: N/A | BF223: N/A | BG223: N/A | BH223: N/A | BI223: N/A | BJ223: N/A | BK223: N/A | BL223: N/A | BM223: N/A | BN223: N/A | BO223: N/A | BP223: N/A | BQ223: N/A | BR223: N/A | BS223: N/A | BT223: N/A
B224: No facility | C224: N/A | D224: N/A | E224: N/A | F224: N/A | G224: N/A | H224: N/A | I224: N/A | J224: N/A | K224: N/A | L224: N/A | M224: N/A | N224: N/A | O224: N/A | P224: N/A | Q224: N/A | R224: N/A | S224: N/A | T224: N/A | BB224: No facility | BC224: N/A | BD224: N/A | BE224: N/A | BF224: N/A | BG224: N/A | BH224: N/A | BI224: N/A | BJ224: N/A | BK224: N/A | BL224: N/A | BM224: N/A | BN224: N/A | BO224: N/A | BP224: N/A | BQ224: N/A | BR224: N/A | BS224: N/A | BT224: N/A
BA225: Observed handwashing place | BB225: Fixed | BC225: N/A | BD225: N/A | BE225: N/A | BF225: N/A | BG225: N/A | BH225: N/A | BI225: N/A | BJ225: N/A | BK225: N/A | BL225: N/A | BM225: N/A | BN225: N/A | BO225: N/A | BP225: N/A | BQ225: N/A | BR225: N/A | BS225: N/A | BT225: N/A
BB226: Mobile | BC226: N/A | BD226: N/A | BE226: N/A | BF226: N/A | BG226: N/A | BH226: N/A | BI226: N/A | BJ226: N/A | BK226: N/A | BL226: N/A | BM226: N/A | BN226: N/A | BO226: N/A | BP226: N/A | BQ226: N/A | BR226: N/A | BS226: N/A | BT226: N/A
BA227: Water / Soap | BB227: Water and soap | BC227: N/A | BD227: N/A | BE227: N/A | BF227: N/A | BG227: N/A | BH227: N/A | BI227: N/A | BJ227: N/A | BK227: N/A | BL227: N/A | BM227: N/A | BN227: N/A | BO227: N/A | BP227: N/A | BQ227: N/A | BR227: N/A | BS227: N/A | BT227: N/A
BB228: Water only | BC228: N/A | BD228: N/A | BE228: N/A | BF228: N/A | BG228: N/A | BH228: N/A | BI228: N/A | BJ228: N/A | BK228: N/A | BL228: N/A | BM228: N/A | BN228: N/A | BO228: N/A | BP228: N/A | BQ228: N/A | BR228: N/A | BS228: N/A | BT228: N/A
BB229: Soap only | BC229: N/A | BD229: N/A | BE229: N/A | BF229: N/A | BG229: N/A | BH229: N/A | BI229: N/A | BJ229: N/A | BK229: N/A | BL229: N/A | BM229: N/A | BN229: N/A | BO229: N/A | BP229: N/A | BQ229: N/A | BR229: N/A | BS229: N/A | BT229: N/A
BB230: Neither | BC230: N/A | BD230: N/A | BE230: N/A | BF230: N/A | BG230: N/A | BH230: N/A | BI230: N/A | BJ230: N/A | BK230: N/A | BL230: N/A | BM230: N/A | BN230: N/A | BO230: N/A | BP230: N/A | BQ230: N/A | BR230: N/A | BS230: N/A | BT230: N/A
BA259: Raw numbers of respondents: | BB259: Menstrual health and hygiene | BC259: NATIONAL wealth index quintile | BH259: URBAN wealth index quintile | BM259: RURAL wealth index quintile | BR259: SUB-REGIONS:
BA260: MHH data, raw numbers (weighted) | BC260: Poorest | BD260: Poor | BE260: Middle | BF260: Rich | BG260: Richest | BH260: Poorest | BI260: Poor | BJ260: Middle | BK260: Rich | BL260: Richest | BM260: Poorest | BN260: Poor | BO260: Middle | BP260: Rich | BQ260: Richest | BR260: Más de 5 mil habitantes | BS260: Montevideo y Área Metropolitana | BT260: Rurales y menores de 5 mil habitantes
BA261: Private place to wash and change | BB261: Yes | BC261: N/A | BD261: N/A | BE261: N/A | BF261: N/A | BG261: N/A | BH261: N/A | BI261: N/A | BJ261: N/A | BK261: N/A | BL261: N/A | BM261: N/A | BN261: N/A | BO261: N/A | BP261: N/A | BQ261: N/A | BR261: N/A | BS261: N/A | BT261: N/A
BB262: No | BC262: N/A | BD262: N/A | BE262: N/A | BF262: N/A | BG262: N/A | BH262: N/A | BI262: N/A | BJ262: N/A | BK262: N/A | BL262: N/A | BM262: N/A | BN262: N/A | BO262: N/A | BP262: N/A | BQ262: N/A | BR262: N/A | BS262: N/A | BT262: N/A
BB263: DK/not sure/missing | BC263: N/A | BD263: N/A | BE263: N/A | BF263: N/A | BG263: N/A | BH263: N/A | BI263: N/A | BJ263: N/A | BK263: N/A | BL263: N/A | BM263: N/A | BN263: N/A | BO263: N/A | BP263: N/A | BQ263: N/A | BR263: N/A | BS263: N/A | BT263: N/A
BA264: Use of menstrual materials | BB264: Materials reusable | BC264: N/A | BD264: N/A | BE264: N/A | BF264: N/A | BG264: N/A | BH264: N/A | BI264: N/A | BJ264: N/A | BK264: N/A | BL264: N/A | BM264: N/A | BN264: N/A | BO264: N/A | BP264: N/A | BQ264: N/A | BR264: N/A | BS264: N/A | BT264: N/A
BB265: Materials not reusable | BC265: N/A | BD265: N/A | BE265: N/A | BF265: N/A | BG265: N/A | BH265: N/A | BI265: N/A | BJ265: N/A | BK265: N/A | BL265: N/A | BM265: N/A | BN265: N/A | BO265: N/A | BP265: N/A | BQ265: N/A | BR265: N/A | BS265: N/A | BT265: N/A
BB266: No materials used | BC266: N/A | BD266: N/A | BE266: N/A | BF266: N/A | BG266: N/A | BH266: N/A | BI266: N/A | BJ266: N/A | BK266: N/A | BL266: N/A | BM266: N/A | BN266: N/A | BO266: N/A | BP266: N/A | BQ266: N/A | BR266: N/A | BS266: N/A | BT266: N/A
BB267: DK/not sure/missing | BC267: N/A | BD267: N/A | BE267: N/A | BF267: N/A | BG267: N/A | BH267: N/A | BI267: N/A | BJ267: N/A | BK267: N/A | BL267: N/A | BM267: N/A | BN267: N/A | BO267: N/A | BP267: N/A | BQ267: N/A | BR267: N/A | BS267: N/A | BT267: N/A
BA268: Use of menstrual materials with private place to wash and change | BB268: Materials reusable | BC268: N/A | BD268: N/A | BE268: N/A | BF268: N/A | BG268: N/A | BH268: N/A | BI268: N/A | BJ268: N/A | BK268: N/A | BL268: N/A | BM268: N/A | BN268: N/A | BO268: N/A | BP268: N/A | BQ268: N/A | BR268: N/A | BS268: N/A | BT268: N/A
BB269: Materials not reusable | BC269: N/A | BD269: N/A | BE269: N/A | BF269: N/A | BG269: N/A | BH269: N/A | BI269: N/A | BJ269: N/A | BK269: N/A | BL269: N/A | BM269: N/A | BN269: N/A | BO269: N/A | BP269: N/A | BQ269: N/A | BR269: N/A | BS269: N/A | BT269: N/A
BB270: No materials used | BC270: N/A | BD270: N/A | BE270: N/A | BF270: N/A | BG270: N/A | BH270: N/A | BI270: N/A | BJ270: N/A | BK270: N/A | BL270: N/A | BM270: N/A | BN270: N/A | BO270: N/A | BP270: N/A | BQ270: N/A | BR270: N/A | BS270: N/A | BT270: N/A
BA271: Awareness of menstruation before menarche | BB271: Yes | BC271: N/A | BD271: N/A | BE271: N/A | BF271: N/A | BG271: N/A | BH271: N/A | BI271: N/A | BJ271: N/A | BK271: N/A | BL271: N/A | BM271: N/A | BN271: N/A | BO271: N/A | BP271: N/A | BQ271: N/A | BR271: N/A | BS271: N/A | BT271: N/A
BB272: No | BC272: N/A | BD272: N/A | BE272: N/A | BF272: N/A | BG272: N/A | BH272: N/A | BI272: N/A | BJ272: N/A | BK272: N/A | BL272: N/A | BM272: N/A | BN272: N/A | BO272: N/A | BP272: N/A | BQ272: N/A | BR272: N/A | BS272: N/A | BT272: N/A
BB273: DK/not sure/missing | BC273: N/A | BD273: N/A | BE273: N/A | BF273: N/A | BG273: N/A | BH273: N/A | BI273: N/A | BJ273: N/A | BK273: N/A | BL273: N/A | BM273: N/A | BN273: N/A | BO273: N/A | BP273: N/A | BQ273: N/A | BR273: N/A | BS273: N/A | BT273: N/A
BA274: Participation in (all) activities during menstruation | BB274: Yes | BC274: N/A | BD274: N/A | BE274: N/A | BF274: N/A | BG274: N/A | BH274: N/A | BI274: N/A | BJ274: N/A | BK274: N/A | BL274: N/A | BM274: N/A | BN274: N/A | BO274: N/A | BP274: N/A | BQ274: N/A | BR274: N/A | BS274: N/A | BT274: N/A
BB275: No | BC275: N/A | BD275: N/A | BE275: N/A | BF275: N/A | BG275: N/A | BH275: N/A | BI275: N/A | BJ275: N/A | BK275: N/A | BL275: N/A | BM275: N/A | BN275: N/A | BO275: N/A | BP275: N/A | BQ275: N/A | BR275: N/A | BS275: N/A | BT275: N/A
BB276: DK/not sure/missing/no such activity | BC276: N/A | BD276: N/A | BE276: N/A | BF276: N/A | BG276: N/A | BH276: N/A | BI276: N/A | BJ276: N/A | BK276: N/A | BL276: N/A | BM276: N/A | BN276: N/A | BO276: N/A | BP276: N/A | BQ276: N/A | BR276: N/A | BS276: N/A | BT276: N/A
BA277: Participation in specific activities during menstruation | BB277: Did not go to school (amongst those usually attending school) | BC277: N/A | BD277: N/A | BE277: N/A | BF277: N/A | BG277: N/A | BH277: N/A | BI277: N/A | BJ277: N/A | BK277: N/A | BL277: N/A | BM277: N/A | BN277: N/A | BO277: N/A | BP277: N/A | BQ277: N/A | BR277: N/A | BS277: N/A | BT277: N/A
BB278: Did not go to work (amongst those who usually work) | BC278: N/A | BD278: N/A | BE278: N/A | BF278: N/A | BG278: N/A | BH278: N/A | BI278: N/A | BJ278: N/A | BK278: N/A | BL278: N/A | BM278: N/A | BN278: N/A | BO278: N/A | BP278: N/A | BQ278: N/A | BR278: N/A | BS278: N/A | BT278: N/A
BB279: Did not participate in social activities | BC279: N/A | BD279: N/A | BE279: N/A | BF279: N/A | BG279: N/A | BH279: N/A | BI279: N/A | BJ279: N/A | BK279: N/A | BL279: N/A | BM279: N/A | BN279: N/A | BO279: N/A | BP279: N/A | BQ279: N/A | BR279: N/A | BS279: N/A | BT279: N/A
BB280: Did not cook food | BC280: N/A | BD280: N/A | BE280: N/A | BF280: N/A | BG280: N/A | BH280: N/A | BI280: N/A | BJ280: N/A | BK280: N/A | BL280: N/A | BM280: N/A | BN280: N/A | BO280: N/A | BP280: N/A | BQ280: N/A | BR280: N/A | BS280: N/A | BT280: N/A
BB281: Did not eat with others | BC281: N/A | BD281: N/A | BE281: N/A | BF281: N/A | BG281: N/A | BH281: N/A | BI281: N/A | BJ281: N/A | BK281: N/A | BL281: N/A | BM281: N/A | BN281: N/A | BO281: N/A | BP281: N/A | BQ281: N/A | BR281: N/A | BS281: N/A | BT281: N/A
BB282: Did not bathe in regular place | BC282: N/A | BD282: N/A | BE282: N/A | BF282: N/A | BG282: N/A | BH282: N/A | BI282: N/A | BJ282: N/A | BK282: N/A | BL282: N/A | BM282: N/A | BN282: N/A | BO282: N/A | BP282: N/A | BQ282: N/A | BR282: N/A | BS282: N/A | BT282: N/A
BB283: Did not participate in other activities | BC283: N/A | BD283: N/A | BE283: N/A | BF283: N/A | BG283: N/A | BH283: N/A | BI283: N/A | BJ283: N/A | BK283: N/A | BL283: N/A | BM283: N/A | BN283: N/A | BO283: N/A | BP283: N/A | BQ283: N/A | BR283: N/A | BS283: N/A | BT283: N/A
BB284: DK/not sure/missing/no such activity | BC284: N/A | BD284: N/A | BE284: N/A | BF284: N/A | BG284: N/A | BH284: N/A | BI284: N/A | BJ284: N/A | BK284: N/A | BL284: N/A | BM284: N/A | BN284: N/A | BO284: N/A | BP284: N/A | BQ284: N/A | BR284: N/A | BS284: N/A | BT284: N/A
BA339: Raw numbers of respondents: | BB339: Basic water, sanitation and hygiene | BC339: NATIONAL wealth index quintile | BH339: URBAN wealth index quintile | BM339: RURAL wealth index quintile | BR339: SUB-REGIONS:
BA340: WatSan data, raw numbers (weighted) | BC340: Poorest | BD340: Poor | BE340: Middle | BF340: Rich | BG340: Richest | BH340: Poorest | BI340: Poor | BJ340: Middle | BK340: Rich | BL340: Richest | BM340: Poorest | BN340: Poor | BO340: Middle | BP340: Rich | BQ340: Richest | BR340: Más de 5 mil habitantes | BS340: Montevideo y Área Metropolitana | BT340: Rurales y menores de 5 mil habitantes
BA341: Use of Basic Water Sanitation and Hygiene | BB341: Yes | BC341: N/A | BD341: N/A | BE341: N/A | BF341: N/A | BG341: N/A | BH341: N/A | BI341: N/A | BJ341: N/A | BK341: N/A | BL341: N/A | BM341: N/A | BN341: N/A | BO341: N/A | BP341: N/A | BQ341: N/A | BR341: N/A | BS341: N/A | BT341: N/A
BB342: No | BC342: N/A | BD342: N/A | BE342: N/A | BF342: N/A | BG342: N/A | BH342: N/A | BI342: N/A | BJ342: N/A | BK342: N/A | BL342: N/A | BM342: N/A | BN342: N/A | BO342: N/A | BP342: N/A | BQ342: N/A | BR342: N/A | BS342: N/A | BT342: N/A
BA343: Use of Basic Water and Sanitation | BB343: Yes | BC343: N/A | BD343: N/A | BE343: N/A | BF343: N/A | BG343: N/A | BH343: N/A | BI343: N/A | BJ343: N/A | BK343: N/A | BL343: N/A | BM343: N/A | BN343: N/A | BO343: N/A | BP343: N/A | BQ343: N/A | BR343: N/A | BS343: N/A | BT343: N/A
BB344: No | BC344: N/A | BD344: N/A | BE344: N/A | BF344: N/A | BG344: N/A | BH344: N/A | BI344: N/A | BJ344: N/A | BK344: N/A | BL344: N/A | BM344: N/A | BN344: N/A | BO344: N/A | BP344: N/A | BQ344: N/A | BR344: N/A | BS344: N/A | BT344: N/A
BA345: Use of Basic Water and Hygiene | BB345: Yes | BC345: N/A | BD345: N/A | BE345: N/A | BF345: N/A | BG345: N/A | BH345: N/A | BI345: N/A | BJ345: N/A | BK345: N/A | BL345: N/A | BM345: N/A | BN345: N/A | BO345: N/A | BP345: N/A | BQ345: N/A | BR345: N/A | BS345: N/A | BT345: N/A
BB346: No | BC346: N/A | BD346: N/A | BE346: N/A | BF346: N/A | BG346: N/A | BH346: N/A | BI346: N/A | BJ346: N/A | BK346: N/A | BL346: N/A | BM346: N/A | BN346: N/A | BO346: N/A | BP346: N/A | BQ346: N/A | BR346: N/A | BS346: N/A | BT346: N/A
BA347: Use of Basic Sanitation and Hygiene | BB347: Yes | BC347: N/A | BD347: N/A | BE347: N/A | BF347: N/A | BG347: N/A | BH347: N/A | BI347: N/A | BJ347: N/A | BK347: N/A | BL347: N/A | BM347: N/A | BN347: N/A | BO347: N/A | BP347: N/A | BQ347: N/A | BR347: N/A | BS347: N/A | BT347: N/A
BB348: No | BC348: N/A | BD348: N/A | BE348: N/A | BF348: N/A | BG348: N/A | BH348: N/A | BI348: N/A | BJ348: N/A | BK348: N/A | BL348: N/A | BM348: N/A | BN348: N/A | BO348: N/A | BP348: N/A | BQ348: N/A | BR348: N/A | BS348: N/A | BT348: N/A
BA349: Use of Basic Water | BB349: Yes | BC349: N/A | BD349: N/A | BE349: N/A | BF349: N/A | BG349: N/A | BH349: N/A | BI349: N/A | BJ349: N/A | BK349: N/A | BL349: N/A | BM349: N/A | BN349: N/A | BO349: N/A | BP349: N/A | BQ349: N/A | BR349: N/A | BS349: N/A | BT349: N/A
BB350: No | BC350: N/A | BD350: N/A | BE350: N/A | BF350: N/A | BG350: N/A | BH350: N/A | BI350: N/A | BJ350: N/A | BK350: N/A | BL350: N/A | BM350: N/A | BN350: N/A | BO350: N/A | BP350: N/A | BQ350: N/A | BR350: N/A | BS350: N/A | BT350: N/A
BA351: Use of Basic Sanitation | BB351: Yes | BC351: N/A | BD351: N/A | BE351: N/A | BF351: N/A | BG351: N/A | BH351: N/A | BI351: N/A | BJ351: N/A | BK351: N/A | BL351: N/A | BM351: N/A | BN351: N/A | BO351: N/A | BP351: N/A | BQ351: N/A | BR351: N/A | BS351: N/A | BT351: N/A
BB352: No | BC352: N/A | BD352: N/A | BE352: N/A | BF352: N/A | BG352: N/A | BH352: N/A | BI352: N/A | BJ352: N/A | BK352: N/A | BL352: N/A | BM352: N/A | BN352: N/A | BO352: N/A | BP352: N/A | BQ352: N/A | BR352: N/A | BS352: N/A | BT352: N/A
BA353: Access to Basic Hygiene | BB353: Yes | BC353: N/A | BD353: N/A | BE353: N/A | BF353: N/A | BG353: N/A | BH353: N/A | BI353: N/A | BJ353: N/A | BK353: N/A | BL353: N/A | BM353: N/A | BN353: N/A | BO353: N/A | BP353: N/A | BQ353: N/A | BR353: N/A | BS353: N/A | BT353: N/A
BB354: No | BC354: N/A | BD354: N/A | BE354: N/A | BF354: N/A | BG354: N/A | BH354: N/A | BI354: N/A | BJ354: N/A | BK354: N/A | BL354: N/A | BM354: N/A | BN354: N/A | BO354: N/A | BP354: N/A | BQ354: N/A | BR354: N/A | BS354: N/A | BT354: N/A
C399: INITIAL (national) Wealth Index | H399: URBAN Wealth Index | M399: RURAL Wealth Index
C400: Component Matrix | H400: Component Matrix | M400: Component Matrix
E401: Component | J401: Component | O401: Component
B402: Note: The INITIAL (national) Wealth Index is based on the first component of the Principal Component Analysis (PCA) which has been obtained at national level. The final national-level (NATIONAL) Wealth Index is based on the URBAN and RURAL specific wealth indexes. Regression procedures are used to establish the relationships between the two sets of scores (urban and rural) and the initial (national) wealth factors. This allows best use of the available information for each area and a better precision of the FINAL (NATIONAL) Wealth Index. For dependency reasons, all WASH variables (contained in the generic MICS and DHS scripts) have been excluded from the sets of asset variables used in the PCAs. The PCA can extracts as many components as there are asset variables in the input. Only the first of the components is used to represent the Wealth Index. The scores represent the weights of the asset variables on the Wealth Index (correlations between the variables and the component). The communalities are the proportion of each variable's variance that can be explained by the component. Proportion of explained variance is the part of the model's total variance that is explained by the component. For more information on the procedure used: The DHS Wealth Index, DHS Comparative Reports No. 6, Shea Oscar Rutstein, Kiersten Johnson, ORC Macro International Inc., 2004. The DHS Wealth Index: Approaches for Rural and Urban Areas, Shea O. Rutstein, ORC Macro International Inc., 2008. MICS Methodological Paper No. 4, Review of options for reporting water, sanitation and hygiene coverage by wealth quintile, UNICEF, 2016. | E402: 1 | J402: 1 | O402: 1
C403: Conexion a internet | E403: 0.6822656931 | H403: Conexion a internet | J403: 0.6835784602 | M403: Otro tipo de computadora | O403: 0.6362620436
C404: Otro tipo de computadora | E404: 0.665129597 | H404: Otro tipo de computadora | J404: 0.6607804276 | M404: Horno Microondas | O404: 0.6258039624
C405: Horno Microondas | E405: 0.6454411222 | H405: Horno Microondas | J405: 0.6378344181 | M405: Calefon o termofon | O405: 0.6196437221
C406: Telephono fijo | E406: 0.6315648267 | H406: Telephono fijo | J406: 0.6377689697 | M406: Conexion a internet | O406: 0.606070611
C407: Calefon o termofon | E407: 0.5888980953 | H407: Calefon o termofon | J407: 0.5819239033 | M407: Lavarropa | O407: 0.5998822429
C408: Cement floor | E408: -0.5701627248 | H408: Automovil, Camioneta | J408: 0.5643772023 | M408: Cement floor | O408: -0.5982322357
C409: Equipo de aire acondicionado | E409: 0.5474887963 | H409: Cement floor | J409: -0.5581507892 | M409: Ceramic tiles floor | O409: 0.5700894133
C410: Metal/tin roof | E410: -0.537406697 | H410: Metal/tin roof | J410: -0.5543775249 | M410: Automovil, Camioneta | O410: 0.498092461
C411: Automovil, Camioneta | E411: 0.5337732114 | H411: Equipo de aire acondicionado | J411: 0.5455452072 | M411: Reproductor de DVD | O411: 0.4865132337
C412: Lavarropa | E412: 0.5322982731 | H412: Cement roof | J412: 0.5115789044 | M412: Equipo de aire acondicionado | O412: 0.4827300057
C413: Cement roof | E413: 0.5221131442 | H413: Lavarropa | J413: 0.5090297148 | M413: Telephono fijo | O413: 0.4758012671
C414: Reproductor de DVD | E414: 0.4675323255 | H414: Household owns bank account | J414: 0.476035751 | M414: Refrigetaror | O414: 0.4253124455
C415: Household owns bank account | E415: 0.4576729845 | H415: Reproductor de DVD | J415: 0.4550066988 | M415: Conexion a TV por abonados | O415: 0.3866657252
C416: Conexion a TV por abonados | E416: 0.4253234971 | H416: Conexion a TV por abonados | J416: 0.4366902253 | M416: Household owns bank account | O416: 0.3436378274
C417: Reloj | E417: 0.3862718636 | H417: Reloj | J417: 0.4075703691 | M417: Wood fuel | O417: -0.3422761963
... 191 more rows

Sheet data_summary
A1: iso3 | B1: year | C1: data_source | D1: row | E1: var1 | F1: var2 | G1: varname | H1: total_q1 | I1: total_q2 | J1: total_q3 | K1: total_q4 | L1: total_q5 | M1: urban_q1 | N1: urban_q2 | O1: urban_q3 | P1: urban_q4 | Q1: urban_q5 | R1: rural_q1 | S1: rural_q2 | T1: rural_q3 | U1: rural_q4 | V1: rural_q5 | W1: region_1_name | X1: region_2_name | Y1: region_3_name | Z1: region_1 | AA1: region_2 | AB1: region_3 | AC1: n_total_q1 | AD1: n_total_q2 | AE1: n_total_q3 | AF1: n_total_q4 | AG1: n_total_q5 | AH1: n_urban_q1 | AI1: n_urban_q2 | AJ1: n_urban_q3 | AK1: n_urban_q4 | AL1: n_urban_q5 | AM1: n_rural_q1 | AN1: n_rural_q2 | AO1: n_rural_q3 | AP1: n_rural_q4 | AQ1: n_rural_q5 | AR1: n_region_1 | AS1: n_region_2 | AT1: n_region_3
A2: URY | B2: 2003 | C2: URY_2003_WHS | D2: 16 | E2: Water | F2: Improved | G2: w_imp | H2: 99.22803 | I2: 99.56572293 | J2: 99.59771327 | K2: 99.83989213 | L2: 99.35944367 | M2: 98.97124437 | N2: 99.37475116 | O2: 99.79279208 | P2: 99.5855306 | Q2: 99.37743588 | R2: 99.24617049 | S2: 100 | T2: 100 | U2: 100 | V2: 100
A3: URY | B3: 2003 | C3: URY_2003_WHS | D3: 17 | E3: Water | F3: Not Improved | H3: 0.7719699986 | I3: 0.434277066 | J3: 0.4022867293 | K3: 0.1601078666 | L3: 0.6405563259 | M3: 1.028755627 | N3: 0.6252488351 | O3: 0.2072079203 | P3: 0.414469398 | Q3: 0.622564122 | R3: 0.7538295115 | S3: 0 | T3: 0 | U3: 0 | V3: 0
A4: URY | B4: 2003 | C4: URY_2003_WHS | D4: 18 | E4: Water ladder | F4: Basic | G4: w_bas | H4: 96.77740472 | I4: 99.56572293 | J4: 99.59771327 | K4: 99.83989213 | L4: 99.35944367 | M4: 98.97124437 | N4: 99.37475116 | O4: 99.79279208 | P4: 99.5855306 | Q4: 99.37743588 | R4: 94.50752617 | S4: 100 | T4: 100 | U4: 100 | V4: 100
A5: URY | B5: 2003 | C5: URY_2003_WHS | D5: 19 | E5: Water ladder | F5: Limited | G5: w_lim | H5: 2.45062528 | I5: 0 | J5: 0 | K5: 0 | L5: 0 | M5: 0 | N5: 0 | O5: 0 | P5: 0 | Q5: 0 | R5: 4.738644315 | S5: 0 | T5: 0 | U5: 0 | V5: 0
A6: URY | B6: 2003 | C6: URY_2003_WHS | D6: 20 | E6: Water ladder | F6: Unimproved | G6: w_unimp | H6: 0.7719699986 | I6: 0.434277066 | J6: 0.4022867293 | K6: 0.1601078666 | L6: 0.6405563259 | M6: 1.028755627 | N6: 0.6252488351 | O6: 0.2072079203 | P6: 0.414469398 | Q6: 0.622564122 | R6: 0.7538295115 | S6: 0 | T6: 0 | U6: 0 | V6: 0
A7: URY | B7: 2003 | C7: URY_2003_WHS | D7: 21 | E7: Water ladder | F7: Surface water | G7: w_sur | H7: 0 | I7: 0 | J7: 0 | K7: 0 | L7: 0 | M7: 0 | N7: 0 | O7: 0 | P7: 0 | Q7: 0 | R7: 0 | S7: 0 | T7: 0 | U7: 0 | V7: 0
A8: URY | B8: 2003 | C8: URY_2003_WHS | D8: 22 | E8: Improved water point at more than 30 minutes | F8: Yes | H8: 2.46969055 | I8: 0 | J8: 0 | K8: 0 | L8: 0 | M8: 0 | N8: 0 | O8: 0 | P8: 0 | Q8: 0 | R8: 4.774636937 | S8: 0 | T8: 0 | U8: 0 | V8: 0
A9: URY | B9: 2003 | C9: URY_2003_WHS | D9: 23 | E9: Improved water point at more than 30 minutes | F9: No | H9: 97.53030945 | I9: 100 | J9: 100 | K9: 100 | L9: 100 | M9: 100 | N9: 100 | O9: 100 | P9: 100 | Q9: 100 | R9: 95.22536306 | S9: 100 | T9: 100 | U9: 100 | V9: 100
A10: URY | B10: 2003 | C10: URY_2003_WHS | D10: 29 | E10: Piped water | F10: Yes | G10: w_pip | H10: 89.51977742 | I10: 94.25053956 | J10: 97.33288285 | K10: 98.43895016 | L10: 98.81651206 | M10: 96.79270314 | N10: 98.5358776 | O10: 99.12749119 | P10: 99.40269663 | Q10: 99.23110101 | R10: 74.41136928 | S10: 86.70967182 | T10: 81.50410742 | U10: 92.17303095 | V10: 93.54294508
A11: URY | B11: 2003 | C11: URY_2003_WHS | D11: 30 | E11: Piped water | F11: No | H11: 10.48022258 | I11: 5.749460438 | J11: 2.667117153 | K11: 1.561049836 | L11: 1.183487942 | M11: 3.207296856 | N11: 1.464122401 | O11: 0.8725088119 | P11: 0.5973033694 | Q11: 0.7688989899 | R11: 25.58863072 | S11: 13.29032818 | T11: 18.49589258 | U11: 7.826969055 | V11: 6.457054917
A12: URY | B12: 2003 | C12: URY_2003_WHS | D12: 31 | E12: Piped water on premises | F12: Yes | G12: w_pop | H12: 84.83938809 | I12: 92.20080705 | J12: 96.39253813 | K12: 97.88377582 | L12: 98.67163623 | M12: 91.95681742 | N12: 96.63103572 | O12: 98.2017894 | P12: 98.81003023 | Q12: 99.04335901 | R12: 68.89200152 | S12: 86.06758015 | T12: 80.29950648 | U12: 91.40211424 | V12: 93.54294508
A13: URY | B13: 2003 | C13: URY_2003_WHS | D13: 32 | E13: Piped water on premises | F13: No | H13: 15.16061191 | I13: 7.799192948 | J13: 3.607461872 | K13: 2.116224177 | L13: 1.328363772 | M13: 8.043182584 | N13: 3.368964283 | O13: 1.798210603 | P13: 1.189969773 | Q13: 0.9566409886 | R13: 31.10799848 | S13: 13.93241985 | T13: 19.70049352 | U13: 8.597885756 | V13: 6.457054917
A14: URY | B14: 2003 | C14: URY_2003_WHS | D14: 41 | E14: Water point at more than 30 minutes | F14: Yes | H14: 2.37574024 | I14: 0 | J14: 0 | K14: 0 | L14: 0 | M14: 0 | N14: 0 | O14: 0 | P14: 0 | Q14: 0 | R14: 4.656330097 | S14: 0 | T14: 0 | U14: 0 | V14: 0
A15: URY | B15: 2003 | C15: URY_2003_WHS | D15: 42 | E15: Water point at more than 30 minutes | F15: No | G15: w_30min | H15: 97.62425976 | I15: 100 | J15: 100 | K15: 100 | L15: 100 | M15: 100 | N15: 100 | O15: 100 | P15: 100 | Q15: 100 | R15: 95.3436699 | S15: 100 | T15: 100 | U15: 100 | V15: 100
A16: URY | B16: 2003 | C16: URY_2003_WHS | D16: 58 | E16: main source of drinking water | F16: Piped water through house connection or yard | H16: 85.3523623 | I16: 92.60296047 | J16: 96.78187878 | K16: 98.04074677 | L16: 99.30775836 | M16: 92.91266165 | N16: 97.23902157 | O16: 98.40569379 | P16: 99.22127204 | Q16: 99.66383026 | R16: 68.89200152 | S16: 86.06758015 | T16: 80.29950648 | U16: 91.40211424 | V16: 93.54294508
A17: URY | B17: 2003 | C17: URY_2003_WHS | D17: 59 | E17: main source of drinking water | F17: Public standpipe | H17: 4.708688912 | I17: 2.058672854 | J17: 0.9441428801 | K17: 0.5560646451 | L17: 0.1458098237 | M17: 4.886152296 | N17: 1.91682682 | O17: 0.927623901 | P17: 0.5951330475 | Q17: 0.1889181352 | R17: 5.519367754 | S17: 0.6420916708 | T17: 1.204600933 | U17: 0.7709167011 | V17: 0
A18: URY | B18: 2003 | C18: URY_2003_WHS | D18: 60 | E18: main source of drinking water | F18: Protected tube well or bore hole | H18: 4.650171253 | I18: 3.88852272 | J18: 1.323493232 | K18: 0.4166061953 | L18: 0.3901588325 | M18: 1.161915522 | N18: 0.1795145971 | O18: 0.1878476563 | P18: 0.1835949162 | Q18: 0.1472516036 | R18: 9.884078043 | S18: 8.463749191 | T18: 14.4589422 | U18: 5.187376159 | V18: 2.396017025
A19: URY | B19: 2003 | C19: URY_2003_WHS | D19: 61 | E19: main source of drinking water | F19: Protected dug well or protected spring | H19: 3.848165297 | I19: 1.334553097 | J19: 0.9504851045 | K19: 0.8875439603 | L19: 0.1562729872 | M19: 0.649969876 | N19: 0.6646370165 | O19: 0.3506009013 | P19: 0 | Q19: 0 | R19: 12.11979449 | S19: 3.426775306 | T19: 3.531924451 | U19: 2.639592895 | V19: 4.061037893
A20: URY | B20: 2003 | C20: URY_2003_WHS | D20: 62 | E20: main source of drinking water | F20: Unprotected dug well or spring | H20: 0.1719960765 | I20: 0 | J20: 0 | K20: 0 | L20: 0 | M20: 0 | N20: 0 | O20: 0 | P20: 0 | Q20: 0 | R20: 0.7538295115 | S20: 0 | T20: 0 | U20: 0 | V20: 0
A21: URY | B21: 2003 | C21: URY_2003_WHS | D21: 63 | E21: main source of drinking water | F21: Rainwater (into tank or cistern ) | H21: 1.130034318 | I21: 0.1152908571 | J21: 0 | K21: 0 | L21: 0 | M21: 0.209314915 | N21: 0 | O21: 0 | P21: 0 | Q21: 0 | R21: 2.830928677 | S21: 1.39980368 | T21: 0.5050259321 | U21: 0 | V21: 0
A22: URY | B22: 2003 | C22: URY_2003_WHS | D22: 64 | E22: main source of drinking water | F22: Tanker-truck, vendor | H22: 0.1385818402 | I22: 0 | J22: 0 | K22: 0.09903842864 | L22: 0 | M22: 0.1799857416 | N22: 0 | O22: 0.1282337526 | P22: 0 | Q22: 0 | R22: 0 | S22: 0 | T22: 0 | U22: 0 | V22: 0
A23: URY | B23: 2003 | C23: URY_2003_WHS | D23: 122 | E23: Sanitation | F23: Improved | G23: s_imp | H23: 99.84499631 | I23: 99.88520982 | J23: 100 | K23: 99.83989213 | L23: 99.83986092 | M23: 100 | N23: 100 | O23: 100 | P23: 99.7927653 | Q23: 99.79247863 | R23: 99.31653758 | S23: 100 | T23: 99.49497407 | U23: 100 | V23: 100 | AC23: 222169.9628 | AD23: 223097.9921 | AE23: 222131.9663 | AF23: 222280.2359 | AG23: 222236.8388 | AH23: 172068.0394 | AI23: 171819.1317 | AJ23: 172029.5545 | AK23: 171650.8662 | AL23: 171413.2511 | AM23: 50119.6459 | AN23: 51029.13712 | AO23: 50511.08051 | AP23: 50229.4559 | AQ23: 51046.83347
A24: URY | B24: 2003 | C24: URY_2003_WHS | D24: 123 | E24: Sanitation | F24: Not Improved | H24: 0.1550036865 | I24: 0.1147901753 | J24: 0 | K24: 0.1601078666 | L24: 0.1601390815 | M24: 0 | N24: 0 | O24: 0 | P24: 0.207234699 | Q24: 0.207521374 | R24: 0.6834624212 | S24: 0 | T24: 0.5050259321 | U24: 0 | V24: 0 | AC24: 344.90625 | AD24: 256.3888855 | AE24: 0 | AF24: 356.4588623 | AG24: 356.4588623 | AH24: 0 | AI24: 0 | AJ24: 0 | AK24: 356.4588623 | AL24: 356.4588623 | AM24: 344.90625 | AN24: 0 | AO24: 256.3888855 | AP24: 0 | AQ24: 0
A25: URY | B25: 2003 | C25: URY_2003_WHS | D25: 124 | E25: Sanitation ladder | F25: Basic | G25: s_bas | H25: 97.79992104 | I25: 99.07673492 | J25: 99.85400167 | K25: 99.51916206 | L25: 99.59777331 | M25: 99.09242679 | N25: 99.45321665 | O25: 99.60451418 | P25: 99.39991824 | Q25: 99.664317 | R25: 93.68515676 | S25: 98.64538176 | T25: 98.85283235 | U25: 100 | V25: 100 | AC25: 215413.9826 | AD25: 220097.8553 | AE25: 220559.4161 | AF25: 221210.8593 | AG25: 221342.3735 | AH25: 168134.2661 | AI25: 169066.5044 | AJ25: 170994.1529 | AK25: 170620.0848 | AL25: 171193.1083 | AM25: 46818.76712 | AN25: 50337.88712 | AO25: 50183.42667 | AP25: 50229.4559 | AQ25: 51046.83347
A26: URY | B26: 2003 | C26: URY_2003_WHS | D26: 125 | E26: Sanitation ladder | F26: Limited | G26: s_lim | H26: 2.045075277 | I26: 0.8084748997 | J26: 0.1459983306 | K26: 0.3207300709 | L26: 0.242087611 | M26: 0.9075732106 | N26: 0.5467833506 | O26: 0.3954858193 | P26: 0.3928470635 | Q26: 0.1281616257 | R26: 5.631380822 | S26: 1.354618242 | T26: 0.6421417222 | U26: 0 | V26: 0 | AC26: 4504.480225 | AD26: 1798.110077 | AE26: 322.4838867 | AF26: 712.9177246 | AG26: 538.0064697 | AH26: 1539.917435 | AI26: 929.509903 | AJ26: 678.942749 | AK26: 674.3224792 | AL26: 220.1428528 | AM26: 2814.259125 | AN26: 691.25 | AO26: 327.6538391 | AP26: 0 | AQ26: 0
A27: URY | B27: 2003 | C27: URY_2003_WHS | D27: 126 | E27: Sanitation ladder | F27: Unimproved | G27: s_unimp | H27: 0.1550036865 | I27: 0.1147901753 | J27: -2.01505479e-14 | K27: 0.1601078666 | L27: 0.1601390815 | M27: -7.105427358e-15 | N27: 8.215650382e-15 | O27: 3.219646771e-15 | P27: 0.207234699 | Q27: 0.207521374 | R27: 0.6834624212 | S27: -8.881784197e-16 | T27: 0.5050259321 | U27: 0 | V27: 0 | AC27: 344.90625 | AD27: 256.3888855 | AE27: 0 | AF27: 356.4588623 | AG27: 356.4588623 | AH27: 0 | AI27: 0 | AJ27: 0 | AK27: 356.4588623 | AL27: 356.4588623 | AM27: 344.90625 | AN27: 0 | AO27: 256.3888855 | AP27: 0 | AQ27: 0
A28: URY | B28: 2003 | C28: URY_2003_WHS | D28: 127 | E28: Sanitation ladder | F28: Open defecation | G28: s_od | H28: 0 | I28: 0 | J28: 0 | K28: 0 | L28: 0 | M28: 0 | N28: 0 | O28: 0 | P28: 0 | Q28: 0 | R28: 0 | S28: 0 | T28: 0 | U28: 0 | V28: 0 | AC28: 100636.8855 | AD28: 135625.9589 | AE28: 174455.9052 | AF28: 189870.6586 | AG28: 200381.5083 | AH28: 103120.5467 | AI28: 132995.5942 | AJ28: 144411.6387 | AK28: 152654.1307 | AL28: 161005.8684 | AM28: 12064.1434 | AN28: 18193.69107 | AO28: 16523.34796 | AP28: 30585.30661 | AQ28: 29416.6488
A29: URY | B29: 2003 | C29: URY_2003_WHS | D29: 128 | E29: Shared among Improved Sanitation | F29: Yes | G29: s_shared | H29: 2.048250141 | I29: 0.809404016 | J29: 0.1459983306 | K29: 0.3212444084 | L29: 0.2424759097 | M29: 0.9075732106 | N29: 0.5467833506 | O29: 0.3954858193 | P29: 0.3936628696 | Q29: 0.1284281415 | R29: 5.670134057 | S29: 1.354618242 | T29: 0.6454011654 | U29: 0 | V29: 0
A30: URY | B30: 2003 | C30: URY_2003_WHS | D30: 129 | E30: Shared among Improved Sanitation | F30: No | H30: 97.95174986 | I30: 99.19059598 | J30: 99.85400167 | K30: 99.67875559 | L30: 99.75752409 | M30: 99.09242679 | N30: 99.45321665 | O30: 99.60451418 | P30: 99.60633713 | Q30: 99.87157186 | R30: 94.32986594 | S30: 98.64538176 | T30: 99.35459883 | U30: 100 | V30: 100
A31: URY | B31: 2003 | C31: URY_2003_WHS | D31: 135 | E31: Sanitation type | F31: Sewer connection | G31: s_sew | H31: 45.22703849 | I31: 60.72231866 | J31: 78.5370553 | K31: 85.28273329 | L31: 90.0213575 | M31: 59.93009919 | N31: 77.40441527 | O31: 83.94583074 | P31: 88.748622 | Q31: 93.73356243 | R31: 23.90617352 | S31: 35.65353463 | T31: 32.54711759 | U31: 60.89117642 | V31: 57.62678467
A32: URY | B32: 2003 | C32: URY_2003_WHS | D32: 136 | E32: Sanitation type | F32: Septic tank connection | G32: s_sep | H32: 49.97810055 | I32: 38.31639078 | J32: 20.67616864 | K32: 14.55715884 | L32: 9.818503423 | M32: 38.0239412 | N32: 21.60179065 | O32: 16.05416926 | P32: 11.04414331 | Q32: 6.058916197 | R32: 71.02982307 | S32: 54.58628344 | T32: 65.17505778 | U32: 37.82747155 | V32: 42.37321533
A33: URY | B33: 2003 | C33: URY_2003_WHS | D33: 137 | E33: Sanitation type | F33: Improved latrines | G33: s_lat | H33: 4.639857277 | I33: 0.8465003779 | J33: 0.7867760552 | K33: 0 | L33: 0 | M33: 2.045959614 | N33: 0.9937940754 | O33: 0 | P33: 0 | Q33: 0 | R33: 4.380540989 | S33: 9.760181933 | T33: 1.772798696 | U33: 1.281352024 | V33: 0
A34: URY | B34: 2003 | C34: URY_2003_WHS | D34: 138 | E34: Sanitation type | F34: Unimproved facilities | H34: 0.1550036865 | I34: 0.1147901753 | J34: 0 | K34: 0.1601078666 | L34: 0.1601390815 | M34: 0 | N34: 0 | O34: 0 | P34: 0.207234699 | Q34: 0.207521374 | R34: 0.6834624212 | S34: 0 | T34: 0.5050259321 | U34: 0 | V34: 0
A35: URY | B35: 2003 | C35: URY_2003_WHS | D35: 139 | E35: Sanitation type | F35: Open defecation | H35: 0 | I35: 0 | J35: 0 | K35: 0 | L35: 0 | M35: 0 | N35: 0 | O35: 0 | P35: 0 | Q35: 0 | R35: 0 | S35: 0 | T35: 0 | U35: 0 | V35: 0
A36: URY | B36: 2003 | C36: URY_2003_WHS | D36: 148 | E36: Shared among improved sanitation facilities | F36: Yes | H36: 2.024350212 | I36: 0.8050480449 | J36: 0.1451767128 | K36: 0.3202157333 | L36: 0.2416993123 | M36: 0.8949468127 | N36: 0.540981609 | O36: 0.3946663414 | P36: 0.3920312574 | Q36: 0.1281616257 | R36: 5.576704844 | S36: 1.354618242 | T36: 0.6454011654 | U36: 0 | V36: 0
A37: URY | B37: 2003 | C37: URY_2003_WHS | D37: 149 | E37: Shared among improved sanitation facilities | F37: No | H37: 96.80880362 | I37: 98.65678177 | J37: 99.29206489 | K37: 99.35956853 | L37: 99.43802252 | M37: 97.71382681 | N37: 98.39795068 | O37: 99.39812574 | P37: 99.19349934 | Q37: 99.664317 | R37: 92.77555258 | S37: 98.64538176 | T37: 99.35459883 | U37: 100 | V37: 100
A38: URY | B38: 2003 | C38: URY_2003_WHS | D38: 150 | E38: Shared among improved sanitation facilities | F38: DK/missing | H38: 1.166846166 | I38: 0.5381701861 | J38: 0.5627583931 | K38: 0.3202157333 | L38: 0.3202781629 | M38: 1.39122638 | N38: 1.06106771 | O38: 0.2072079203 | P38: 0.414469398 | Q38: 0.207521374 | R38: 1.647742572 | S38: 0 | T38: 0 | U38: 0 | V38: 0
A39: URY | B39: 2003 | C39: URY_2003_WHS | D39: 151 | E39: Shared among all sanitation facilities | F39: Yes | H39: 98.35040737 | I39: 99.18609677 | J39: 99.85351351 | K39: 99.67661033 | L39: 99.75712122 | M39: 99.28002151 | N39: 99.45087636 | O39: 99.60195413 | P39: 99.60463819 | Q39: 99.87129552 | R39: 95.31650586 | S39: 98.60710754 | T39: 99.3516586 | U39: 100 | V39: 100
A40: URY | B40: 2003 | C40: URY_2003_WHS | D40: 152 | E40: Shared among all sanitation facilities | F40: No | H40: 1.64959263 | I40: 0.8139032311 | J40: 0.1464864932 | K40: 0.3233896651 | L40: 0.2428787822 | M40: 0.7199784921 | N40: 0.5491236429 | O40: 0.3980458733 | P40: 0.3953618114 | Q40: 0.1287044831 | R40: 4.683494143 | S40: 1.392892465 | T40: 0.6483413975 | U40: 0 | V40: 0
A41: URY | B41: 2003 | C41: URY_2003_WHS | D41: 153 | E41: What type of toilet facilities | F41: Flush to piped sewage system | H41: 45.22703849 | I41: 60.79210202 | J41: 78.5370553 | K41: 85.41949663 | L41: 90.1657481 | M41: 59.93009919 | N41: 77.40441527 | O41: 83.94583074 | P41: 88.93292187 | Q41: 93.92848411 | R41: 23.90617352 | S41: 35.65353463 | T41: 32.71232331 | U41: 60.89117642 | V41: 57.62678467 | AC41: 100636.8855 | AD41: 135625.9589 | AE41: 174455.9052 | AF41: 189870.6586 | AG41: 200381.5083 | AH41: 103120.5467 | AI41: 132995.5942 | AJ41: 144411.6387 | AK41: 152654.1307 | AL41: 161005.8684 | AM41: 12064.1434 | AN41: 18193.69107 | AO41: 16523.34796 | AP41: 30585.30661 | AQ41: 29416.6488
A42: URY | B42: 2003 | C42: URY_2003_WHS | D42: 154 | E42: What type of toilet facilities | F42: Flush to septic tank | H42: 49.97810055 | I42: 38.36042478 | J42: 20.67616864 | K42: 14.58050337 | L42: 9.834251904 | M42: 38.0239412 | N42: 21.60179065 | O42: 16.05416926 | P42: 11.06707813 | Q42: 6.071515891 | R42: 71.02982307 | S42: 54.58628344 | T42: 65.50587946 | U42: 37.82747155 | V42: 42.37321533 | AC42: 111208.705 | AD42: 85581.33743 | AE42: 45928.37996 | AF42: 32409.57729 | AG42: 21855.33055 | AH42: 65427.05014 | AI42: 37116.00912 | AJ42: 27617.91586 | AK42: 18996.73547 | AL42: 10407.38278 | AM42: 35844.88211 | AN42: 27854.90942 | AO42: 33087.72751 | AP42: 19000.53314 | AQ42: 21630.18466
A43: URY | B43: 2003 | C43: URY_2003_WHS | D43: 155 | E43: What type of toilet facilities | F43: Pour flush latrine | H43: 1.204407709 | I43: 0.1149220946 | J43: 0.7867760552 | K43: 0 | L43: 0 | M43: 1.006780432 | N43: 0.8679430643 | O43: 0 | P43: 0 | Q43: 0 | R43: 0.5080573879 | S43: 1.354618242 | T43: 0.5075893902 | U43: 0.510435323 | V43: 0 | AC43: 2679.986237 | AD43: 256.3888855 | AE43: 1747.681122 | AF43: 0 | AG43: 0 | AH43: 1732.347351 | AI43: 1491.292236 | AJ43: 0 | AK43: 0 | AL43: 0 | AM43: 256.3888855 | AN43: 691.25 | AO43: 256.3888855 | AP43: 256.3888855 | AQ43: 0
A44: URY | B44: 2003 | C44: URY_2003_WHS | D44: 156 | E44: What type of toilet facilities | F44: Covered dry latrine (with privacy) | H44: 3.435449568 | I44: 0.7325510993 | J44: 0 | K44: 0 | L44: 0 | M44: 1.039179182 | N44: 0.1258510111 | O44: 0 | P44: 0 | Q44: 0 | R44: 3.872483601 | S44: 8.405563691 | T44: 1.274207844 | U44: 0.7709167011 | V44: 0 | AC44: 7644.386108 | AD44: 1634.306793 | AE44: 0 | AF44: 0 | AG44: 0 | AH44: 1788.095245 | AI44: 216.2361145 | AJ44: 0 | AK44: 0 | AL44: 0 | AM44: 1954.231506 | AN44: 4289.286621 | AO44: 643.6161499 | AP44: 387.2272644 | AQ44: 0
A45: URY | B45: 2003 | C45: URY_2003_WHS | D45: 157 | E45: What type of toilet facilities | F45: Bucket latrine (where fresh excreta are manually removed) | H45: 0.1550036865 | I45: 0 | J45: 0 | K45: 0 | L45: 0 | M45: 0 | N45: 0 | O45: 0 | P45: 0 | Q45: 0 | R45: 0.6834624212 | S45: 0 | T45: 0 | U45: 0 | V45: 0 | AC45: 344.90625 | AD45: 0 | AE45: 0 | AF45: 0 | AG45: 0 | AH45: 0 | AI45: 0 | AJ45: 0 | AK45: 0 | AL45: 0 | AM45: 344.90625 | AN45: 0 | AO45: 0 | AP45: 0 | AQ45: 0
A46: URY | B46: 2013 | C46: URY_2013_MICS | D46: 16 | E46: Water | F46: Improved | G46: w_imp | H46: 98.92535032 | I46: 99.50843469 | J46: 99.97923326 | K46: 99.95354763 | L46: 99.64025553 | M46: 99.90940485 | N46: 100 | O46: 100 | P46: 100 | Q46: 99.60426169 | R46: 92.15812535 | S46: 91.88544713 | T46: 99.82162726 | U46: 99.77277073 | V46: 99.49358665 | W46: Más de 5 mil habitantes | X46: Montevideo y Área Metropolitana | Y46: Rurales y menores de 5 mil habitantes | Z46: 100 | AA46: 99.82467477 | AB46: 96.59169278
A47: URY | B47: 2013 | C47: URY_2013_MICS | D47: 17 | E47: Water | F47: Not Improved | H47: 1.074649676 | I47: 0.4915653126 | J47: 0.02076674318 | K47: 0.04645236555 | L47: 0.3597444667 | M47: 0.09059514903 | N47: 0 | O47: 0 | P47: 0 | Q47: 0.395738307 | R47: 7.841874655 | S47: 8.11455287 | T47: 0.1783727372 | U47: 0.227229273 | V47: 0.5064133548 | W47: Más de 5 mil habitantes | X47: Montevideo y Área Metropolitana | Y47: Rurales y menores de 5 mil habitantes | Z47: 0 | AA47: 0.1753252271 | AB47: 3.40830722
A48: URY | B48: 2013 | C48: URY_2013_MICS | D48: 18 | E48: Water ladder | F48: Basic | G48: w_bas | H48: 98.92033665 | I48: 99.50822409 | J48: 99.76144938 | K48: 99.95354763 | L48: 99.64025553 | M48: 99.90898619 | N48: 100 | O48: 99.7615743 | P48: 100 | Q48: 99.60426169 | R48: 92.11828795 | S48: 91.88544713 | T48: 99.82162726 | U48: 99.74553579 | V48: 99.49358665 | W48: Más de 5 mil habitantes | X48: Montevideo y Área Metropolitana | Y48: Rurales y menores de 5 mil habitantes | Z48: 100 | AA48: 99.73840106 | AB48: 96.51278554
A49: URY | B49: 2013 | C49: URY_2013_MICS | D49: 19 | E49: Water ladder | F49: Limited | G49: w_lim | H49: 0 | I49: 0 | J49: 0.2175787385 | K49: 0 | L49: 0 | M49: 0 | N49: 0 | O49: 0.238425703 | P49: 0 | Q49: 0 | R49: 0 | S49: 0 | T49: 0 | U49: 0 | V49: 0 | W49: Más de 5 mil habitantes | X49: Montevideo y Área Metropolitana | Y49: Rurales y menores de 5 mil habitantes | Z49: 0 | AA49: 0.08603524313 | AB49: 0
A50: URY | B50: 2013 | C50: URY_2013_MICS | D50: 20 | E50: Water ladder | F50: Unimproved | G50: w_unimp | H50: 1.079663349 | I50: 0.4917759093 | J50: 0.02097187883 | K50: 0.04645236555 | L50: 0 | M50: 0.09101381389 | N50: 0 | O50: 0 | P50: 0 | Q50: 0 | R50: 7.881712047 | S50: 8.11455287 | T50: 0.1783727372 | U50: 0.2544642118 | V50: 0.5064133548 | W50: Más de 5 mil habitantes | X50: Montevideo y Área Metropolitana | Y50: Rurales y menores de 5 mil habitantes | Z50: 0 | AA50: 0.03273174596 | AB50: 3.487214463
A51: URY | B51: 2013 | C51: URY_2013_MICS | D51: 21 | E51: Water ladder | F51: Surface water | G51: w_sur | H51: 0 | I51: 0 | J51: 0 | K51: 0 | L51: 0.3597444667 | M51: 0 | N51: 0 | O51: 0 | P51: 0 | Q51: 0.395738307 | R51: 0 | S51: 0 | T51: 0 | U51: 0 | V51: 0 | W51: Más de 5 mil habitantes | X51: Montevideo y Área Metropolitana | Y51: Rurales y menores de 5 mil habitantes | Z51: 0 | AA51: 0.1428319538 | AB51: 0
A52: URY | B52: 2013 | C52: URY_2013_MICS | D52: 22 | E52: Improved water point at more than 30 minutes | F52: Yes | H52: 0 | I52: 0 | J52: 0.2176243784 | K52: 0 | L52: 0 | M52: 0 | N52: 0 | O52: 0.238425703 | P52: 0 | Q52: 0 | R52: 0 | S52: 0 | T52: 0 | U52: 0 | V52: 0 | W52: Más de 5 mil habitantes | X52: Montevideo y Área Metropolitana | Y52: Rurales y menores de 5 mil habitantes | Z52: 0 | AA52: 0.08618655544 | AB52: 0
A53: URY | B53: 2013 | C53: URY_2013_MICS | D53: 23 | E53: Improved water point at more than 30 minutes | F53: No | H53: 100 | I53: 100 | J53: 99.78237562 | K53: 100 | L53: 100 | M53: 100 | N53: 100 | O53: 99.7615743 | P53: 100 | Q53: 100 | R53: 100 | S53: 100 | T53: 100 | U53: 100 | V53: 100 | W53: Más de 5 mil habitantes | X53: Montevideo y Área Metropolitana | Y53: Rurales y menores de 5 mil habitantes | Z53: 100 | AA53: 99.91381344 | AB53: 100
A54: URY | B54: 2013 | C54: URY_2013_MICS | D54: 29 | E54: Piped water | F54: Yes | G54: w_pip | H54: 94.87001091 | I54: 97.25993763 | J54: 99.47549525 | K54: 98.91563218 | L54: 98.59595344 | M54: 98.92724396 | N54: 99.66714491 | O54: 99.95472288 | P54: 100 | Q54: 99.54767753 | R54: 66.5924825 | S54: 81.13342886 | T54: 78.89605629 | U54: 95.08402689 | V54: 77.47673973 | W54: Más de 5 mil habitantes | X54: Montevideo y Área Metropolitana | Y54: Rurales y menores de 5 mil habitantes | Z54: 99.63194513 | AA54: 99.60902173 | AB54: 79.89145426
A55: URY | B55: 2013 | C55: URY_2013_MICS | D55: 30 | E55: Piped water | F55: No | H55: 5.129989094 | I55: 2.74006237 | J55: 0.5245047523 | K55: 1.08436782 | L55: 1.404046556 | M55: 1.072756042 | N55: 0.3328550857 | O55: 0.04527712339 | P55: 0 | Q55: 0.452322467 | R55: 33.4075175 | S55: 18.86657114 | T55: 21.10394371 | U55: 4.915973109 | V55: 22.52326027 | W55: Más de 5 mil habitantes | X55: Montevideo y Área Metropolitana | Y55: Rurales y menores de 5 mil habitantes | Z55: 0.3680548708 | AA55: 0.3909782747 | AB55: 20.10854574
A56: URY | B56: 2013 | C56: URY_2013_MICS | D56: 31 | E56: Piped water on premises | F56: Yes | G56: w_pop | H56: 89.84944539 | I56: 97.11867354 | J56: 98.02799262 | K56: 98.870285 | L56: 98.59595344 | M56: 93.49994566 | N56: 99.62003032 | O56: 99.43531532 | P56: 99.95036128 | Q56: 99.54767753 | R56: 65.68922293 | S56: 81.13342886 | T56: 77.77537173 | U56: 84.38117067 | V56: 77.47673973 | W56: Más de 5 mil habitantes | X56: Montevideo y Área Metropolitana | Y56: Rurales y menores de 5 mil habitantes | Z56: 97.34744663 | AA56: 99.26205215 | AB56: 77.33320097
A57: URY | B57: 2013 | C57: URY_2013_MICS | D57: 32 | E57: Piped water on premises | F57: No | H57: 10.15055461 | I57: 2.881326462 | J57: 1.972007376 | K57: 1.129715 | L57: 1.404046556 | M57: 6.500054342 | N57: 0.3799696823 | O57: 0.5646846796 | P57: 0.04963872148 | Q57: 0.452322467 | R57: 34.31077707 | S57: 18.86657114 | T57: 22.22462827 | U57: 15.61882933 | V57: 22.52326027 | W57: Más de 5 mil habitantes | X57: Montevideo y Área Metropolitana | Y57: Rurales y menores de 5 mil habitantes | Z57: 2.652553375 | AA57: 0.7379478462 | AB57: 22.66679903
A58: URY | B58: 2013 | C58: URY_2013_MICS | D58: 35 | E58: Water source on premises | F58: Yes | H58: 94.33648528 | I58: 99.95717629 | J58: 98.80640323 | K58: 100 | L58: 100 | M58: 95.06087942 | N58: 99.9528854 | O58: 99.7615743 | P58: 100 | Q58: 100 | R58: 87.94930647 | S58: 99.1699007 | T58: 100 | U58: 89.29714378 | V58: 100 | W58: Más de 5 mil habitantes | X58: Montevideo y Área Metropolitana | Y58: Rurales y menores de 5 mil habitantes | Z58: 97.95299767 | AA58: 99.75773278 | AB58: 95.2686706
A59: URY | B59: 2013 | C59: URY_2013_MICS | D59: 36 | E59: Water source on premises | F59: No | H59: 5.663514725 | I59: 0.04282370977 | J59: 1.193596773 | K59: 0 | L59: 0 | M59: 4.939120576 | N59: 0.04711459665 | O59: 0.238425703 | P59: 0 | Q59: 0 | R59: 12.05069353 | S59: 0.8300992958 | T59: 0 | U59: 10.70285622 | V59: 0 | W59: Más de 5 mil habitantes | X59: Montevideo y Área Metropolitana | Y59: Rurales y menores de 5 mil habitantes | Z59: 2.047002333 | AA59: 0.2422672213 | AB59: 4.731329402
A60: URY | B60: 2013 | C60: URY_2013_MICS | D60: 37 | E60: Improved Water source on premises | F60: Yes | G60: w_premises | H60: 94.41572541 | I60: 99.95696474 | J60: 98.8061553 | K60: 100 | L60: 100 | M60: 95.11331469 | N60: 99.9528854 | O60: 99.7615743 | P60: 100 | Q60: 100 | R60: 87.9722507 | S60: 99.09659329 | T60: 100 | U60: 89.27276837 | V60: 100 | W60: Más de 5 mil habitantes | X60: Montevideo y Área Metropolitana | Y60: Rurales y menores de 5 mil habitantes | Z60: 97.95299767 | AA60: 99.7778596 | AB60: 95.30083044
A61: URY | B61: 2013 | C61: URY_2013_MICS | D61: 38 | E61: Improved Water source on premises | F61: No | H61: 5.584274588 | I61: 0.04303525616 | J61: 1.193844696 | K61: 0 | L61: 0 | M61: 4.886685315 | N61: 0.04711459665 | O61: 0.238425703 | P61: 0 | Q61: 0 | R61: 12.0277493 | S61: 0.903406711 | T61: 0 | U61: 10.72723163 | V61: 0 | W61: Más de 5 mil habitantes | X61: Montevideo y Área Metropolitana | Y61: Rurales y menores de 5 mil habitantes | Z61: 2.047002333 | AA61: 0.2221404007 | AB61: 4.699169557
A62: URY | B62: 2013 | C62: URY_2013_MICS | D62: 41 | E62: Water point at more than 30 minutes | F62: Yes | H62: 0 | I62: 0 | J62: 0.2175787385 | K62: 0 | L62: 0 | M62: 0 | N62: 0 | O62: 0.238425703 | P62: 0 | Q62: 0 | R62: 0 | S62: 0 | T62: 0 | U62: 0 | V62: 0 | W62: Más de 5 mil habitantes | X62: Montevideo y Área Metropolitana | Y62: Rurales y menores de 5 mil habitantes | Z62: 0 | AA62: 0.08603524313 | AB62: 0
A63: URY | B63: 2013 | C63: URY_2013_MICS | D63: 42 | E63: Water point at more than 30 minutes | F63: No | G63: w_30min | H63: 100 | I63: 100 | J63: 99.78242126 | K63: 100 | L63: 100 | M63: 100 | N63: 100 | O63: 99.7615743 | P63: 100 | Q63: 100 | R63: 100 | S63: 100 | T63: 100 | U63: 100 | V63: 100 | W63: Más de 5 mil habitantes | X63: Montevideo y Área Metropolitana | Y63: Rurales y menores de 5 mil habitantes | Z63: 100 | AA63: 99.91396476 | AB63: 100
A64: URY | B64: 2013 | C64: URY_2013_MICS | D64: 58 | E64: Fuente principal de agua potable | F64: Tubería dentro de la vivienda | H64: 82.64401139 | I64: 95.25669692 | J64: 93.76198538 | K64: 90.07214788 | L64: 79.4785367 | M64: 87.0509916 | N64: 97.64032934 | O64: 94.90448468 | P64: 89.95356783 | Q64: 79.27150015 | R64: 54.35903537 | S64: 77.60177908 | T64: 76.86988377 | U64: 81.01974201 | V64: 75.50128615 | W64: Más de 5 mil habitantes | X64: Montevideo y Área Metropolitana | Y64: Rurales y menores de 5 mil habitantes | Z64: 93.65569292 | AA64: 86.63893291 | AB64: 73.10273472
A65: URY | B65: 2013 | C65: URY_2013_MICS | D65: 59 | E65: Fuente principal de agua potable | F65: Tubería dentro del terreno, patio o lote | H65: 5.887729257 | I65: 0.9763247115 | J65: 1.08238886 | K65: 1.579839763 | L65: 6.828685831 | M65: 5.032937124 | N65: 1.056913227 | O65: 1.102290265 | P65: 1.729351783 | Q65: 7.511922544 | R65: 11.33018756 | S65: 3.015814269 | T65: 0.2190433453 | U65: 0.9056276964 | V65: 0 | W65: Más de 5 mil habitantes | X65: Montevideo y Área Metropolitana | Y65: Rurales y menores de 5 mil habitantes | Z65: 1.757403136 | AA65: 4.514782097 | AB65: 3.099558548
A66: URY | B66: 2013 | C66: URY_2013_MICS | D66: 60 | E66: Fuente principal de agua potable | F66: Tubería al vecino | H66: 0.4643736941 | I66: 0.04282370977 | J66: 0.9781462729 | K66: 0 | L66: 0 | M66: 0.4600014382 | N66: 0.04711459665 | O66: 0 | P66: 0 | Q66: 0 | R66: 0.5054408468 | S66: 0 | T66: 0 | U66: 10.70285622 | V66: 0 | W66: Más de 5 mil habitantes | X66: Montevideo y Área Metropolitana | Y66: Rurales y menores de 5 mil habitantes | Z66: 0.05871093011 | AA66: 0.1358325533 | AB66: 2.26275854
A67: URY | B67: 2013 | C67: URY_2013_MICS | D67: 61 | E67: Fuente principal de agua potable | F67: Canilla o grifo público | H67: 4.556191822 | I67: 0.09844038163 | J67: 0.4693563504 | K67: 0.04534717964 | L67: 0 | M67: 4.967296861 | N67: 0 | O67: 0.5194075563 | P67: 0.04963872148 | Q67: 0 | R67: 0.3978187207 | S67: 0 | T67: 1.120684556 | U67: 0 | V67: 0 | W67: Más de 5 mil habitantes | X67: Montevideo y Área Metropolitana | Y67: Rurales y menores de 5 mil habitantes | Z67: 2.225787574 | AA67: 0.2111370182 | AB67: 0.2954947516
A68: URY | B68: 2013 | C68: URY_2013_MICS | D68: 62 | E68: Fuente principal de agua potable | F68: Pozo con tubería | H68: 1.629768656 | I68: 0.9310721649 | J68: 0.03125226327 | K68: 0.8503464089 | L68: 0.7303309162 | M68: 0.8004275481 | N68: 0.3328550857 | O68: 0 | P68: 0 | Q68: 0 | R68: 3.04466862 | S68: 6.767649775 | T68: 7.319175947 | U68: 0.116573272 | V68: 17.26844838 | W68: Más de 5 mil habitantes | X68: Montevideo y Área Metropolitana | Y68: Rurales y menores de 5 mil habitantes | Z68: 0.3349943133 | AA68: 0.1399023565 | AB68: 6.89672074
A69: URY | B69: 2013 | C69: URY_2013_MICS | D69: 63 | E69: Fuente principal de agua potable | F69: Pozo protegido | H69: 0.5345416196 | I69: 0.2383443318 | J69: 0.03357302165 | K69: 0.1486066425 | L69: 0.05143762454 | M69: 0.136512579 | N69: 0 | O69: 0 | P69: 0 | Q69: 0.05658415997 | R69: 4.005707491 | S69: 2.133050675 | T69: 0.9862601291 | U69: 0.5377772611 | V69: 1.448523782 | W69: Más de 5 mil habitantes | X69: Montevideo y Área Metropolitana | Y69: Rurales y menores de 5 mil habitantes | Z69: 0.03306055743 | AA69: 0.04311883132 | AB69: 1.824836729
A70: URY | B70: 2013 | C70: URY_2013_MICS | D70: 64 | E70: Fuente principal de agua potable | F70: Pozo no protegido | H70: 0.6934886342 | I70: 0.01566817373 | J70: 0 | K70: 0 | L70: 0 | M70: 0.01130519157 | N70: 0 | O70: 0 | P70: 0 | Q70: 0 | R70: 4.660810253 | S70: 2.795593201 | T70: 0.1783727372 | U70: 0 | V70: 0 | W70: Más de 5 mil habitantes | X70: Montevideo y Área Metropolitana | Y70: Rurales y menores de 5 mil habitantes | Z70: 0 | AA70: 0.004078982478 | AB70: 1.535948249
A71: URY | B71: 2013 | C71: URY_2013_MICS | D71: 65 | E71: Fuente principal de agua potable | F71: Manantial o pozo surgente protegido | H71: 0.7325350455 | I71: 1.079080561 | J71: 0.3709630357 | K71: 0.03896240307 | L71: 0.2625335485 | M71: 0 | N71: 0 | O71: 0 | P71: 0 | Q71: 0 | R71: 6.510356681 | S71: 1.529937505 | T71: 12.6201349 | U71: 3.738570722 | V71: 3.29987475 | W71: Más de 5 mil habitantes | X71: Montevideo y Área Metropolitana | Y71: Rurales y menores de 5 mil habitantes | Z71: 0 | AA71: 0 | AB71: 5.463252861
A72: URY | B72: 2013 | C72: URY_2013_MICS | D72: 66 | E72: Fuente principal de agua potable | F72: Manantial o pozo surgente no protegido | H72: 0.3090084637 | I72: 0.4758971389 | J72: 0.02076674318 | K72: 0.04645236555 | L72: 0 | M72: 0 | N72: 0 | O72: 0 | P72: 0 | Q72: 0 | R72: 3.181064402 | S72: 5.318959669 | T72: 0 | U72: 0.227229273 | V72: 0.5064133548 | W72: Más de 5 mil habitantes | X72: Montevideo y Área Metropolitana | Y72: Rurales y menores de 5 mil habitantes | Z72: 0 | AA72: 0 | AB72: 1.872358971
A73: URY | B73: 2013 | C73: URY_2013_MICS | D73: 67 | E73: Fuente principal de agua potable | F73: Recogen agua de lluvia | H73: 0.1698078422 | I73: 0 | J73: 0 | K73: 0 | L73: 0 | M73: 0 | N73: 0 | O73: 0 | P73: 0 | Q73: 0 | R73: 1.874795554 | S73: 0 | T73: 0 | U73: 0 | V73: 0 | W73: Más de 5 mil habitantes | X73: Montevideo y Área Metropolitana | Y73: Rurales y menores de 5 mil habitantes | Z73: 0 | AA73: 0 | AB73: 0.3731989478
A74: URY | B74: 2013 | C74: URY_2013_MICS | D74: 68 | E74: Fuente principal de agua potable | F74: Carrotanque / camión cisterna | H74: 0.9475360883 | I74: 0 | J74: 0 | K74: 0 | L74: 0 | M74: 0 | N74: 0 | O74: 0 | P74: 0 | Q74: 0 | R74: 10.1301145 | S74: 0.3213803095 | T74: 0 | U74: 0 | V74: 0 | W74: Más de 5 mil habitantes | X74: Montevideo y Área Metropolitana | Y74: Rurales y menores de 5 mil habitantes | Z74: 0 | AA74: 0 | AB74: 2.082468433
A75: URY | B75: 2013 | C75: URY_2013_MICS | D75: 69 | E75: Fuente principal de agua potable | F75: Agua de superficie(río, arroyo, represa, lago, estanque, canal, canal de irrigación) | H75: 0 | I75: 0 | J75: 0 | K75: 0 | L75: 0.3597444667 | M75: 0 | N75: 0 | O75: 0 | P75: 0 | Q75: 0.395738307 | R75: 0 | S75: 0 | T75: 0 | U75: 0 | V75: 0 | W75: Más de 5 mil habitantes | X75: Montevideo y Área Metropolitana | Y75: Rurales y menores de 5 mil habitantes | Z75: 0 | AA75: 0.1426379415 | AB75: 0
A76: URY | B76: 2013 | C76: URY_2013_MICS | D76: 70 | E76: Fuente principal de agua potable | F76: Agua embotellada/envasada | H76: 1.358854908 | I76: 0.8856519023 | J76: 3.251568071 | K76: 7.218297355 | L76: 12.28873092 | M76: 1.461237697 | N76: 0.9227877529 | O76: 3.473817503 | P76: 8.267441661 | Q76: 12.76425484 | R76: 0 | S76: 0.5158355142 | T76: 0.6864446132 | U76: 2.751623539 | V76: 1.97545358 | W76: Más de 5 mil habitantes | X76: Montevideo y Área Metropolitana | Y76: Rurales y menores de 5 mil habitantes | Z76: 1.934350565 | AA76: 8.140969006 | AB76: 1.190668511
A77: URY | B77: 2013 | C77: URY_2013_MICS | D77: 71 | E77: Fuente principal de agua potable | F77: Otra | H77: 0.07215257826 | I77: 0 | J77: 0 | K77: 0 | L77: 0 | M77: 0.07928995746 | N77: 0 | O77: 0 | P77: 0 | Q77: 0 | R77: 0 | S77: 0 | T77: 0 | U77: 0 | V77: 0 | W77: Más de 5 mil habitantes | X77: Montevideo y Área Metropolitana | Y77: Rurales y menores de 5 mil habitantes | Z77: 0 | AA77: 0.02860830311 | AB77: 0
A78: URY | B78: 2013 | C78: URY_2013_MICS | D78: 122 | E78: Sanitation | F78: Improved | G78: s_imp | H78: 93.82910446 | I78: 99.92738705 | J78: 99.96566017 | K78: 98.80599116 | L78: 99.45826718 | M78: 93.89993823 | N78: 99.92011132 | O78: 99.96199824 | P78: 98.6929932 | Q78: 99.4040647 | R78: 93.46147069 | S78: 99.70318179 | T78: 100 | U78: 100 | V78: 100 | W78: Más de 5 mil habitantes | X78: Montevideo y Área Metropolitana | Y78: Rurales y menores de 5 mil habitantes | Z78: 99.91513924 | AA78: 97.13860891 | AB78: 98.63751745 | AC78: 2018.364224 | AD78: 2149.097417 | AE78: 2162.77396 | AF78: 2115.791175 | AG78: 2139.456953 | AH78: 1838.065335 | AI78: 1953.229566 | AJ78: 1954.292915 | AK78: 1930.658837 | AL78: 1943.805644 | AM78: 182.095162 | AN78: 200.274207 | AO78: 188.912838 | AP78: 197.726285 | AQ78: 196.42294 | AR78: 4350.016029 | AS78: 5270.036268 | AT78: 965.431432
A79: URY | B79: 2013 | C79: URY_2013_MICS | D79: 123 | E79: Sanitation | F79: Not Improved | H79: 6.170895535 | I79: 0.07261295009 | J79: 0.0343398287 | K79: 1.194008837 | L79: 0.5417328166 | M79: 6.100061772 | N79: 0.07988868487 | O79: 0.03800175813 | P79: 1.307006799 | Q79: 0.5959353028 | R79: 6.538529314 | S79: 0.2968182071 | T79: 0 | U79: 0 | V79: 0 | W79: Más de 5 mil habitantes | X79: Montevideo y Área Metropolitana | Y79: Rurales y menores de 5 mil habitantes | Z79: 0.08486076181 | AA79: 2.861391094 | AB79: 1.362482545 | AC79: 132.742552 | AD79: 1.561657 | AE79: 0.742948 | AF79: 25.568018 | AG79: 11.65327 | AH79: 119.407023 | AI79: 1.561657 | AJ79: 0.742948 | AK79: 25.568018 | AL79: 11.65327 | AM79: 12.739309 | AN79: 0.59622 | AO79: 0 | AP79: 0 | AQ79: 0 | AR79: 3.694592 | AS79: 155.238324 | AT79: 13.335529
A80: URY | B80: 2013 | C80: URY_2013_MICS | D80: 124 | E80: Sanitation ladder | F80: Basic | G80: s_bas | H80: 87.33833628 | I80: 95.04179195 | J80: 95.49327668 | K80: 95.30693751 | L80: 96.69562495 | M80: 85.90653994 | N80: 96.58801432 | O80: 94.91482234 | P80: 95.52297589 | Q80: 96.42332643 | R80: 86.05935138 | S80: 94.40962507 | T80: 99.01478586 | U80: 97.65510842 | V80: 98.32273919 | W80: Más de 5 mil habitantes | X80: Montevideo y Área Metropolitana | Y80: Rurales y menores de 5 mil habitantes | Z80: 93.65641271 | AA80: 94.01251158 | AB80: 95.07719519 | AC80: 1878.59395 | AD80: 2015.86066 | AE80: 2066.013187 | AF80: 2040.863868 | AG80: 2055.283865 | AH80: 1681.452262 | AI80: 1859.471563 | AJ80: 1855.618816 | AK80: 1868.646107 | AL80: 1860.842608 | AM80: 167.673282 | AN80: 189.641017 | AO80: 187.051642 | AP80: 193.089818 | AQ80: 193.128415 | AR80: 4040.279994 | AS80: 5085.751362 | AT80: 930.584174
A81: URY | B81: 2013 | C81: URY_2013_MICS | D81: 125 | E81: Sanitation ladder | F81: Limited | G81: s_lim | H81: 6.49028558 | I81: 4.884580601 | J81: 4.47238349 | K81: 3.49905365 | L81: 2.756119773 | M81: 7.992874019 | N81: 3.330867289 | O81: 5.047175904 | P81: 3.170017314 | Q81: 2.972835793 | R81: 7.40211931 | S81: 5.293556726 | T81: 0.9852141441 | U81: 2.344891576 | V81: 1.677260813 | W81: Más de 5 mil habitantes | X81: Montevideo y Área Metropolitana | Y81: Rurales y menores de 5 mil habitantes | Z81: 6.25794416 | AA81: 3.117834813 | AB81: 3.560322261 | AC81: 139.602055 | AD81: 103.603201 | AE81: 96.760773 | AF81: 74.927307 | AG81: 58.581849 | AH81: 156.444854 | AI81: 64.124447 | AJ81: 98.674099 | AK81: 62.01273 | AL81: 57.371797 | AM81: 14.42188 | AN81: 10.63319 | AO81: 1.861196 | AP81: 4.636467 | AQ81: 3.294525 | AR81: 269.963859 | AS81: 168.664068 | AT81: 34.847258
A82: URY | B82: 2013 | C82: URY_2013_MICS | D82: 126 | E82: Sanitation ladder | F82: Unimproved | G82: s_unimp | H82: 3.839067449 | I82: 0.0348746865 | J82: 0 | K82: 1.194008837 | L82: 0.5482552773 | M82: 3.575366168 | N82: 0.03842287895 | O82: 0 | P82: 1.307006799 | Q82: 0.6038377735 | R82: 6.158546759 | S82: 0.2968182071 | T82: 0 | U82: 0 | V82: 0 | W82: Más de 5 mil habitantes | X82: Montevideo y Área Metropolitana | Y82: Rurales y menores de 5 mil habitantes | Z82: 0.05049536584 | AA82: 1.95508705 | AB82: 1.286842783 | AC82: 82.575982 | AD82: 0.739701 | AE82: 0 | AF82: 25.568018 | AG82: 11.65327 | AH82: 69.98079 | AI82: 0.739701 | AJ82: 0 | AK82: 25.568018 | AL82: 11.65327 | AM82: 11.998972 | AN82: 0.59622 | AO82: 0 | AP82: 0 | AQ82: 0 | AR82: 2.178339 | AS82: 105.76344 | AT82: 12.595192
A83: URY | B83: 2013 | C83: URY_2013_MICS | D83: 127 | E83: Sanitation ladder | F83: Open defecation | G83: s_od | H83: 2.332310695 | I83: 0.03875276337 | J83: 0.0343398287 | K83: 0 | L83: 0 | M83: 2.525219868 | N83: 0.04269551601 | O83: 0.03800175813 | P83: 0 | Q83: 0 | R83: 0.3799825545 | S83: 0 | T83: 0 | U83: 0 | V83: 0 | W83: Más de 5 mil habitantes | X83: Montevideo y Área Metropolitana | Y83: Rurales y menores de 5 mil habitantes | Z83: 0.03514776623 | AA83: 0.9145665555 | AB83: 0.07563976202 | AC83: 50.16657 | AD83: 0.821956 | AE83: 0.742948 | AF83: 0 | AG83: 0 | AH83: 49.426233 | AI83: 0.821956 | AJ83: 0.742948 | AK83: 0 | AL83: 0 | AM83: 0.740337 | AN83: 0 | AO83: 0 | AP83: 0 | AQ83: 0 | AR83: 1.516253 | AS83: 49.474884 | AT83: 0.740337
A84: URY | B84: 2013 | C84: URY_2013_MICS | D84: 128 | E84: Shared among Improved Sanitation | F84: Yes | G84: s_shared | H84: 6.917170317 | I84: 4.888179643 | J84: 4.473919827 | K84: 3.541337533 | L84: 2.771313646 | M84: 8.512166031 | N84: 3.333571429 | O84: 5.049094649 | P84: 3.211998351 | Q84: 2.990895953 | R84: 7.919968791 | S84: 5.309315742 | T84: 0.9852141441 | U84: 2.344891576 | V84: 1.677260813 | W84: Más de 5 mil habitantes | X84: Montevideo y Área Metropolitana | Y84: Rurales y menores de 5 mil habitantes | Z84: 6.263308254 | AA84: 3.209949237 | AB84: 3.609501084
A85: URY | B85: 2013 | C85: URY_2013_MICS | D85: 129 | E85: Shared among Improved Sanitation | F85: No | H85: 93.08282968 | I85: 95.11182036 | J85: 95.52608017 | K85: 96.45866247 | L85: 97.22868635 | M85: 91.48783397 | N85: 96.66642857 | O85: 94.95090535 | P85: 96.78800165 | Q85: 97.00910405 | R85: 92.08003121 | S85: 94.69068426 | T85: 99.01478586 | U85: 97.65510842 | V85: 98.32273919 | W85: Más de 5 mil habitantes | X85: Montevideo y Área Metropolitana | Y85: Rurales y menores de 5 mil habitantes | Z85: 93.73669175 | AA85: 96.79005076 | AB85: 96.39049892
A86: URY | B86: 2013 | C86: URY_2013_MICS | D86: 135 | E86: Sanitation type | F86: Sewer connection | G86: s_sew | H86: 33.12667074 | I86: 51.4266569 | J86: 54.3671814 | K86: 65.34766473 | L86: 78.05214759 | M86: 38.06350184 | N86: 52.92080335 | O86: 58.05699918 | P86: 68.91578574 | Q86: 79.71043604 | R86: 8.776098455 | S86: 36.1573802 | T86: 34.39583762 | U86: 32.49736726 | V86: 16.66610886 | W86: Más de 5 mil habitantes | X86: Montevideo y Área Metropolitana | Y86: Rurales y menores de 5 mil habitantes | Z86: 61.59966064 | AA86: 57.86973202 | AB86: 25.71586599
A87: URY | B87: 2013 | C87: URY_2013_MICS | D87: 136 | E87: Sanitation type | F87: Septic tank connection | G87: s_sep | H87: 60.1743287 | I87: 48.35410017 | J87: 45.38302827 | K87: 33.45832644 | L87: 21.39611611 | M87: 55.57726629 | N87: 46.89186544 | O87: 41.66657336 | P87: 29.77720746 | Q87: 19.69362865 | R87: 80.91799269 | S87: 63.54580159 | T87: 65.60416238 | U87: 67.50263274 | V87: 83.22433877 | W87: Más de 5 mil habitantes | X87: Montevideo y Área Metropolitana | Y87: Rurales y menores de 5 mil habitantes | Z87: 38.26983229 | AA87: 39.08736607 | AB87: 72.14972717
A88: URY | B88: 2013 | C88: URY_2013_MICS | D88: 137 | E88: Sanitation type | F88: Improved latrines | G88: s_lat | H88: 0.5281050261 | I88: 0.1466299814 | J88: 0.2154505002 | K88: 0 | L88: 0.01000348554 | M88: 0.2591700965 | N88: 0.1074425225 | O88: 0.238425703 | P88: 0 | Q88: 0 | R88: 3.767379541 | S88: 0 | T88: 0 | U88: 0 | V88: 0.1095523771 | W88: Más de 5 mil habitantes | X88: Montevideo y Área Metropolitana | Y88: Rurales y menores de 5 mil habitantes | Z88: 0.04564630434 | AA88: 0.1815108126 | AB88: 0.7719242987
A89: URY | B89: 2013 | C89: URY_2013_MICS | D89: 138 | E89: Sanitation type | F89: Unimproved facilities | H89: 3.83876723 | I89: 0.03439415428 | J89: 0 | K89: 1.194008837 | L89: 0.5417328166 | M89: 3.575058913 | N89: 0.03784040931 | O89: 0 | P89: 1.307006799 | Q89: 0.5959353028 | R89: 6.158546759 | S89: 0.2968182071 | T89: 0 | U89: 0 | V89: 0 | W89: Más de 5 mil habitantes | X89: Montevideo y Área Metropolitana | Y89: Rurales y menores de 5 mil habitantes | Z89: 0.05003407873 | AA89: 1.949457824 | AB89: 1.286842783
A90: URY | B90: 2013 | C90: URY_2013_MICS | D90: 139 | E90: Sanitation type | F90: Open defecation | H90: 2.332128305 | I90: 0.03821879581 | J90: 0.0343398287 | K90: 0 | L90: 0 | M90: 2.525002859 | N90: 0.04204827556 | O90: 0.03800175813 | P90: 0 | Q90: 0 | R90: 0.3799825545 | S90: 0 | T90: 0 | U90: 0 | V90: 0 | W90: Más de 5 mil habitantes | X90: Montevideo y Área Metropolitana | Y90: Rurales y menores de 5 mil habitantes | Z90: 0.03482668308 | AA90: 0.9119332701 | AB90: 0.07563976202
A91: URY | B91: 2013 | C91: URY_2013_MICS | D91: 148 | E91: Shared among improved sanitation facilities | F91: Yes | H91: 6.489778032 | I91: 4.817276818 | J91: 4.47238349 | K91: 3.49905365 | L91: 2.723330882 | M91: 7.992187137 | N91: 3.28037318 | O91: 5.047175904 | P91: 3.170017314 | Q91: 2.933930066 | R91: 7.40211931 | S91: 5.293556726 | T91: 0.9852141441 | U91: 2.344891576 | V91: 1.677260813 | W91: Más de 5 mil habitantes | X91: Montevideo y Área Metropolitana | Y91: Rurales y menores de 5 mil habitantes | Z91: 6.200776361 | AA91: 3.10885772 | AB91: 3.560322261
A92: URY | B92: 2013 | C92: URY_2013_MICS | D92: 149 | E92: Shared among improved sanitation facilities | F92: No | H92: 87.33150632 | I92: 93.73222769 | J92: 95.49327668 | K92: 95.30693751 | L92: 95.54526044 | M92: 85.89915741 | N92: 95.12379333 | O92: 94.91482234 | P92: 95.52297589 | Q92: 95.16142705 | R92: 86.05935138 | S92: 94.40962507 | T92: 99.01478586 | U92: 97.65510842 | V92: 98.32273919 | W92: Más de 5 mil habitantes | X92: Montevideo y Área Metropolitana | Y92: Rurales y menores de 5 mil habitantes | Z92: 92.80083923 | AA92: 93.74182405 | AB92: 95.07719519
A93: URY | B93: 2013 | C93: URY_2013_MICS | D93: 150 | E93: Shared among improved sanitation facilities | F93: DK/missing | H93: 6.178715649 | I93: 1.450495496 | J93: 0.0343398287 | K93: 1.194008837 | L93: 1.731408675 | M93: 6.108655456 | N93: 1.59583349 | O93: 0.03800175813 | P93: 1.307006799 | Q93: 1.904642881 | R93: 6.538529314 | S93: 0.2968182071 | T93: 0 | U93: 0 | V93: 0 | W93: Más de 5 mil habitantes | X93: Montevideo y Área Metropolitana | Y93: Rurales y menores de 5 mil habitantes | Z93: 0.9983844078 | AA93: 3.149318235 | AB93: 1.362482545
A94: URY | B94: 2013 | C94: URY_2013_MICS | D94: 151 | E94: Shared among all sanitation facilities | F94: Yes | H94: 6.800378164 | I94: 4.819118627 | J94: 4.473919827 | K94: 3.49905365 | L94: 2.723330882 | M94: 8.370587897 | N94: 3.2817531 | O94: 5.049094649 | P94: 3.170017314 | Q94: 2.933930066 | R94: 7.430353356 | S94: 5.293556726 | T94: 0.9852141441 | U94: 2.344891576 | V94: 1.677260813 | W94: Más de 5 mil habitantes | X94: Montevideo y Área Metropolitana | Y94: Rurales y menores de 5 mil habitantes | Z94: 6.209258598 | AA94: 3.193176036 | AB94: 3.563017319
A95: URY | B95: 2013 | C95: URY_2013_MICS | D95: 152 | E95: Shared among all sanitation facilities | F95: No | H95: 93.19161499 | I95: 93.80247202 | J95: 95.52608017 | K95: 96.50094635 | L95: 96.08699326 | M95: 91.62059581 | N95: 95.2016644 | O95: 94.95090535 | P95: 96.82998269 | Q95: 95.75736236 | R95: 92.56964664 | S95: 94.70644327 | T95: 99.01478586 | U95: 97.65510842 | V95: 98.32273919 | W95: Más de 5 mil habitantes | X95: Montevideo y Área Metropolitana | Y95: Rurales y menores de 5 mil habitantes | Z95: 92.8768995 | AA95: 96.51624696 | AB95: 96.43698268
A96: URY | B96: 2013 | C96: URY_2013_MICS | D96: 153 | E96: Tipo de servicio sanitario | F96: Inodoro conectado a red de saneamiento | H96: 33.12667074 | I96: 51.4266569 | J96: 54.3671814 | K96: 65.34766473 | L96: 78.05214759 | M96: 38.06350184 | N96: 52.92080335 | O96: 58.05699918 | P96: 68.91578574 | Q96: 79.71043604 | R96: 8.776098455 | S96: 36.1573802 | T96: 34.39583762 | U96: 32.49736726 | V96: 16.66610886 | W96: Más de 5 mil habitantes | X96: Montevideo y Área Metropolitana | Y96: Rurales y menores de 5 mil habitantes | Z96: 61.59966064 | AA96: 57.86973202 | AB96: 25.71586599 | AC96: 712.590059 | AD96: 1106.012063 | AE96: 1176.243162 | AF96: 1399.328226 | AG96: 1678.987726 | AH96: 745.082527 | AI96: 1034.491219 | AJ96: 1135.035155 | AK96: 1348.149108 | AL96: 1558.704827 | AM96: 17.098865 | AN96: 72.629484 | AO96: 64.978153 | AP96: 64.255837 | AQ96: 32.736061 | AR96: 2681.870968 | AS96: 3139.591868 | AT96: 251.6984
A97: URY | B97: 2013 | C97: URY_2013_MICS | D97: 154 | E97: Tipo de servicio sanitario | F97: Inodoro conectado a fosa séptica o pozo impermeable | H97: 60.1743287 | I97: 48.35410017 | J97: 45.38302827 | K97: 33.45832644 | L97: 21.39611611 | M97: 55.57726629 | N97: 46.89186544 | O97: 41.66657336 | P97: 29.77720746 | Q97: 19.69362865 | R97: 80.91799269 | S97: 63.54580159 | T97: 65.60416238 | U97: 67.50263274 | V97: 83.22433877 | W97: Más de 5 mil habitantes | X97: Montevideo y Área Metropolitana | Y97: Rurales y menores de 5 mil habitantes | Z97: 38.26983229 | AA97: 39.08736607 | AB97: 72.14972717 | AC97: 1294.414062 | AD97: 1039.931843 | AE97: 981.86949 | AF97: 716.462949 | AG97: 460.254041 | AH97: 1087.909625 | AI97: 916.63807 | AJ97: 814.596452 | AK97: 582.509729 | AL97: 385.100817 | AM97: 157.656143 | AN97: 127.644723 | AO97: 123.934685 | AP97: 133.470448 | AQ97: 163.471693 | AR97: 1666.157753 | AS97: 2120.59694 | AT97: 706.177692
A98: URY | B98: 2013 | C98: URY_2013_MICS | D98: 155 | E98: Tipo de servicio sanitario | F98: Inodoro o taza turca (letrina) conectado/a a pozo permeable (perdedor) | H98: 0.5281050261 | I98: 0.1466299814 | J98: 0.2154505002 | K98: 0 | L98: 0.01000348554 | M98: 0.2591700965 | N98: 0.1074425225 | O98: 0.238425703 | P98: 0 | Q98: 0 | R98: 3.767379541 | S98: 0 | T98: 0 | U98: 0 | V98: 0.1095523771 | W98: Más de 5 mil habitantes | X98: Montevideo y Área Metropolitana | Y98: Rurales y menores de 5 mil habitantes | Z98: 0.04564630434 | AA98: 0.1815108126 | AB98: 0.7719242987 | AC98: 11.360103 | AD98: 3.153511 | AE98: 4.661308 | AF98: 0 | AG98: 0.215186 | AH98: 5.073183 | AI98: 2.100277 | AJ98: 4.661308 | AK98: 0 | AL98: 0 | AM98: 7.340154 | AN98: 0 | AO98: 0 | AP98: 0 | AQ98: 0.215186 | AR98: 1.987308 | AS98: 9.84746 | AT98: 7.55534
A99: URY | B99: 2013 | C99: URY_2013_MICS | D99: 156 | E99: Tipo de servicio sanitario | F99: Baldeo a otra parte | H99: 2.399448162 | I99: 0 | J99: 0 | K99: 0.5622290758 | L99: 0 | M99: 2.636803109 | N99: 0 | O99: 0 | P99: 0.6154370067 | Q99: 0 | R99: 0 | S99: 0 | T99: 0 | U99: 0 | V99: 0 | W99: Más de 5 mil habitantes | X99: Montevideo y Área Metropolitana | Y99: Rurales y menores de 5 mil habitantes | Z99: 0 | AA99: 1.173286899 | AB99: 0 | AC99: 51.614692 | AD99: 0 | AE99: 0 | AF99: 12.039344 | AG99: 0 | AH99: 51.614692 | AI99: 0 | AJ99: 0 | AK99: 12.039344 | AL99: 0 | AM99: 0 | AN99: 0 | AO99: 0 | AP99: 0 | AQ99: 0 | AR99: 0 | AS99: 63.654036 | AT99: 0
A100: URY | B100: 2013 | C100: URY_2013_MICS | D100: 157 | E100: Tipo de servicio sanitario | F100: Balde | H100: 0.6056976411 | I100: 0 | J100: 0 | K100: 0 | L100: 0 | M100: 0.3869546852 | N100: 0 | O100: 0 | P100: 0 | Q100: 0 | R100: 2.799644217 | S100: 0 | T100: 0 | U100: 0 | V100: 0 | W100: Más de 5 mil habitantes | X100: Montevideo y Área Metropolitana | Y100: Rurales y menores de 5 mil habitantes | Z100: 0.03306055743 | AA100: 0.1130849673 | AB100: 0.5573003807 | AC100: 13.029203 | AD100: 0 | AE100: 0 | AF100: 0 | AG100: 0 | AH100: 7.574531 | AI100: 0 | AJ100: 0 | AK100: 0 | AL100: 0 | AM100: 5.454672 | AN100: 0 | AO100: 0 | AP100: 0 | AQ100: 0 | AR100: 1.439361 | AS100: 6.13517 | AT100: 5.454672
A101: URY | B101: 2013 | C101: URY_2013_MICS | D101: 158 | E101: Tipo de servicio sanitario | F101: No hay instalación sanitaria, va al monte, campo | H101: 2.332128305 | I101: 0.03821879581 | J101: 0.0343398287 | K101: 0 | L101: 0 | M101: 2.525002859 | N101: 0.04204827556 | O101: 0.03800175813 | P101: 0 | Q101: 0 | R101: 0.3799825545 | S101: 0 | T101: 0 | U101: 0 | V101: 0 | W101: Más de 5 mil habitantes | X101: Montevideo y Área Metropolitana | Y101: Rurales y menores de 5 mil habitantes | Z101: 0.03482668308 | AA101: 0.9119332701 | AB101: 0.07563976202 | AC101: 50.16657 | AD101: 0.821956 | AE101: 0.742948 | AF101: 0 | AG101: 0 | AH101: 49.426233 | AI101: 0.821956 | AJ101: 0.742948 | AK101: 0 | AL101: 0 | AM101: 0.740337 | AN101: 0 | AO101: 0 | AP101: 0 | AQ101: 0 | AR101: 1.516253 | AS101: 49.474884 | AT101: 0.740337
A102: URY | B102: 2013 | C102: URY_2013_MICS | D102: 159 | E102: Tipo de servicio sanitario | F102: Otro | H102: 0.7357646388 | I102: 0.03439415428 | J102: 0 | K102: 0 | L102: 0 | M102: 0.4742229417 | N102: 0.03784040931 | O102: 0 | P102: 0 | Q102: 0 | R102: 3.358902542 | S102: 0 | T102: 0 | U102: 0 | V102: 0 | W102: Más de 5 mil habitantes | X102: Montevideo y Área Metropolitana | Y102: Rurales y menores de 5 mil habitantes | Z102: 0.01697352131 | AA102: 0.1711158734 | AB102: 0.6686269828 | AC102: 15.827083 | AD102: 0.739701 | AE102: 0 | AF102: 0 | AG102: 0 | AH102: 9.282783 | AI102: 0.739701 | AJ102: 0 | AK102: 0 | AL102: 0 | AM102: 6.5443 | AN102: 0 | AO102: 0 | AP102: 0 | AQ102: 0 | AR102: 0.738978 | AS102: 9.283506 | AT102: 6.5443
A103: URY | B103: 2013 | C103: URY_2013_MICS | D103: 160 | E103: Tipo de servicio sanitario | F103: Missing | H103: 0.09785678812 | I103: 0 | J103: 0 | K103: 0.6317797614 | L103: 0.5417328166 | M103: 0.07707817655 | N103: 0 | O103: 0 | P103: 0.6915697924 | Q103: 0.5959353028 | R103: 0 | S103: 0.2968182071 | T103: 0 | U103: 0 | V103: 0 | W103: Más de 5 mil habitantes | X103: Montevideo y Área Metropolitana | Y103: Rurales y menores de 5 mil habitantes | Z103: 0 | AA103: 0.4919700846 | AB103: 0.06091541948 | AC103: 2.105004 | AD103: 0 | AE103: 0 | AF103: 13.528674 | AG103: 11.65327 | AH103: 1.508784 | AI103: 0 | AJ103: 0 | AK103: 13.528674 | AL103: 11.65327 | AM103: 0 | AN103: 0.59622 | AO103: 0 | AP103: 0 | AQ103: 0 | AR103: 0 | AS103: 26.690728 | AT103: 0.59622
